﻿Department family,Entity,Date of payment,Expense type,Expense area,Supplier,Transaction number,Amount in Sterling,Supplier VAT Registration Number
Department of Health,Guys and St Thomas NHS Foundation Trust,19/03/2021,(81100) Dressings,(id:4621419) TAP,NHS SUPPLY CHAIN (MAIDSTONE),id:13815654  , 121.41
Department of Health,Guys and St Thomas NHS Foundation Trust,19/03/2021,(83400) Office Equipment,(id:4621419) TAP,NHS SUPPLY CHAIN (MAIDSTONE),id:13795595,  13.40
Department of Health,Guys and St Thomas NHS Foundation Trust,12/03/2021,(83410) Office Equipment,(id:41898) TAP,RICOH UK LTD,id:13863444   ,  15.38
Department of Health,Guys and St Thomas NHS Foundation Trust,19/03/2021,(83400) Office Equipment,(id:41897) TAP,NHS SUPPLY CHAIN (MAIDSTONE),id:13815654  , 978.44
Department of Health,Guys and St Thomas NHS Foundation Trust,05/03/2021,(81200) Medical Surgical Supplies & Equipment,(id:41897) TAP,WL GORE & ASSOCIATES (UK) LTD,id:13815637,1398.00
Department of Health,Guys and St Thomas NHS Foundation Trust,19/03/2021,(81100) Dressings,(id:41897) TAP,NHS SUPPLY CHAIN (MAIDSTONE),id:13815654    , 258.45
Department of Health,Guys and St Thomas NHS Foundation Trust,19/03/2021,(81100) Dressings,(id:41897) TAP,ELIS UK LIMITED,id:13841349  , 444.06
Department of Health,Guys and St Thomas NHS Foundation Trust,19/03/2021,(82800) Bedding & Linen,(id:41894) TAP,NHS SUPPLY CHAIN (MAIDSTONE),id:13815654   ,   3.38
Department of Health,Guys and St Thomas NHS Foundation Trust,12/03/2021,(82600) Uniforms & Clothing,(id:41894) TAP,NHS SUPPLY CHAIN (MAIDSTONE),id:13735674    ,  17.64
Department of Health,Guys and St Thomas NHS Foundation Trust,12/03/2021,(82600) Uniforms & Clothing,(id:41883) TAP,NHS SUPPLY CHAIN (MAIDSTONE),id:13735674    ,  55.08
Department of Health,Guys and St Thomas NHS Foundation Trust,19/03/2021,(81200) Medical Surgical Supplies & Equipment,(id:41883) TAP,JOHNSON & JOHNSON MEDICAL LTD,id:13816380, 265.72
Department of Health,Guys and St Thomas NHS Foundation Trust,12/03/2021,(83400) Office Equipment,(id:41883) TAP,NHS SUPPLY CHAIN (MAIDSTONE),id:13735674  ,1303.75
Department of Health,Guys and St Thomas NHS Foundation Trust,19/03/2021,(89640) Non-Healthcare from NHS Trusts,(id:41909) TAP,LEWISHAM AND GREENWICH NHS TRUST,id:12562437    ,3882.00
Department of Health,Guys and St Thomas NHS Foundation Trust,12/03/2021,(82800) Bedding & Linen,(id:41907) TAP,NHS SUPPLY CHAIN (MAIDSTONE),id:13735674   ,   7.44
Department of Health,Guys and St Thomas NHS Foundation Trust,12/03/2021,(81200) Medical Surgical Supplies & Equipment,(id:41906) TAP,FANNIN UK LTD,id:13843054 ,1068.96
Department of Health,Guys and St Thomas NHS Foundation Trust,12/03/2021,(82800) Bedding & Linen,(id:41905) TAP,NHS SUPPLY CHAIN (MAIDSTONE),id:13735674   ,   3.72
Department of Health,Guys and St Thomas NHS Foundation Trust,19/03/2021,(81200) Medical Surgical Supplies & Equipment,(id:41905) TAP,NHS SUPPLY CHAIN (MAIDSTONE),id:13815654 ,3220.40
Department of Health,Guys and St Thomas NHS Foundation Trust,05/03/2021,(81200) Medical Surgical Supplies & Equipment,(id:41905) TAP,KARL STORZ ENDOSCOPY UK LTD,id:13807719  , 768.00
Department of Health,Guys and St Thomas NHS Foundation Trust,19/03/2021,(81100) Dressings,(id:41905) TAP,NHS SUPPLY CHAIN (MAIDSTONE),id:13815654    ,  64.38
Department of Health,Guys and St Thomas NHS Foundation Trust,19/03/2021,(82000) Provisions & Kitchens,(id:2549419) TAP,NHS SUPPLY CHAIN (MAIDSTONE),id:13795595,   9.22
Department of Health,Guys and St Thomas NHS Foundation Trust,05/03/2021,(81200) Medical Surgical Supplies & Equipment,(id:41913) TAP,FISHER & PAYKEL HEALTHCARE LTD,id:13794174    ,1103.76
Department of Health,Guys and St Thomas NHS Foundation Trust,12/03/2021,(82800) Bedding & Linen,(id:41913) TAP,NHS SUPPLY CHAIN (MAIDSTONE),id:13735674   , 285.88
Department of Health,Guys and St Thomas NHS Foundation Trust,12/03/2021,(82000) Provisions & Kitchens,(id:41916) TAP,NHS SUPPLY CHAIN (MAIDSTONE),id:13735674  ,  43.05
Department of Health,Guys and St Thomas NHS Foundation Trust,05/03/2021,(83610) IT Costs,(id:41916) TAP,OFFICE DEPOT UK LTD,id:13762442    , 675.84
Department of Health,Guys and St Thomas NHS Foundation Trust,12/03/2021,(81700) Lab Equipment Purchase,(id:41922) TAP,NHS SUPPLY CHAIN (MAIDSTONE),id:13735674 ,  73.77
Department of Health,Guys and St Thomas NHS Foundation Trust,12/03/2021,(83410) Office Equipment,(id:41959) Gastrointestinal Medicine & Surgery,RICOH UK LTD,id:13863444 , 157.75
Department of Health,Guys and St Thomas NHS Foundation Trust,12/03/2021,(50552) Qualified Nursing Staff,(id:41958) Gastrointestinal Medicine & Surgery,CONTINENTAL NURSE LTD,id:13861438, 923.83
Department of Health,Guys and St Thomas NHS Foundation Trust,12/03/2021,(81100) Dressings,(id:41954) Gastrointestinal Medicine & Surgery,NHS SUPPLY CHAIN (MAIDSTONE),id:13735674  , 369.91
Department of Health,Guys and St Thomas NHS Foundation Trust,05/03/2021,(81200) Medical Surgical Supplies & Equipment,(id:41949) Gastrointestinal Medicine & Surgery,CJ MEDICAL,id:13785777  , 558.00
Department of Health,Guys and St Thomas NHS Foundation Trust,12/03/2021,(81200) Medical Surgical Supplies & Equipment,(id:41949) Gastrointestinal Medicine & Surgery,CRYOLIFE EUROPA LTD,id:13863354   , 630.00
Department of Health,Guys and St Thomas NHS Foundation Trust,19/03/2021,(81200) Medical Surgical Supplies & Equipment,(id:41949) Gastrointestinal Medicine & Surgery,MEDTRONIC LTD,id:13810790    ,1100.84
Department of Health,Guys and St Thomas NHS Foundation Trust,19/03/2021,(81700) Lab Equipment Purchase,(id:2367419) Gastrointestinal Medicine & Surgery,NHS SUPPLY CHAIN (MAIDSTONE),id:13795595  ,  18.89
Department of Health,Guys and St Thomas NHS Foundation Trust,12/03/2021,(50522) Unqualified Nursing Staff,(id:2367419) Gastrointestinal Medicine & Surgery,GLOBE LOCUMS LTD,id:13861351 , 246.40
Department of Health,Guys and St Thomas NHS Foundation Trust,19/03/2021,(82800) Bedding & Linen,(id:2367419) Gastrointestinal Medicine & Surgery,NHS SUPPLY CHAIN (MAIDSTONE),id:13815654    , 119.53
Department of Health,Guys and St Thomas NHS Foundation Trust,19/03/2021,(81225) Medical Surgical Supplies & Equipment,(id:2367419) Gastrointestinal Medicine & Surgery,NHS SUPPLY CHAIN (MAIDSTONE),id:13795595  ,  22.51
Department of Health,Guys and St Thomas NHS Foundation Trust,12/03/2021,(81255) Medical Surgical Supplies & Equipment,(id:2367419) Gastrointestinal Medicine & Surgery,NHS SUPPLY CHAIN (MAIDSTONE),id:13735674  ,   5.62
Department of Health,Guys and St Thomas NHS Foundation Trust,05/03/2021,(50200) Consultants,(id:41942) Gastrointestinal Medicine & Surgery,DARTFORD AND GRAVESHAM NHS TRUST,id:12357831 ,    20506.00
Department of Health,Guys and St Thomas NHS Foundation Trust,05/03/2021,(89640) Non-Healthcare from NHS Trusts,(id:41942) Gastrointestinal Medicine & Surgery,DARTFORD AND GRAVESHAM NHS TRUST,id:13794776  ,5611.43
Department of Health,Guys and St Thomas NHS Foundation Trust,19/03/2021,(81700) Lab Equipment Purchase,(id:41942) Gastrointestinal Medicine & Surgery,NHS SUPPLY CHAIN (MAIDSTONE),id:13815654    ,  31.02
Department of Health,Guys and St Thomas NHS Foundation Trust,19/03/2021,(82700) Uniforms & Clothing,(id:41917) Gastrointestinal Medicine & Surgery,NHS SUPPLY CHAIN (MAIDSTONE),id:13815654  ,  94.75
Department of Health,Guys and St Thomas NHS Foundation Trust,12/03/2021,(81200) Medical Surgical Supplies & Equipment,(id:41917) Gastrointestinal Medicine & Surgery,GETINGE UK LTD,id:13865806   ,3144.00
Department of Health,Guys and St Thomas NHS Foundation Trust,12/03/2021,(83410) Office Equipment,(id:41917) Gastrointestinal Medicine & Surgery,RICOH UK LTD,id:13863444 , 271.97
Department of Health,Guys and St Thomas NHS Foundation Trust,12/03/2021,(89000) Other - Training courses and conferences,(id:41917) Gastrointestinal Medicine & Surgery,CAIRN TECHNOLOGY LIMITED,id:13847858,1570.00
Department of Health,Guys and St Thomas NHS Foundation Trust,12/03/2021,(81300) Medical Surgical Supplies & Equipment,(id:41917) Gastrointestinal Medicine & Surgery,SHAWBROOK BANK LIMITED,id:13847054,6508.82
Department of Health,Guys and St Thomas NHS Foundation Trust,19/03/2021,(81255) Medical Surgical Supplies & Equipment,(id:41917) Gastrointestinal Medicine & Surgery,NHS SUPPLY CHAIN (MAIDSTONE),id:13795595    ,  82.80
Department of Health,Guys and St Thomas NHS Foundation Trust,05/03/2021,(81900) Lab Equipment Purchase,(id:111406) Pathology,VIAPATH SERVICES LLP,id:13649114  ,    -1049.19
Department of Health,Guys and St Thomas NHS Foundation Trust,19/03/2021,(89600) Non-Healthcare from other NHS bodies,(id:42134) Pathology,NHS BLOOD AND TRANSPLANT,id:13879755,1279.30
Department of Health,Guys and St Thomas NHS Foundation Trust,19/03/2021,(89600) Non-Healthcare from other NHS bodies,(id:42134) Pathology,NHS BLOOD AND TRANSPLANT,id:13877276,4508.54
Department of Health,Guys and St Thomas NHS Foundation Trust,12/03/2021,(89600) Non-Healthcare from other NHS bodies,(id:42134) Pathology,NHS BLOOD AND TRANSPLANT,id:13622694, 580.40
Department of Health,Guys and St Thomas NHS Foundation Trust,12/03/2021,(89600) Non-Healthcare from other NHS bodies,(id:42134) Pathology,NHS BLOOD AND TRANSPLANT,id:13794074,1977.80
Department of Health,Guys and St Thomas NHS Foundation Trust,12/03/2021,(89270) Establishment,(id:169405) Cancer Strategy,KINGS COLLEGE LONDON:03529700,id:13847915 ,    59166.00
Department of Health,Guys and St Thomas NHS Foundation Trust,19/03/2021,(89000) Other - Training courses and conferences,(id:169405) Cancer Strategy,FRONT LINE COMMUNICATION TRAINING LTD,id:13887314 ,4166.67
Department of Health,Guys and St Thomas NHS Foundation Trust,19/03/2021,(89280) Other - Consultancy costs,(id:169405) Cancer Strategy,OVID CONSULTING LTD T/A OVID HEALTH,id:13817860   ,    29820.00
Department of Health,Guys and St Thomas NHS Foundation Trust,05/03/2021,(81100) Dressings,(id:2625419) Transplant Renal and Urology,JOHNSON & JOHNSON MEDICAL LTD,id:13752375 , 556.60
Department of Health,Guys and St Thomas NHS Foundation Trust,26/03/2021,(81100) Dressings,(id:2625419) Transplant Renal and Urology,JOHNSON & JOHNSON MEDICAL LTD,id:13845901 , 556.60
Department of Health,Guys and St Thomas NHS Foundation Trust,26/03/2021,(81200) Medical Surgical Supplies & Equipment,(id:2625419) Transplant Renal and Urology,MERIT MEDICAL UK LTD,id:13904661  , 698.88
Department of Health,Guys and St Thomas NHS Foundation Trust,19/03/2021,(81200) Medical Surgical Supplies & Equipment,(id:42450) Transplant Renal and Urology,STRYKER UK LTD,id:13846994, 613.87
Department of Health,Guys and St Thomas NHS Foundation Trust,12/03/2021,(81200) Medical Surgical Supplies & Equipment,(id:42450) Transplant Renal and Urology,JOHNSON & JOHNSON MEDICAL LTD,id:13792480, 722.06
Department of Health,Guys and St Thomas NHS Foundation Trust,05/03/2021,(81200) Medical Surgical Supplies & Equipment,(id:42450) Transplant Renal and Urology,STRYKER UK LTD,id:13806415, 613.87
Department of Health,Guys and St Thomas NHS Foundation Trust,12/03/2021,(81100) Dressings,(id:42450) Transplant Renal and Urology,JOHNSON & JOHNSON MEDICAL LTD,id:13792480   , 148.50
Department of Health,Guys and St Thomas NHS Foundation Trust,19/03/2021,(81200) Medical Surgical Supplies & Equipment,(id:42449) Transplant Renal and Urology,NHS SUPPLY CHAIN (MAIDSTONE),id:13795595 ,  77.53
Department of Health,Guys and St Thomas NHS Foundation Trust,12/03/2021,(81200) Medical Surgical Supplies & Equipment,(id:42449) Transplant Renal and Urology,DIGITIMER LTD,id:13822195 , 520.20
Department of Health,Guys and St Thomas NHS Foundation Trust,05/03/2021,(81200) Medical Surgical Supplies & Equipment,(id:42449) Transplant Renal and Urology,PROMED LTD,id:13805236    ,2400.00
Department of Health,Guys and St Thomas NHS Foundation Trust,12/03/2021,(81225) Medical Surgical Supplies & Equipment,(id:42449) Transplant Renal and Urology,NHS SUPPLY CHAIN (MAIDSTONE),id:13735674 , 177.36
Department of Health,Guys and St Thomas NHS Foundation Trust,19/03/2021,(82000) Provisions & Kitchens,(id:42447) Transplant Renal and Urology,NHS SUPPLY CHAIN (MAIDSTONE),id:13815654  ,   3.24
Department of Health,Guys and St Thomas NHS Foundation Trust,19/03/2021,(82000) Provisions & Kitchens,(id:42447) Transplant Renal and Urology,NHS SUPPLY CHAIN (MAIDSTONE),id:13795595  ,   7.26
Department of Health,Guys and St Thomas NHS Foundation Trust,12/03/2021,(82800) Bedding & Linen,(id:42447) Transplant Renal and Urology,NHS SUPPLY CHAIN (MAIDSTONE),id:13735674   , 197.56
Department of Health,Guys and St Thomas NHS Foundation Trust,19/03/2021,(81100) Dressings,(id:42447) Transplant Renal and Urology,NHS SUPPLY CHAIN (MAIDSTONE),id:13815654    ,  52.15
Department of Health,Guys and St Thomas NHS Foundation Trust,05/03/2021,(84656) Establishment,(id:42447) Transplant Renal and Urology,DICT8 LIMITED,id:13791415,1523.40
Department of Health,Guys and St Thomas NHS Foundation Trust,19/03/2021,(81225) Medical Surgical Supplies & Equipment,(id:42447) Transplant Renal and Urology,NHS SUPPLY CHAIN (MAIDSTONE),id:13815654 ,  12.48
Department of Health,Guys and St Thomas NHS Foundation Trust,05/03/2021,(81100) Dressings,(id:42446) Transplant Renal and Urology,JOHNSON & JOHNSON MEDICAL LTD,id:13746867   , 556.60
Department of Health,Guys and St Thomas NHS Foundation Trust,19/03/2021,(81200) Medical Surgical Supplies & Equipment,(id:42446) Transplant Renal and Urology,NHS SUPPLY CHAIN (MAIDSTONE),id:13815654 ,  74.65
Department of Health,Guys and St Thomas NHS Foundation Trust,05/03/2021,(81200) Medical Surgical Supplies & Equipment,(id:42446) Transplant Renal and Urology,LINDSAY SURGICAL SUPPLIES LIMITED,id:13599554 , 914.40
Department of Health,Guys and St Thomas NHS Foundation Trust,05/03/2021,(81200) Medical Surgical Supplies & Equipment,(id:42446) Transplant Renal and Urology,AQUILANT LTD,id:13809378  , 578.76
Department of Health,Guys and St Thomas NHS Foundation Trust,05/03/2021,(81400) Medical Surgical Supplies & Equipment,(id:42446) Transplant Renal and Urology,KARL STORZ ENDOSCOPY UK LTD,id:13802595  , 683.40
Department of Health,Guys and St Thomas NHS Foundation Trust,26/03/2021,(81400) Medical Surgical Supplies & Equipment,(id:42446) Transplant Renal and Urology,ENVIROGEN WATER TECHNOLOGIES LTD,id:13918474  ,7995.00
Department of Health,Guys and St Thomas NHS Foundation Trust,19/03/2021,(83400) Office Equipment,(id:42446) Transplant Renal and Urology,NHS SUPPLY CHAIN (MAIDSTONE),id:13815654  , 193.94
Department of Health,Guys and St Thomas NHS Foundation Trust,05/03/2021,(81200) Medical Surgical Supplies & Equipment,(id:42444) Transplant Renal and Urology,STRYKER UK LTD,id:13796974, 504.00
Department of Health,Guys and St Thomas NHS Foundation Trust,19/03/2021,(82800) Bedding & Linen,(id:42443) Transplant Renal and Urology,NHS SUPPLY CHAIN (MAIDSTONE),id:13795595   , 113.37
Department of Health,Guys and St Thomas NHS Foundation Trust,19/03/2021,(81200) Medical Surgical Supplies & Equipment,(id:42443) Transplant Renal and Urology,MEDSTROM LTD,id:13845670  ,2784.60
Department of Health,Guys and St Thomas NHS Foundation Trust,19/03/2021,(81200) Medical Surgical Supplies & Equipment,(id:42442) Transplant Renal and Urology,NHS SUPPLY CHAIN (MAIDSTONE),id:13815654 , 881.63
Department of Health,Guys and St Thomas NHS Foundation Trust,19/03/2021,(83400) Office Equipment,(id:42442) Transplant Renal and Urology,NHS SUPPLY CHAIN (MAIDSTONE),id:13815654  ,  59.86
Department of Health,Guys and St Thomas NHS Foundation Trust,19/03/2021,(81225) Medical Surgical Supplies & Equipment,(id:42442) Transplant Renal and Urology,NHS SUPPLY CHAIN (MAIDSTONE),id:13815654 ,  55.15
Department of Health,Guys and St Thomas NHS Foundation Trust,26/03/2021,(83400) Office Equipment,(id:42436) Transplant Renal and Urology,NXSTAGE MEDICAL UK LIMITED,id:13887074    ,1121.12
Department of Health,Guys and St Thomas NHS Foundation Trust,19/03/2021,(83400) Office Equipment,(id:42433) Transplant Renal and Urology,KLS MARTIN UK LTD,id:13892694   , 306.10
Department of Health,Guys and St Thomas NHS Foundation Trust,26/03/2021,(81200) Medical Surgical Supplies & Equipment,(id:42433) Transplant Renal and Urology,MERCIAN SURGICAL SUPPLY CO LTD,id:13920434    ,1009.50
Department of Health,Guys and St Thomas NHS Foundation Trust,26/03/2021,(81200) Medical Surgical Supplies & Equipment,(id:42433) Transplant Renal and Urology,JOHNSON & JOHNSON MEDICAL LTD,id:13845914, 312.05
Department of Health,Guys and St Thomas NHS Foundation Trust,26/03/2021,(81200) Medical Surgical Supplies & Equipment,(id:42430) Transplant Renal and Urology,MARSDEN WEIGHING MACHINE GROUP LTD,id:13905296,1017.60
Department of Health,Guys and St Thomas NHS Foundation Trust,19/03/2021,(81200) Medical Surgical Supplies & Equipment,(id:42430) Transplant Renal and Urology,LINC MEDICAL SYSTEMS  LTD,id:13869154    ,1423.20
Department of Health,Guys and St Thomas NHS Foundation Trust,19/03/2021,(81200) Medical Surgical Supplies & Equipment,(id:42430) Transplant Renal and Urology,GRANTLEIGH LTD,id:13869014,4215.00
Department of Health,Guys and St Thomas NHS Foundation Trust,19/03/2021,(81200) Medical Surgical Supplies & Equipment,(id:42428) Transplant Renal and Urology,NHS SUPPLY CHAIN (MAIDSTONE),id:13815654 , 168.84
Department of Health,Guys and St Thomas NHS Foundation Trust,12/03/2021,(84400) Transport,(id:42428) Transplant Renal and Urology,CITYSPRINT (UK) LTD,id:13785874   ,    10084.95
Department of Health,Guys and St Thomas NHS Foundation Trust,19/03/2021,(83400) Office Equipment,(id:42428) Transplant Renal and Urology,NHS SUPPLY CHAIN (MAIDSTONE),id:13815654  ,  10.05
Department of Health,Guys and St Thomas NHS Foundation Trust,19/03/2021,(81200) Medical Surgical Supplies & Equipment,(id:42420) Transplant Renal and Urology,NHS SUPPLY CHAIN (MAIDSTONE),id:13815654 , 911.58
Department of Health,Guys and St Thomas NHS Foundation Trust,12/03/2021,(81200) Medical Surgical Supplies & Equipment,(id:42420) Transplant Renal and Urology,FRESENIUS MEDICAL CARE UK LTD,id:13815256,2800.80
Department of Health,Guys and St Thomas NHS Foundation Trust,12/03/2021,(81200) Medical Surgical Supplies & Equipment,(id:42420) Transplant Renal and Urology,KIMAL PLC,id:13849054,2460.00
Department of Health,Guys and St Thomas NHS Foundation Trust,12/03/2021,(83765) Rent,(id:42438) Transplant Renal and Urology,ASSURA PROPERTIES LIMITED,id:13854574  ,6973.87
Department of Health,Guys and St Thomas NHS Foundation Trust,05/03/2021,(86300) Healthcare from non-NHS bodies,(id:42437) Transplant Renal and Urology,DIAVERUM UK LTD,id:13816955 ,    12108.33
Department of Health,Guys and St Thomas NHS Foundation Trust,19/03/2021,(86300) Healthcare from non-NHS bodies,(id:42437) Transplant Renal and Urology,DIAVERUM UK LTD,id:13879020 ,    43169.14
Department of Health,Guys and St Thomas NHS Foundation Trust,05/03/2021,(81225) Medical Surgical Supplies & Equipment,(id:42427) Transplant Renal and Urology,HOSPITAL METALCRAFT LTD,id:13819315 , 573.55
Department of Health,Guys and St Thomas NHS Foundation Trust,05/03/2021,(83760) Rent,(id:42425) Transplant Renal and Urology,STATES OF GUERNSEY H & S DEPARTMENT,id:11895451  , 954.00
Department of Health,Guys and St Thomas NHS Foundation Trust,05/03/2021,(83760) Rent,(id:42425) Transplant Renal and Urology,STATES OF GUERNSEY H & S DEPARTMENT,id:12562011  , 954.00
Department of Health,Guys and St Thomas NHS Foundation Trust,05/03/2021,(83760) Rent,(id:42425) Transplant Renal and Urology,STATES OF GUERNSEY H & S DEPARTMENT,id:12691842  ,1297.00
Department of Health,Guys and St Thomas NHS Foundation Trust,26/03/2021,(81200) Medical Surgical Supplies & Equipment,(id:42422) Transplant Renal and Urology,NXSTAGE MEDICAL UK LIMITED,id:13899574   , 893.40
Department of Health,Guys and St Thomas NHS Foundation Trust,26/03/2021,(81200) Medical Surgical Supplies & Equipment,(id:42422) Transplant Renal and Urology,NXSTAGE MEDICAL UK LIMITED,id:13758394   ,1309.44
Department of Health,Guys and St Thomas NHS Foundation Trust,26/03/2021,(81200) Medical Surgical Supplies & Equipment,(id:42422) Transplant Renal and Urology,NXSTAGE MEDICAL UK LIMITED,id:13899594   ,1309.44
Department of Health,Guys and St Thomas NHS Foundation Trust,26/03/2021,(81200) Medical Surgical Supplies & Equipment,(id:42422) Transplant Renal and Urology,NXSTAGE MEDICAL UK LIMITED,id:13375933   ,1742.02
Department of Health,Guys and St Thomas NHS Foundation Trust,26/03/2021,(81200) Medical Surgical Supplies & Equipment,(id:42422) Transplant Renal and Urology,NXSTAGE MEDICAL UK LIMITED,id:13899677   ,1636.80
Department of Health,Guys and St Thomas NHS Foundation Trust,05/03/2021,(81200) Medical Surgical Supplies & Equipment,(id:42422) Transplant Renal and Urology,FRESENIUS MEDICAL CARE UK LTD,id:13458796, 522.98
Department of Health,Guys and St Thomas NHS Foundation Trust,19/03/2021,(81200) Medical Surgical Supplies & Equipment,(id:42422) Transplant Renal and Urology,NXSTAGE MEDICAL UK LIMITED,id:13844274   , 640.00
Department of Health,Guys and St Thomas NHS Foundation Trust,19/03/2021,(81200) Medical Surgical Supplies & Equipment,(id:42422) Transplant Renal and Urology,NXSTAGE MEDICAL UK LIMITED,id:13894185   ,1062.88
Department of Health,Guys and St Thomas NHS Foundation Trust,12/03/2021,(80150) Drug Costs,(id:42422) Transplant Renal and Urology,BAXTER HEALTHCARE LTD,id:13773654,    82776.97
Department of Health,Guys and St Thomas NHS Foundation Trust,19/03/2021,(81200) Medical Surgical Supplies & Equipment,(id:42421) Transplant Renal and Urology,BAXTER HEALTHCARE LTD,id:13811014   ,1128.70
Department of Health,Guys and St Thomas NHS Foundation Trust,19/03/2021,(81200) Medical Surgical Supplies & Equipment,(id:42421) Transplant Renal and Urology,BAXTER HEALTHCARE LTD,id:13811019   ,3063.76
Department of Health,Guys and St Thomas NHS Foundation Trust,05/03/2021,(81200) Medical Surgical Supplies & Equipment,(id:42421) Transplant Renal and Urology,BAXTER HEALTHCARE LTD,id:13759774   ,1058.06
Department of Health,Guys and St Thomas NHS Foundation Trust,19/03/2021,(83400) Office Equipment,(id:42485) Surgery,NHS SUPPLY CHAIN (MAIDSTONE),id:13795595   ,  37.37
Department of Health,Guys and St Thomas NHS Foundation Trust,19/03/2021,(81225) Medical Surgical Supplies & Equipment,(id:42485) Surgery,NHS SUPPLY CHAIN (MAIDSTONE),id:13795595  ,  18.88
Department of Health,Guys and St Thomas NHS Foundation Trust,19/03/2021,(81200) Medical Surgical Supplies & Equipment,(id:42485) Surgery,NHS SUPPLY CHAIN (MAIDSTONE),id:13795595  , 540.27
Department of Health,Guys and St Thomas NHS Foundation Trust,05/03/2021,(81200) Medical Surgical Supplies & Equipment,(id:42484) Surgery,Q MEDICAL TECHNOLOGIES LTD,id:13810438    ,    -5241.60
Department of Health,Guys and St Thomas NHS Foundation Trust,19/03/2021,(81100) Dressings,(id:42484) Surgery,NHS SUPPLY CHAIN (MAIDSTONE),id:13795595, 155.43
Department of Health,Guys and St Thomas NHS Foundation Trust,05/03/2021,(81200) Medical Surgical Supplies & Equipment,(id:42467) Surgery,JOHNSON & JOHNSON MEDICAL LTD,id:13752369 , 691.92
Department of Health,Guys and St Thomas NHS Foundation Trust,05/03/2021,(81200) Medical Surgical Supplies & Equipment,(id:42467) Surgery,LEDA ORTHOPAEDICS LTD,id:13700234    ,1412.40
Department of Health,Guys and St Thomas NHS Foundation Trust,05/03/2021,(81200) Medical Surgical Supplies & Equipment,(id:42467) Surgery,JOHNSON & JOHNSON MEDICAL LTD,id:13762505 ,1054.10
Department of Health,Guys and St Thomas NHS Foundation Trust,05/03/2021,(81200) Medical Surgical Supplies & Equipment,(id:42467) Surgery,JOHNSON & JOHNSON MEDICAL LTD,id:13771594 ,5209.74
Department of Health,Guys and St Thomas NHS Foundation Trust,12/03/2021,(81200) Medical Surgical Supplies & Equipment,(id:42467) Surgery,JOHNSON & JOHNSON MEDICAL LTD,id:13782418 ,1381.97
Department of Health,Guys and St Thomas NHS Foundation Trust,12/03/2021,(81200) Medical Surgical Supplies & Equipment,(id:42467) Surgery,JOHNSON & JOHNSON MEDICAL LTD,id:13782403 ,1395.44
Department of Health,Guys and St Thomas NHS Foundation Trust,12/03/2021,(81200) Medical Surgical Supplies & Equipment,(id:42467) Surgery,JOHNSON & JOHNSON MEDICAL LTD,id:13792747 , 934.42
Department of Health,Guys and St Thomas NHS Foundation Trust,12/03/2021,(81200) Medical Surgical Supplies & Equipment,(id:42467) Surgery,ECHO ORTHOPAEDICS LTD,id:13774835    , 834.00
Department of Health,Guys and St Thomas NHS Foundation Trust,12/03/2021,(81200) Medical Surgical Supplies & Equipment,(id:42467) Surgery,JOHNSON & JOHNSON MEDICAL LTD,id:13862994 , 627.51
Department of Health,Guys and St Thomas NHS Foundation Trust,26/03/2021,(81200) Medical Surgical Supplies & Equipment,(id:42467) Surgery,JOHNSON & JOHNSON MEDICAL LTD,id:13924583 ,2446.11
Department of Health,Guys and St Thomas NHS Foundation Trust,12/03/2021,(81200) Medical Surgical Supplies & Equipment,(id:42467) Surgery,JOHNSON & JOHNSON MEDICAL LTD,id:13834775 , 548.18
Department of Health,Guys and St Thomas NHS Foundation Trust,19/03/2021,(81100) Dressings,(id:42466) Surgery,NHS SUPPLY CHAIN (MAIDSTONE),id:13795595,  90.65
Department of Health,Guys and St Thomas NHS Foundation Trust,19/03/2021,(81100) Dressings,(id:42465) Surgery,NHS SUPPLY CHAIN (MAIDSTONE),id:13795595, 335.11
Department of Health,Guys and St Thomas NHS Foundation Trust,19/03/2021,(81100) Dressings,(id:42464) Surgery,NHS SUPPLY CHAIN (MAIDSTONE),id:13815654,   3.28
Department of Health,Guys and St Thomas NHS Foundation Trust,26/03/2021,(83400) Office Equipment,(id:42464) Surgery,DICTATE IT,id:13916315 , 970.20
Department of Health,Guys and St Thomas NHS Foundation Trust,19/03/2021,(82600) Uniforms & Clothing,(id:42463) Surgery,NHS SUPPLY CHAIN (MAIDSTONE),id:13815654,    .72
Department of Health,Guys and St Thomas NHS Foundation Trust,05/03/2021,(81000) Surgical Appliances,(id:42461) Surgery,BESPOKE PROSTHETICS AND ORTHOTICS LTD,id:13819175 , 513.64
Department of Health,Guys and St Thomas NHS Foundation Trust,12/03/2021,(83400) Office Equipment,(id:42459) Surgery,NHS SUPPLY CHAIN (MAIDSTONE),id:13735674   , 129.61
Department of Health,Guys and St Thomas NHS Foundation Trust,19/03/2021,(83400) Office Equipment,(id:42459) Surgery,NHS SUPPLY CHAIN (MAIDSTONE),id:13815654   ,  45.03
Department of Health,Guys and St Thomas NHS Foundation Trust,19/03/2021,(81100) Dressings,(id:42458) Surgery,NHS SUPPLY CHAIN (MAIDSTONE),id:13795595,1448.21
Department of Health,Guys and St Thomas NHS Foundation Trust,26/03/2021,(81200) Medical Surgical Supplies & Equipment,(id:42270) Haematology Cellular Pathology and Supporting Services,TERUMO BCT EUROPE NV/SA  (PREVIOUSLY CARIDIAN),id:13908514  ,4169.38
Department of Health,Guys and St Thomas NHS Foundation Trust,26/03/2021,(81200) Medical Surgical Supplies & Equipment,(id:42270) Haematology Cellular Pathology and Supporting Services,TERUMO BCT EUROPE NV/SA  (PREVIOUSLY CARIDIAN),id:13908314  ,4169.38
Department of Health,Guys and St Thomas NHS Foundation Trust,12/03/2021,(81100) Dressings,(id:42270) Haematology Cellular Pathology and Supporting Services,NHS SUPPLY CHAIN (MAIDSTONE),id:13735674   ,1047.88
Department of Health,Guys and St Thomas NHS Foundation Trust,12/03/2021,(81700) Lab Equipment Purchase,(id:42270) Haematology Cellular Pathology and Supporting Services,NHS SUPPLY CHAIN (MAIDSTONE),id:13735674,  87.58
Department of Health,Guys and St Thomas NHS Foundation Trust,19/03/2021,(82000) Provisions & Kitchens,(id:42270) Haematology Cellular Pathology and Supporting Services,NHS SUPPLY CHAIN (MAIDSTONE),id:13815654 ,  16.50
Department of Health,Guys and St Thomas NHS Foundation Trust,19/03/2021,(82600) Uniforms & Clothing,(id:42270) Haematology Cellular Pathology and Supporting Services,NHS SUPPLY CHAIN (MAIDSTONE),id:13795595   ,  73.92
Department of Health,Guys and St Thomas NHS Foundation Trust,26/03/2021,(81000) Surgical Appliances,(id:42268) Haematology Cellular Pathology and Supporting Services,MEDI UK LTD,id:13920034, 225.37
Department of Health,Guys and St Thomas NHS Foundation Trust,19/03/2021,(50200) Consultants,(id:42267) Haematology Cellular Pathology and Supporting Services,LEWISHAM AND GREENWICH NHS TRUST,id:13887894  , 890.00
Department of Health,Guys and St Thomas NHS Foundation Trust,19/03/2021,(50200) Consultants,(id:42267) Haematology Cellular Pathology and Supporting Services,LEWISHAM AND GREENWICH NHS TRUST,id:13348200  , 890.00
Department of Health,Guys and St Thomas NHS Foundation Trust,19/03/2021,(81200) Medical Surgical Supplies & Equipment,(id:42267) Haematology Cellular Pathology and Supporting Services,NHS SUPPLY CHAIN (MAIDSTONE),id:13795595, 609.84
Department of Health,Guys and St Thomas NHS Foundation Trust,05/03/2021,(83610) IT Costs,(id:42267) Haematology Cellular Pathology and Supporting Services,OFFICE DEPOT UK LTD,id:13746810   , 908.42
Department of Health,Guys and St Thomas NHS Foundation Trust,19/03/2021,(83500) Furniture & Fittings,(id:42265) Haematology Cellular Pathology and Supporting Services,TECHNIBLINDS LTD,id:13892835    , 500.40
Department of Health,Guys and St Thomas NHS Foundation Trust,19/03/2021,(82800) Bedding & Linen,(id:42265) Haematology Cellular Pathology and Supporting Services,NHS SUPPLY CHAIN (MAIDSTONE),id:13795595  , 141.82
Department of Health,Guys and St Thomas NHS Foundation Trust,12/03/2021,(82800) Bedding & Linen,(id:42265) Haematology Cellular Pathology and Supporting Services,NHS SUPPLY CHAIN (MAIDSTONE),id:13735674  , 197.48
Department of Health,Guys and St Thomas NHS Foundation Trust,19/03/2021,(50552) Qualified Nursing Staff,(id:42265) Haematology Cellular Pathology and Supporting Services,MSI GROUP LTD,id:13891682    , 304.52
Department of Health,Guys and St Thomas NHS Foundation Trust,19/03/2021,(81225) Medical Surgical Supplies & Equipment,(id:42265) Haematology Cellular Pathology and Supporting Services,NHS SUPPLY CHAIN (MAIDSTONE),id:13815654,   9.70
Department of Health,Guys and St Thomas NHS Foundation Trust,19/03/2021,(82000) Provisions & Kitchens,(id:42272) Haematology Cellular Pathology and Supporting Services,NHS SUPPLY CHAIN (MAIDSTONE),id:13795595 ,  13.56
Department of Health,Guys and St Thomas NHS Foundation Trust,12/03/2021,(83410) Office Equipment,(id:42272) Haematology Cellular Pathology and Supporting Services,RICOH UK LTD,id:13863444  , 159.33
Department of Health,Guys and St Thomas NHS Foundation Trust,19/03/2021,(81700) Lab Equipment Purchase,(id:42272) Haematology Cellular Pathology and Supporting Services,NHS SUPPLY CHAIN (MAIDSTONE),id:13795595,  26.16
Department of Health,Guys and St Thomas NHS Foundation Trust,26/03/2021,(80205) Drug Costs,(id:42273) Haematology Cellular Pathology and Supporting Services,HEALTHCARE AT HOME LTD,id:13920894   ,1548.20
Department of Health,Guys and St Thomas NHS Foundation Trust,05/03/2021,(80205) Drug Costs,(id:42273) Haematology Cellular Pathology and Supporting Services,HEALTHCARE AT HOME LTD,id:13829816   ,5509.00
Department of Health,Guys and St Thomas NHS Foundation Trust,05/03/2021,(80205) Drug Costs,(id:42273) Haematology Cellular Pathology and Supporting Services,HEALTHCARE AT HOME LTD,id:13830117   ,    10127.00
Department of Health,Guys and St Thomas NHS Foundation Trust,05/03/2021,(80205) Drug Costs,(id:42273) Haematology Cellular Pathology and Supporting Services,HEALTHCARE AT HOME LTD,id:13829974   ,    11127.00
Department of Health,Guys and St Thomas NHS Foundation Trust,26/03/2021,(80205) Drug Costs,(id:42273) Haematology Cellular Pathology and Supporting Services,HEALTHCARE AT HOME LTD,id:13921415   ,6127.00
Department of Health,Guys and St Thomas NHS Foundation Trust,26/03/2021,(80205) Drug Costs,(id:42273) Haematology Cellular Pathology and Supporting Services,HEALTHCARE AT HOME LTD,id:13921614   ,    12127.00
Department of Health,Guys and St Thomas NHS Foundation Trust,26/03/2021,(80205) Drug Costs,(id:42273) Haematology Cellular Pathology and Supporting Services,HEALTHCARE AT HOME LTD,id:13920875   ,    65127.00
Department of Health,Guys and St Thomas NHS Foundation Trust,12/03/2021,(80205) Drug Costs,(id:42273) Haematology Cellular Pathology and Supporting Services,HEALTHCARE AT HOME LTD,id:13862654   ,7282.00
Department of Health,Guys and St Thomas NHS Foundation Trust,12/03/2021,(80205) Drug Costs,(id:42273) Haematology Cellular Pathology and Supporting Services,HEALTHCARE AT HOME LTD,id:13863151   ,7727.00
Department of Health,Guys and St Thomas NHS Foundation Trust,12/03/2021,(80205) Drug Costs,(id:42273) Haematology Cellular Pathology and Supporting Services,HEALTHCARE AT HOME LTD,id:13862474   ,    15127.00
Department of Health,Guys and St Thomas NHS Foundation Trust,12/03/2021,(80205) Drug Costs,(id:42273) Haematology Cellular Pathology and Supporting Services,HEALTHCARE AT HOME LTD,id:13862735   ,    43199.60
Department of Health,Guys and St Thomas NHS Foundation Trust,26/03/2021,(89000) Other - Training courses and conferences,(id:202405) Haematology Cellular Pathology and Supporting Services,LAZERBEAM FIRE AND SECURITY LTD,id:13900934   ,    11000.00
Department of Health,Guys and St Thomas NHS Foundation Trust,12/03/2021,(83410) Office Equipment,(id:42130) Haematology Cellular Pathology and Supporting Services,RICOH UK LTD,id:13863444  , 224.67
Department of Health,Guys and St Thomas NHS Foundation Trust,05/03/2021,(84500) Establishment,(id:42128) Haematology Cellular Pathology and Supporting Services,CDP  PRINT MANAGEMENT,id:13817747 , 661.18
Department of Health,Guys and St Thomas NHS Foundation Trust,12/03/2021,(83410) Office Equipment,(id:42128) Haematology Cellular Pathology and Supporting Services,RICOH UK LTD,id:13863444  , 346.41
Department of Health,Guys and St Thomas NHS Foundation Trust,26/03/2021,(54052) Technical Officers,(id:42128) Haematology Cellular Pathology and Supporting Services,TOTAL ASSIST RECRUITMENT LTD,id:13921132    ,1280.70
Department of Health,Guys and St Thomas NHS Foundation Trust,05/03/2021,(89000) Other - Training courses and conferences,(id:4631423) Haematology Cellular Pathology and Supporting Services,SOUTHERN MICROSCOPES,id:13658955   ,4893.95
Department of Health,Guys and St Thomas NHS Foundation Trust,19/03/2021,(81200) Medical Surgical Supplies & Equipment,(id:42258) Oncology Services,NHS SUPPLY CHAIN (MAIDSTONE),id:13815654  , 128.06
Department of Health,Guys and St Thomas NHS Foundation Trust,26/03/2021,(81400) Medical Surgical Supplies & Equipment,(id:42258) Oncology Services,XSTRAHL LTD,id:13918615    ,9628.47
Department of Health,Guys and St Thomas NHS Foundation Trust,26/03/2021,(83400) Office Equipment,(id:42257) Oncology Services,OFFICE DEPOT UK LTD,id:13777527  , 932.40
Department of Health,Guys and St Thomas NHS Foundation Trust,26/03/2021,(81700) Lab Equipment Purchase,(id:42261) Oncology Services,EXACT SCIENCES UK LTD,id:13907235    ,    12150.00
Department of Health,Guys and St Thomas NHS Foundation Trust,26/03/2021,(81700) Lab Equipment Purchase,(id:42261) Oncology Services,EXACT SCIENCES UK LTD,id:13480379    ,4050.00
Department of Health,Guys and St Thomas NHS Foundation Trust,26/03/2021,(81700) Lab Equipment Purchase,(id:42261) Oncology Services,EXACT SCIENCES UK LTD,id:13907155    ,2700.00
Department of Health,Guys and St Thomas NHS Foundation Trust,26/03/2021,(81000) Surgical Appliances,(id:42261) Oncology Services,MEDI UK LTD,id:13920074  ,  40.44
Department of Health,Guys and St Thomas NHS Foundation Trust,19/03/2021,(81000) Surgical Appliances,(id:42261) Oncology Services,TALAR MADE ORTHOTICS LTD,id:13869756    ,  46.50
Department of Health,Guys and St Thomas NHS Foundation Trust,12/03/2021,(82800) Bedding & Linen,(id:42260) Oncology Services,NHS SUPPLY CHAIN (MAIDSTONE),id:13735674    , 553.07
Department of Health,Guys and St Thomas NHS Foundation Trust,19/03/2021,(82000) Provisions & Kitchens,(id:42260) Oncology Services,NHS SUPPLY CHAIN (MAIDSTONE),id:13815654   ,  58.98
Department of Health,Guys and St Thomas NHS Foundation Trust,05/03/2021,(50522) Unqualified Nursing Staff,(id:42259) Oncology Services,MSI GROUP LTD,id:13832848    , 291.74
Department of Health,Guys and St Thomas NHS Foundation Trust,19/03/2021,(83400) Office Equipment,(id:42259) Oncology Services,NHS SUPPLY CHAIN (MAIDSTONE),id:13795595   ,  46.79
Department of Health,Guys and St Thomas NHS Foundation Trust,12/03/2021,(81200) Medical Surgical Supplies & Equipment,(id:42280) Surgical Oncology,Q MEDICAL TECHNOLOGIES LTD,id:13810359    ,2650.80
Department of Health,Guys and St Thomas NHS Foundation Trust,19/03/2021,(81200) Medical Surgical Supplies & Equipment,(id:42280) Surgical Oncology,NHS SUPPLY CHAIN (MAIDSTONE),id:13795595  , 677.52
Department of Health,Guys and St Thomas NHS Foundation Trust,19/03/2021,(81200) Medical Surgical Supplies & Equipment,(id:42280) Surgical Oncology,JOHNSON & JOHNSON MEDICAL LTD,id:13834774 , 501.55
Department of Health,Guys and St Thomas NHS Foundation Trust,26/03/2021,(81000) Surgical Appliances,(id:42280) Surgical Oncology,MEDI UK LTD,id:13917336  ,  75.04
Department of Health,Guys and St Thomas NHS Foundation Trust,12/03/2021,(81200) Medical Surgical Supplies & Equipment,(id:243406) Surgical Oncology,NHS SUPPLY CHAIN (MAIDSTONE),id:13735674 , 538.77
Department of Health,Guys and St Thomas NHS Foundation Trust,19/03/2021,(81700) Lab Equipment Purchase,(id:243406) Surgical Oncology,NHS SUPPLY CHAIN (MAIDSTONE),id:13795595 ,  21.29
Department of Health,Guys and St Thomas NHS Foundation Trust,19/03/2021,(81100) Dressings,(id:243406) Surgical Oncology,NHS SUPPLY CHAIN (MAIDSTONE),id:13815654    ,  46.39
Department of Health,Guys and St Thomas NHS Foundation Trust,12/03/2021,(82800) Bedding & Linen,(id:243406) Surgical Oncology,NHS SUPPLY CHAIN (MAIDSTONE),id:13735674   , 121.08
Department of Health,Guys and St Thomas NHS Foundation Trust,26/03/2021,(84500) Establishment,(id:42474) Surgical Oncology,OFFICE DEPOT UK LTD,id:13834703,  67.92
Department of Health,Guys and St Thomas NHS Foundation Trust,12/03/2021,(81200) Medical Surgical Supplies & Equipment,(id:42474) Surgical Oncology,KAPITEX HEALTHCARE LTD,id:13842795   ,1236.74
Department of Health,Guys and St Thomas NHS Foundation Trust,19/03/2021,(81200) Medical Surgical Supplies & Equipment,(id:42474) Surgical Oncology,MEDTRONIC LTD,id:13733852  , 286.81
Department of Health,Guys and St Thomas NHS Foundation Trust,26/03/2021,(81200) Medical Surgical Supplies & Equipment,(id:42474) Surgical Oncology,ADAM ROUILLY LTD,id:13887357    ,1518.84
Department of Health,Guys and St Thomas NHS Foundation Trust,12/03/2021,(83400) Office Equipment,(id:42474) Surgical Oncology,NHS SUPPLY CHAIN (MAIDSTONE),id:13735674   ,  10.66
Department of Health,Guys and St Thomas NHS Foundation Trust,12/03/2021,(81700) Lab Equipment Purchase,(id:42474) Surgical Oncology,NHS SUPPLY CHAIN (MAIDSTONE),id:13735674  ,  27.68
Department of Health,Guys and St Thomas NHS Foundation Trust,19/03/2021,(82800) Bedding & Linen,(id:42473) Surgical Oncology,NHS SUPPLY CHAIN (MAIDSTONE),id:13815654    ,  55.20
Department of Health,Guys and St Thomas NHS Foundation Trust,19/03/2021,(81100) Dressings,(id:42473) Surgical Oncology,NHS SUPPLY CHAIN (MAIDSTONE),id:13795595, 181.60
Department of Health,Guys and St Thomas NHS Foundation Trust,05/03/2021,(81200) Medical Surgical Supplies & Equipment,(id:42473) Surgical Oncology,DELTA SURGICAL LTD,id:13797920  , 590.40
Department of Health,Guys and St Thomas NHS Foundation Trust,12/03/2021,(81200) Medical Surgical Supplies & Equipment,(id:42473) Surgical Oncology,JOHNSON & JOHNSON MEDICAL LTD,id:13799576 , 916.73
Department of Health,Guys and St Thomas NHS Foundation Trust,12/03/2021,(81200) Medical Surgical Supplies & Equipment,(id:42473) Surgical Oncology,CCMED LTD,id:13845514 ,1719.00
Department of Health,Guys and St Thomas NHS Foundation Trust,05/03/2021,(81000) Surgical Appliances,(id:42473) Surgical Oncology,MEDTRONIC LTD,id:13300094, 561.60
Department of Health,Guys and St Thomas NHS Foundation Trust,12/03/2021,(83400) Office Equipment,(id:42475) Surgical Oncology,NHS SUPPLY CHAIN (MAIDSTONE),id:13735674   ,  20.72
Department of Health,Guys and St Thomas NHS Foundation Trust,27/03/2021,(54052) Technical Officers,(id:42475) Surgical Oncology,PRICEWATERHOUSECOOPERS LLP,id:13928795   , 576.05
Department of Health,Guys and St Thomas NHS Foundation Trust,19/03/2021,(81215) Medical Surgical Supplies & Equipment,(id:42475) Surgical Oncology,COCHLEAR EUROPE LTD,id:13879716 ,7168.80
Department of Health,Guys and St Thomas NHS Foundation Trust,12/03/2021,(81215) Medical Surgical Supplies & Equipment,(id:42475) Surgical Oncology,COCHLEAR EUROPE LTD,id:13826848 ,5394.00
Department of Health,Guys and St Thomas NHS Foundation Trust,26/03/2021,(81215) Medical Surgical Supplies & Equipment,(id:42475) Surgical Oncology,ADVANCED BIONICS SARL (AND UK LTD),id:13908194 ,1631.76
Department of Health,Guys and St Thomas NHS Foundation Trust,26/03/2021,(81215) Medical Surgical Supplies & Equipment,(id:42475) Surgical Oncology,COCHLEAR EUROPE LTD,id:13879714 ,5394.00
Department of Health,Guys and St Thomas NHS Foundation Trust,26/03/2021,(81215) Medical Surgical Supplies & Equipment,(id:42475) Surgical Oncology,COCHLEAR EUROPE LTD,id:13840695 ,9373.20
Department of Health,Guys and St Thomas NHS Foundation Trust,05/03/2021,(81225) Medical Surgical Supplies & Equipment,(id:42475) Surgical Oncology,MINERVA HEARING LTD,id:13809831 , 590.91
Department of Health,Guys and St Thomas NHS Foundation Trust,19/03/2021,(81225) Medical Surgical Supplies & Equipment,(id:42475) Surgical Oncology,NHS SUPPLY CHAIN (MAIDSTONE),id:13795595  ,    11796.58
Department of Health,Guys and St Thomas NHS Foundation Trust,12/03/2021,(81225) Medical Surgical Supplies & Equipment,(id:42475) Surgical Oncology,COCHLEAR EUROPE LTD,id:13840714 , 686.40
Department of Health,Guys and St Thomas NHS Foundation Trust,26/03/2021,(81225) Medical Surgical Supplies & Equipment,(id:42475) Surgical Oncology,COCHLEAR EUROPE LTD,id:13912897 ,2011.20
Department of Health,Guys and St Thomas NHS Foundation Trust,26/03/2021,(81225) Medical Surgical Supplies & Equipment,(id:42475) Surgical Oncology,COCHLEAR EUROPE LTD,id:13910378 ,5724.00
Department of Health,Guys and St Thomas NHS Foundation Trust,12/03/2021,(81100) Dressings,(id:42286) Surgical Oncology,NHS SUPPLY CHAIN (MAIDSTONE),id:13735674, 229.68
Department of Health,Guys and St Thomas NHS Foundation Trust,19/03/2021,(81400) Medical Surgical Supplies & Equipment,(id:42286) Surgical Oncology,KARL STORZ ENDOSCOPY UK LTD,id:13871035   , 562.59
Department of Health,Guys and St Thomas NHS Foundation Trust,19/03/2021,(81200) Medical Surgical Supplies & Equipment,(id:42286) Surgical Oncology,NHS SUPPLY CHAIN (MAIDSTONE),id:13795595  ,2296.18
Department of Health,Guys and St Thomas NHS Foundation Trust,19/03/2021,(81200) Medical Surgical Supplies & Equipment,(id:42286) Surgical Oncology,MEDTRONIC LTD,id:13742902  ,2383.30
Department of Health,Guys and St Thomas NHS Foundation Trust,12/03/2021,(81255) Medical Surgical Supplies & Equipment,(id:42284) Surgical Oncology,NHS SUPPLY CHAIN (MAIDSTONE),id:13735674  ,   7.92
Department of Health,Guys and St Thomas NHS Foundation Trust,19/03/2021,(81255) Medical Surgical Supplies & Equipment,(id:42284) Surgical Oncology,NHS SUPPLY CHAIN (MAIDSTONE),id:13815654  ,   3.12
Department of Health,Guys and St Thomas NHS Foundation Trust,26/03/2021,(81200) Medical Surgical Supplies & Equipment,(id:42471) Surgical Oncology,ATOS MEDICAL,id:13877534   , 838.18
Department of Health,Guys and St Thomas NHS Foundation Trust,05/03/2021,(81200) Medical Surgical Supplies & Equipment,(id:42470) Surgical Oncology,KAPITEX HEALTHCARE LTD,id:13809925   ,1002.70
Department of Health,Guys and St Thomas NHS Foundation Trust,05/03/2021,(81200) Medical Surgical Supplies & Equipment,(id:42470) Surgical Oncology,JOHNSON & JOHNSON MEDICAL LTD,id:13758032 , 541.55
Department of Health,Guys and St Thomas NHS Foundation Trust,19/03/2021,(81200) Medical Surgical Supplies & Equipment,(id:42470) Surgical Oncology,NHS SUPPLY CHAIN (MAIDSTONE),id:13815654  ,1084.73
Department of Health,Guys and St Thomas NHS Foundation Trust,19/03/2021,(81200) Medical Surgical Supplies & Equipment,(id:42470) Surgical Oncology,NHS SUPPLY CHAIN (MAIDSTONE),id:13795595  ,1946.73
Department of Health,Guys and St Thomas NHS Foundation Trust,12/03/2021,(50552) Qualified Nursing Staff,(id:42470) Surgical Oncology,CONTINENTAL NURSE LTD,id:13861542   ,1959.06
Department of Health,Guys and St Thomas NHS Foundation Trust,19/03/2021,(81255) Medical Surgical Supplies & Equipment,(id:2182419) Acute & General Medicine,NHS SUPPLY CHAIN (MAIDSTONE),id:13815654   ,   8.11
Department of Health,Guys and St Thomas NHS Foundation Trust,05/03/2021,(81200) Medical Surgical Supplies & Equipment,(id:2182419) Acute & General Medicine,ARJO UK LIMITED,id:13804882 , 685.20
Department of Health,Guys and St Thomas NHS Foundation Trust,19/03/2021,(50552) Qualified Nursing Staff,(id:2182419) Acute & General Medicine,GLOBE LOCUMS LTD,id:13891991    , 324.95
Department of Health,Guys and St Thomas NHS Foundation Trust,19/03/2021,(50552) Qualified Nursing Staff,(id:2182419) Acute & General Medicine,MSI GROUP LTD,id:13891804  , 328.16
Department of Health,Guys and St Thomas NHS Foundation Trust,05/03/2021,(50522) Unqualified Nursing Staff,(id:2182419) Acute & General Medicine,GLOBE LOCUMS LTD,id:13832773  , 253.64
Department of Health,Guys and St Thomas NHS Foundation Trust,19/03/2021,(50522) Unqualified Nursing Staff,(id:2182419) Acute & General Medicine,CARE PROVIDERS HEALTHCARE,id:13891784   , 268.43
Department of Health,Guys and St Thomas NHS Foundation Trust,19/03/2021,(83400) Office Equipment,(id:2182419) Acute & General Medicine,NHS SUPPLY CHAIN (MAIDSTONE),id:13795595    , 399.18
Department of Health,Guys and St Thomas NHS Foundation Trust,12/03/2021,(82000) Provisions & Kitchens,(id:41860) Acute & General Medicine,NHS SUPPLY CHAIN (MAIDSTONE),id:13735674 , 409.57
Department of Health,Guys and St Thomas NHS Foundation Trust,12/03/2021,(81100) Dressings,(id:41860) Acute & General Medicine,NHS SUPPLY CHAIN (MAIDSTONE),id:13735674   , 379.41
Department of Health,Guys and St Thomas NHS Foundation Trust,19/03/2021,(50552) Qualified Nursing Staff,(id:41860) Acute & General Medicine,GLOBE LOCUMS LTD,id:13891604 , 301.87
Department of Health,Guys and St Thomas NHS Foundation Trust,19/03/2021,(50552) Qualified Nursing Staff,(id:41860) Acute & General Medicine,GLOBE LOCUMS LTD,id:13891668 , 329.17
Department of Health,Guys and St Thomas NHS Foundation Trust,05/03/2021,(50552) Qualified Nursing Staff,(id:41860) Acute & General Medicine,MSI GROUP LTD,id:13809586    , 377.15
Department of Health,Guys and St Thomas NHS Foundation Trust,19/03/2021,(50522) Unqualified Nursing Staff,(id:41860) Acute & General Medicine,CARE PROVIDERS HEALTHCARE,id:13891697, 204.36
Department of Health,Guys and St Thomas NHS Foundation Trust,12/03/2021,(81200) Medical Surgical Supplies & Equipment,(id:41860) Acute & General Medicine,NHS SUPPLY CHAIN (MAIDSTONE),id:13735674, 839.99
Department of Health,Guys and St Thomas NHS Foundation Trust,19/03/2021,(81225) Medical Surgical Supplies & Equipment,(id:41860) Acute & General Medicine,NHS SUPPLY CHAIN (MAIDSTONE),id:13815654,  15.65
Department of Health,Guys and St Thomas NHS Foundation Trust,19/03/2021,(81700) Lab Equipment Purchase,(id:41860) Acute & General Medicine,NHS SUPPLY CHAIN (MAIDSTONE),id:13815654,  11.75
Department of Health,Guys and St Thomas NHS Foundation Trust,05/03/2021,(50552) Qualified Nursing Staff,(id:41859) Acute & General Medicine,MSI GROUP LTD,id:13832762    , 339.17
Department of Health,Guys and St Thomas NHS Foundation Trust,05/03/2021,(50552) Qualified Nursing Staff,(id:41859) Acute & General Medicine,MSI GROUP LTD,id:13809585    , 339.44
Department of Health,Guys and St Thomas NHS Foundation Trust,19/03/2021,(82000) Provisions & Kitchens,(id:41858) Acute & General Medicine,NHS SUPPLY CHAIN (MAIDSTONE),id:13795595 , 512.55
Department of Health,Guys and St Thomas NHS Foundation Trust,19/03/2021,(83400) Office Equipment,(id:41858) Acute & General Medicine,NHS SUPPLY CHAIN (MAIDSTONE),id:13795595 , 104.12
Department of Health,Guys and St Thomas NHS Foundation Trust,19/03/2021,(83400) Office Equipment,(id:41858) Acute & General Medicine,NHS SUPPLY CHAIN (MAIDSTONE),id:13815654 ,  24.62
Department of Health,Guys and St Thomas NHS Foundation Trust,12/03/2021,(81100) Dressings,(id:41858) Acute & General Medicine,NHS SUPPLY CHAIN (MAIDSTONE),id:13735674   ,  82.88
Department of Health,Guys and St Thomas NHS Foundation Trust,05/03/2021,(50552) Qualified Nursing Staff,(id:41858) Acute & General Medicine,GLOBE LOCUMS LTD,id:13832865 , 361.62
Department of Health,Guys and St Thomas NHS Foundation Trust,19/03/2021,(50552) Qualified Nursing Staff,(id:41858) Acute & General Medicine,GLOBE LOCUMS LTD,id:13891775 , 657.16
Department of Health,Guys and St Thomas NHS Foundation Trust,19/03/2021,(50552) Qualified Nursing Staff,(id:41858) Acute & General Medicine,MSI GROUP LTD,id:13891831    , 371.23
Department of Health,Guys and St Thomas NHS Foundation Trust,26/03/2021,(50552) Qualified Nursing Staff,(id:41858) Acute & General Medicine,GLOBE LOCUMS LTD,id:13920947 , 294.44
Department of Health,Guys and St Thomas NHS Foundation Trust,26/03/2021,(50552) Qualified Nursing Staff,(id:41858) Acute & General Medicine,GLOBE LOCUMS LTD,id:13921274 , 658.10
Department of Health,Guys and St Thomas NHS Foundation Trust,26/03/2021,(50522) Unqualified Nursing Staff,(id:41858) Acute & General Medicine,MSI GROUP LTD,id:13920940  , 234.22
Department of Health,Guys and St Thomas NHS Foundation Trust,26/03/2021,(50522) Unqualified Nursing Staff,(id:41858) Acute & General Medicine,GLOBE LOCUMS LTD,id:13921133    , 258.75
Department of Health,Guys and St Thomas NHS Foundation Trust,12/03/2021,(50522) Unqualified Nursing Staff,(id:41858) Acute & General Medicine,GLOBE LOCUMS LTD,id:13861351    , 246.40
Department of Health,Guys and St Thomas NHS Foundation Trust,05/03/2021,(50522) Unqualified Nursing Staff,(id:41858) Acute & General Medicine,CARE PROVIDERS HEALTHCARE,id:13832568, 252.06
Department of Health,Guys and St Thomas NHS Foundation Trust,05/03/2021,(50522) Unqualified Nursing Staff,(id:41858) Acute & General Medicine,MSI GROUP LTD,id:13809575  , 269.22
Department of Health,Guys and St Thomas NHS Foundation Trust,19/03/2021,(81700) Lab Equipment Purchase,(id:41858) Acute & General Medicine,NHS SUPPLY CHAIN (MAIDSTONE),id:13815654,  72.07
Department of Health,Guys and St Thomas NHS Foundation Trust,19/03/2021,(81225) Medical Surgical Supplies & Equipment,(id:860419) Acute & General Medicine,NHS SUPPLY CHAIN (MAIDSTONE),id:13795595    ,  95.90
Department of Health,Guys and St Thomas NHS Foundation Trust,12/03/2021,(81225) Medical Surgical Supplies & Equipment,(id:860419) Acute & General Medicine,NHS SUPPLY CHAIN (MAIDSTONE),id:13735674    ,  33.53
Department of Health,Guys and St Thomas NHS Foundation Trust,19/03/2021,(50552) Qualified Nursing Staff,(id:41872) Acute & General Medicine,MSI GROUP LTD,id:13891931    , 331.38
Department of Health,Guys and St Thomas NHS Foundation Trust,26/03/2021,(50552) Qualified Nursing Staff,(id:41872) Acute & General Medicine,CONTINENTAL NURSE LTD,id:13921273 ,2019.52
Department of Health,Guys and St Thomas NHS Foundation Trust,19/03/2021,(84500) Establishment,(id:41869) Acute & General Medicine,HEALTHROTA LTD,id:13882154   , 564.48
Department of Health,Guys and St Thomas NHS Foundation Trust,19/03/2021,(81200) Medical Surgical Supplies & Equipment,(id:41869) Acute & General Medicine,NHS SUPPLY CHAIN (MAIDSTONE),id:13815654,4551.62
Department of Health,Guys and St Thomas NHS Foundation Trust,12/03/2021,(81100) Dressings,(id:41869) Acute & General Medicine,NHS SUPPLY CHAIN (MAIDSTONE),id:13735674   , 555.95
Department of Health,Guys and St Thomas NHS Foundation Trust,19/03/2021,(82800) Bedding & Linen,(id:41868) Acute & General Medicine,NHS SUPPLY CHAIN (MAIDSTONE),id:13795595  ,  20.81
Department of Health,Guys and St Thomas NHS Foundation Trust,12/03/2021,(89595) Non-Healthcare from Foundation Trusts,(id:41868) Acute & General Medicine,SOUTH LONDON AND MAUDSLEY NHS FOUNDATION TRUST,id:13797834  ,    14027.00
Department of Health,Guys and St Thomas NHS Foundation Trust,12/03/2021,(83400) Office Equipment,(id:41868) Acute & General Medicine,NHS SUPPLY CHAIN (MAIDSTONE),id:13735674 ,  18.78
Department of Health,Guys and St Thomas NHS Foundation Trust,12/03/2021,(82800) Bedding & Linen,(id:41882) Acute & General Medicine,NHS SUPPLY CHAIN (MAIDSTONE),id:13735674  ,  88.44
Department of Health,Guys and St Thomas NHS Foundation Trust,19/03/2021,(82800) Bedding & Linen,(id:41882) Acute & General Medicine,NHS SUPPLY CHAIN (MAIDSTONE),id:13815654  ,  46.82
Department of Health,Guys and St Thomas NHS Foundation Trust,19/03/2021,(81200) Medical Surgical Supplies & Equipment,(id:41882) Acute & General Medicine,NHS SUPPLY CHAIN (MAIDSTONE),id:13815654,  44.96
Department of Health,Guys and St Thomas NHS Foundation Trust,12/03/2021,(83400) Office Equipment,(id:41880) Acute & General Medicine,NHS SUPPLY CHAIN (MAIDSTONE),id:13735674 , 160.32
Department of Health,Guys and St Thomas NHS Foundation Trust,19/03/2021,(81100) Dressings,(id:41880) Acute & General Medicine,NHS SUPPLY CHAIN (MAIDSTONE),id:13815654   , 215.87
Department of Health,Guys and St Thomas NHS Foundation Trust,19/03/2021,(81700) Lab Equipment Purchase,(id:41880) Acute & General Medicine,NHS SUPPLY CHAIN (MAIDSTONE),id:13815654,  58.74
Department of Health,Guys and St Thomas NHS Foundation Trust,19/03/2021,(82000) Provisions & Kitchens,(id:41879) Acute & General Medicine,NHS SUPPLY CHAIN (MAIDSTONE),id:13795595 , 125.04
Department of Health,Guys and St Thomas NHS Foundation Trust,12/03/2021,(84500) Establishment,(id:41879) Acute & General Medicine,NHS SUPPLY CHAIN (MAIDSTONE),id:13735674    ,  20.88
Department of Health,Guys and St Thomas NHS Foundation Trust,05/03/2021,(50522) Unqualified Nursing Staff,(id:41879) Acute & General Medicine,MSI GROUP LTD,id:13809606  ,1076.89
Department of Health,Guys and St Thomas NHS Foundation Trust,05/03/2021,(50522) Unqualified Nursing Staff,(id:41879) Acute & General Medicine,MSI GROUP LTD,id:13832823  , 255.97
Department of Health,Guys and St Thomas NHS Foundation Trust,26/03/2021,(50522) Unqualified Nursing Staff,(id:41879) Acute & General Medicine,CARE PROVIDERS HEALTHCARE,id:13921051, 265.31
Department of Health,Guys and St Thomas NHS Foundation Trust,26/03/2021,(50522) Unqualified Nursing Staff,(id:41879) Acute & General Medicine,CARE PROVIDERS HEALTHCARE,id:13920975,1212.72
Department of Health,Guys and St Thomas NHS Foundation Trust,12/03/2021,(50522) Unqualified Nursing Staff,(id:41879) Acute & General Medicine,GENEVA HEALTH INTERNATIONAL LIMITED,id:13832879, 259.97
Department of Health,Guys and St Thomas NHS Foundation Trust,19/03/2021,(50522) Unqualified Nursing Staff,(id:41879) Acute & General Medicine,GLOBE LOCUMS LTD,id:13892004    , 324.95
Department of Health,Guys and St Thomas NHS Foundation Trust,19/03/2021,(81255) Medical Surgical Supplies & Equipment,(id:41879) Acute & General Medicine,NHS SUPPLY CHAIN (MAIDSTONE),id:13795595,   3.12
Department of Health,Guys and St Thomas NHS Foundation Trust,19/03/2021,(81200) Medical Surgical Supplies & Equipment,(id:41879) Acute & General Medicine,NHS SUPPLY CHAIN (MAIDSTONE),id:13795595, 755.46
Department of Health,Guys and St Thomas NHS Foundation Trust,19/03/2021,(81700) Lab Equipment Purchase,(id:41879) Acute & General Medicine,NHS SUPPLY CHAIN (MAIDSTONE),id:13815654,  19.01
Department of Health,Guys and St Thomas NHS Foundation Trust,05/03/2021,(50522) Unqualified Nursing Staff,(id:41878) Acute & General Medicine,CARE PROVIDERS HEALTHCARE,id:13832679, 326.37
Department of Health,Guys and St Thomas NHS Foundation Trust,19/03/2021,(81700) Lab Equipment Purchase,(id:41878) Acute & General Medicine,NHS SUPPLY CHAIN (MAIDSTONE),id:13815654,  31.48
Department of Health,Guys and St Thomas NHS Foundation Trust,05/03/2021,(50200) Consultants,(id:41876) Acute & General Medicine,KINGS COLLEGE LONDON:03529700,id:13785095,2987.41
Department of Health,Guys and St Thomas NHS Foundation Trust,26/03/2021,(81000) Surgical Appliances,(id:41876) Acute & General Medicine,TALAR MADE ORTHOTICS LTD,id:13916875  ,  93.00
Department of Health,Guys and St Thomas NHS Foundation Trust,12/03/2021,(83400) Office Equipment,(id:41881) Acute & General Medicine,NHS SUPPLY CHAIN (MAIDSTONE),id:13735674 ,  76.77
Department of Health,Guys and St Thomas NHS Foundation Trust,19/03/2021,(83400) Office Equipment,(id:41881) Acute & General Medicine,NHS SUPPLY CHAIN (MAIDSTONE),id:13795595 , 123.87
Department of Health,Guys and St Thomas NHS Foundation Trust,19/03/2021,(82800) Bedding & Linen,(id:41881) Acute & General Medicine,NHS SUPPLY CHAIN (MAIDSTONE),id:13795595  , 153.43
Department of Health,Guys and St Thomas NHS Foundation Trust,05/03/2021,(50522) Unqualified Nursing Staff,(id:41881) Acute & General Medicine,CARE PROVIDERS HEALTHCARE,id:13832621, 252.06
Department of Health,Guys and St Thomas NHS Foundation Trust,19/03/2021,(50522) Unqualified Nursing Staff,(id:41881) Acute & General Medicine,MSI GROUP LTD,id:13891776  , 498.88
Department of Health,Guys and St Thomas NHS Foundation Trust,26/03/2021,(50522) Unqualified Nursing Staff,(id:41881) Acute & General Medicine,CARE PROVIDERS HEALTHCARE,id:13921305, 581.08
Department of Health,Guys and St Thomas NHS Foundation Trust,12/03/2021,(50522) Unqualified Nursing Staff,(id:41881) Acute & General Medicine,GENEVA HEALTH INTERNATIONAL LIMITED,id:13832521, 259.97
Department of Health,Guys and St Thomas NHS Foundation Trust,12/03/2021,(50522) Unqualified Nursing Staff,(id:41881) Acute & General Medicine,MSI GROUP LTD,id:13861300  , 568.47
Department of Health,Guys and St Thomas NHS Foundation Trust,19/03/2021,(83400) Office Equipment,(id:42025) Dental Services,NHS SUPPLY CHAIN (MAIDSTONE),id:13795595,  34.60
Department of Health,Guys and St Thomas NHS Foundation Trust,26/03/2021,(81200) Medical Surgical Supplies & Equipment,(id:42025) Dental Services,HENRY SCHEIN,id:13899236, 611.88
Department of Health,Guys and St Thomas NHS Foundation Trust,19/03/2021,(81200) Medical Surgical Supplies & Equipment,(id:42025) Dental Services,NHS SUPPLY CHAIN (MAIDSTONE),id:13815654    ,  11.40
Department of Health,Guys and St Thomas NHS Foundation Trust,19/03/2021,(82800) Bedding & Linen,(id:42007) Dental Services,NHS SUPPLY CHAIN (MAIDSTONE),id:13815654 ,  70.24
Department of Health,Guys and St Thomas NHS Foundation Trust,19/03/2021,(81100) Dressings,(id:42007) Dental Services,NHS SUPPLY CHAIN (MAIDSTONE),id:13815654  ,  43.66
Department of Health,Guys and St Thomas NHS Foundation Trust,26/03/2021,(81200) Medical Surgical Supplies & Equipment,(id:42007) Dental Services,HENRY SCHEIN,id:13864336, 694.92
Department of Health,Guys and St Thomas NHS Foundation Trust,26/03/2021,(81200) Medical Surgical Supplies & Equipment,(id:42007) Dental Services,HENRY SCHEIN,id:13893889, 691.20
Department of Health,Guys and St Thomas NHS Foundation Trust,12/03/2021,(81200) Medical Surgical Supplies & Equipment,(id:42007) Dental Services,HENRY SCHEIN,id:13834812, 956.99
Department of Health,Guys and St Thomas NHS Foundation Trust,19/03/2021,(83400) Office Equipment,(id:42007) Dental Services,NHS SUPPLY CHAIN (MAIDSTONE),id:13815654, 134.65
Department of Health,Guys and St Thomas NHS Foundation Trust,19/03/2021,(83400) Office Equipment,(id:42027) Dental Services,NHS SUPPLY CHAIN (MAIDSTONE),id:13795595,  34.60
Department of Health,Guys and St Thomas NHS Foundation Trust,19/03/2021,(81200) Medical Surgical Supplies & Equipment,(id:42027) Dental Services,NHS SUPPLY CHAIN (MAIDSTONE),id:13795595    ,  21.60
Department of Health,Guys and St Thomas NHS Foundation Trust,12/03/2021,(81200) Medical Surgical Supplies & Equipment,(id:42016) Dental Services,DENTSPLY IH LTD,id:13838018  ,2975.87
Department of Health,Guys and St Thomas NHS Foundation Trust,12/03/2021,(81200) Medical Surgical Supplies & Equipment,(id:42016) Dental Services,DENTSPLY IH LTD,id:13688423  , 502.20
Department of Health,Guys and St Thomas NHS Foundation Trust,12/03/2021,(81200) Medical Surgical Supplies & Equipment,(id:42016) Dental Services,SKILLBOND  DIRECT LTD,id:13852514 , 567.33
Department of Health,Guys and St Thomas NHS Foundation Trust,05/03/2021,(81200) Medical Surgical Supplies & Equipment,(id:42016) Dental Services,DENTSPLY IH LTD,id:13824374  ,2121.58
Department of Health,Guys and St Thomas NHS Foundation Trust,05/03/2021,(81200) Medical Surgical Supplies & Equipment,(id:42016) Dental Services,DENTSPLY IH LTD,id:13824394  , 555.30
Department of Health,Guys and St Thomas NHS Foundation Trust,05/03/2021,(81200) Medical Surgical Supplies & Equipment,(id:42016) Dental Services,DENTSPLY IH LTD,id:13826414  , 599.95
Department of Health,Guys and St Thomas NHS Foundation Trust,05/03/2021,(81200) Medical Surgical Supplies & Equipment,(id:42016) Dental Services,DENTSPLY IH LTD,id:13825796  , 676.37
Department of Health,Guys and St Thomas NHS Foundation Trust,05/03/2021,(81200) Medical Surgical Supplies & Equipment,(id:42016) Dental Services,DENTSPLY IH LTD,id:13826415  , 587.70
Department of Health,Guys and St Thomas NHS Foundation Trust,26/03/2021,(81200) Medical Surgical Supplies & Equipment,(id:42014) Dental Services,CCMED LTD,id:13904458   , 903.00
Department of Health,Guys and St Thomas NHS Foundation Trust,19/03/2021,(83400) Office Equipment,(id:42014) Dental Services,NHS SUPPLY CHAIN (MAIDSTONE),id:13815654,  67.00
Department of Health,Guys and St Thomas NHS Foundation Trust,26/03/2021,(81200) Medical Surgical Supplies & Equipment,(id:1634433) Dental Services,HENRY SCHEIN,id:13905894   , 712.19
Department of Health,Guys and St Thomas NHS Foundation Trust,12/03/2021,(81200) Medical Surgical Supplies & Equipment,(id:1634432) Dental Services,NHS SUPPLY CHAIN (MAIDSTONE),id:13735674  , 142.75
Department of Health,Guys and St Thomas NHS Foundation Trust,19/03/2021,(81200) Medical Surgical Supplies & Equipment,(id:1634432) Dental Services,HENRY SCHEIN,id:13864104   , 647.66
Department of Health,Guys and St Thomas NHS Foundation Trust,05/03/2021,(81700) Lab Equipment Purchase,(id:641456) Specialist Ambulatory Services,OXFORD NANOPORE TECHNOLOGIES LTD,id:13838021    ,4158.00
Department of Health,Guys and St Thomas NHS Foundation Trust,12/03/2021,(81700) Lab Equipment Purchase,(id:641456) Specialist Ambulatory Services,ROCHE DIAGNOSTICS LTD,id:13863736,2659.97
Department of Health,Guys and St Thomas NHS Foundation Trust,12/03/2021,(81700) Lab Equipment Purchase,(id:641456) Specialist Ambulatory Services,OXFORD NANOPORE TECHNOLOGIES LTD,id:13716349    ,    12000.00
Department of Health,Guys and St Thomas NHS Foundation Trust,12/03/2021,(81700) Lab Equipment Purchase,(id:641456) Specialist Ambulatory Services,OXFORD NANOPORE TECHNOLOGIES LTD,id:13716345    ,    12000.00
Department of Health,Guys and St Thomas NHS Foundation Trust,19/03/2021,(81700) Lab Equipment Purchase,(id:641456) Specialist Ambulatory Services,OXFORD NANOPORE TECHNOLOGIES LTD,id:13846855    ,4800.00
Department of Health,Guys and St Thomas NHS Foundation Trust,05/03/2021,(50200) Consultants,(id:42193) Specialist Ambulatory Services,KINGS COLLEGE LONDON:03529700,id:13786134    ,    11516.38
Department of Health,Guys and St Thomas NHS Foundation Trust,05/03/2021,(50203) Consultants,(id:42193) Specialist Ambulatory Services,KINGS COLLEGE LONDON:03529700,id:13785194    ,    10579.35
Department of Health,Guys and St Thomas NHS Foundation Trust,26/03/2021,(89000) Other - Training courses and conferences,(id:42358) Specialist Ambulatory Services,ALAN PHILLIPS,id:13915135 ,3750.00
Department of Health,Guys and St Thomas NHS Foundation Trust,12/03/2021,(84656) Establishment,(id:42358) Specialist Ambulatory Services,DICT8 LIMITED,id:13845597   ,3326.40
Department of Health,Guys and St Thomas NHS Foundation Trust,05/03/2021,(89440) Research and Development,(id:42358) Specialist Ambulatory Services,THE INSTITUTE OF CANCER RESEARCH,id:13834382   ,7715.86
Department of Health,Guys and St Thomas NHS Foundation Trust,05/03/2021,(89440) Research and Development,(id:42358) Specialist Ambulatory Services,THE INSTITUTE OF CANCER RESEARCH,id:13326276   ,7717.47
Department of Health,Guys and St Thomas NHS Foundation Trust,05/03/2021,(81200) Medical Surgical Supplies & Equipment,(id:42354) Specialist Ambulatory Services,NORTH BRISTOL NHS TRUST,id:12575314    ,6892.00
Department of Health,Guys and St Thomas NHS Foundation Trust,10/03/2021,(81700) Lab Equipment Purchase,(id:42354) Specialist Ambulatory Services,BLUEPRINT GENETICS,id:13313098    ,    -1921.77
Department of Health,Guys and St Thomas NHS Foundation Trust,05/03/2021,(89595) Non-Healthcare from Foundation Trusts,(id:42354) Specialist Ambulatory Services,ROYAL DEVON AND EXETER NHS FOUNDATION TRUST,id:3506855, 198.11
Department of Health,Guys and St Thomas NHS Foundation Trust,19/03/2021,(83630) IT Costs,(id:3609419) Specialist Ambulatory Services,EMIS (EGTON MEDICAL INFORMATION SYSTEMS) LTD,id:13877034,    14978.40
Department of Health,Guys and St Thomas NHS Foundation Trust,12/03/2021,(83410) Office Equipment,(id:42100) Specialist Ambulatory Services,RICOH UK LTD,id:13863444 , 267.37
Department of Health,Guys and St Thomas NHS Foundation Trust,19/03/2021,(82800) Bedding & Linen,(id:42091) Specialist Ambulatory Services,NHS SUPPLY CHAIN (MAIDSTONE),id:13815654 , 220.80
Department of Health,Guys and St Thomas NHS Foundation Trust,19/03/2021,(81100) Dressings,(id:42091) Specialist Ambulatory Services,NHS SUPPLY CHAIN (MAIDSTONE),id:13815654  , 178.68
Department of Health,Guys and St Thomas NHS Foundation Trust,26/03/2021,(81000) Surgical Appliances,(id:42091) Specialist Ambulatory Services,TALAR MADE ORTHOTICS LTD,id:13916915 ,  93.00
Department of Health,Guys and St Thomas NHS Foundation Trust,26/03/2021,(81275) Medical Surgical Supplies & Equipment,(id:42088) Specialist Ambulatory Services,CANUTE PHARMA LTD,id:13908476,1106.40
Department of Health,Guys and St Thomas NHS Foundation Trust,19/03/2021,(50200) Consultants,(id:42065) Specialist Ambulatory Services,LEWISHAM AND GREENWICH NHS TRUST,id:11752611 ,1159.08
Department of Health,Guys and St Thomas NHS Foundation Trust,19/03/2021,(81100) Dressings,(id:42079) Specialist Ambulatory Services,NHS SUPPLY CHAIN (MAIDSTONE),id:13815654  , 288.46
Department of Health,Guys and St Thomas NHS Foundation Trust,12/03/2021,(80010) Drug Costs,(id:42079) Specialist Ambulatory Services,THERAKOS (UK) LIMITED,id:13846439   ,    22824.00
Department of Health,Guys and St Thomas NHS Foundation Trust,12/03/2021,(81200) Medical Surgical Supplies & Equipment,(id:42079) Specialist Ambulatory Services,NHS SUPPLY CHAIN (MAIDSTONE),id:13735674    , 567.04
Department of Health,Guys and St Thomas NHS Foundation Trust,12/03/2021,(81100) Dressings,(id:42089) Specialist Ambulatory Services,NHS SUPPLY CHAIN (MAIDSTONE),id:13735674  ,  31.32
Department of Health,Guys and St Thomas NHS Foundation Trust,19/03/2021,(81100) Dressings,(id:391417) Specialist Ambulatory Services,NHS SUPPLY CHAIN (MAIDSTONE),id:13815654 , 106.49
Department of Health,Guys and St Thomas NHS Foundation Trust,19/03/2021,(81200) Medical Surgical Supplies & Equipment,(id:42064) Specialist Ambulatory Services,NHS SUPPLY CHAIN (MAIDSTONE),id:13815654    , 429.60
Department of Health,Guys and St Thomas NHS Foundation Trust,05/03/2021,(81200) Medical Surgical Supplies & Equipment,(id:4632421) Specialist Ambulatory Services,CAREHOME SELECTION LTD (T/A CHS HEALTHCARE),id:13826154  ,    18700.08
Department of Health,Guys and St Thomas NHS Foundation Trust,12/03/2021,(50552) Qualified Nursing Staff,(id:42057) Specialist Ambulatory Services,CONTINENTAL NURSE LTD,id:13861439,1920.75
Department of Health,Guys and St Thomas NHS Foundation Trust,19/03/2021,(81100) Dressings,(id:42050) Specialist Ambulatory Services,NHS SUPPLY CHAIN (MAIDSTONE),id:13795595  , 167.43
Department of Health,Guys and St Thomas NHS Foundation Trust,12/03/2021,(89270) Establishment,(id:42050) Specialist Ambulatory Services,MULTIMEDIA DESIGN,id:13806094    ,1090.00
Department of Health,Guys and St Thomas NHS Foundation Trust,31/03/2021,(53682) Pharmacists,(id:42165) Pharmacy,PRICEWATERHOUSECOOPERS LLP,id:13939953    ,3566.97
Department of Health,Guys and St Thomas NHS Foundation Trust,08/03/2021,(53682) Pharmacists,(id:42165) Pharmacy,PRICEWATERHOUSECOOPERS LLP,id:13845712    ,3544.51
Department of Health,Guys and St Thomas NHS Foundation Trust,17/03/2021,(53682) Pharmacists,(id:42165) Pharmacy,PRICEWATERHOUSECOOPERS LLP,id:13879559    ,1771.47
Department of Health,Guys and St Thomas NHS Foundation Trust,19/03/2021,(81400) Medical Surgical Supplies & Equipment,(id:581409) Pharmacy,VALIDAIR (EURO) LTD,id:13895519    ,1812.50
Department of Health,Guys and St Thomas NHS Foundation Trust,12/03/2021,(81400) Medical Surgical Supplies & Equipment,(id:581409) Pharmacy,VALIDAIR (EURO) LTD,id:13841804    ,6235.00
Department of Health,Guys and St Thomas NHS Foundation Trust,19/03/2021,(82600) Uniforms & Clothing,(id:581409) Pharmacy,NHS SUPPLY CHAIN (MAIDSTONE),id:13795595   ,  59.16
Department of Health,Guys and St Thomas NHS Foundation Trust,19/03/2021,(82800) Bedding & Linen,(id:581409) Pharmacy,NHS SUPPLY CHAIN (MAIDSTONE),id:13815654  ,   3.55
Department of Health,Guys and St Thomas NHS Foundation Trust,19/03/2021,(89120) Other - Legal fees,(id:581409) Pharmacy,BEACHCROFT LLP OFFICE ACCOUNT,id:13891054   , 562.40
Department of Health,Guys and St Thomas NHS Foundation Trust,26/03/2021,(82000) Provisions & Kitchens,(id:581409) Pharmacy,FRESENIUS KABI LTD,id:13841495 ,1564.80
Department of Health,Guys and St Thomas NHS Foundation Trust,26/03/2021,(80010) Drug Costs,(id:42159) Pharmacy,DURBIN PLC,id:13917475 , 882.02
Department of Health,Guys and St Thomas NHS Foundation Trust,26/03/2021,(80010) Drug Costs,(id:42159) Pharmacy,DURBIN PLC,id:13917440 ,1582.15
Department of Health,Guys and St Thomas NHS Foundation Trust,19/03/2021,(81200) Medical Surgical Supplies & Equipment,(id:42159) Pharmacy,NHS SUPPLY CHAIN (MAIDSTONE),id:13815654 ,   6.43
Department of Health,Guys and St Thomas NHS Foundation Trust,19/03/2021,(81400) Medical Surgical Supplies & Equipment,(id:42159) Pharmacy,RIVA EUROPE LTD,id:13890974    ,1232.00
Department of Health,Guys and St Thomas NHS Foundation Trust,26/03/2021,(81400) Medical Surgical Supplies & Equipment,(id:42159) Pharmacy,OPTICAL SCIENCES LTD,id:13923650    , 729.90
Department of Health,Guys and St Thomas NHS Foundation Trust,12/03/2021,(81400) Medical Surgical Supplies & Equipment,(id:42159) Pharmacy,OPTICAL INDEX (UK) LLP,id:13845439  , 828.00
Department of Health,Guys and St Thomas NHS Foundation Trust,27/03/2021,(53682) Pharmacists,(id:42159) Pharmacy,PRICEWATERHOUSECOOPERS LLP,id:13928795    , 961.60
Department of Health,Guys and St Thomas NHS Foundation Trust,27/03/2021,(53682) Pharmacists,(id:42159) Pharmacy,PRICEWATERHOUSECOOPERS LLP,id:13928794    ,1290.14
Department of Health,Guys and St Thomas NHS Foundation Trust,19/03/2021,(83400) Office Equipment,(id:42159) Pharmacy,NHS SUPPLY CHAIN (MAIDSTONE),id:13815654  ,   9.44
Department of Health,Guys and St Thomas NHS Foundation Trust,19/03/2021,(81100) Dressings,(id:42159) Pharmacy,NHS SUPPLY CHAIN (MAIDSTONE),id:13815654    ,  33.90
Department of Health,Guys and St Thomas NHS Foundation Trust,17/03/2021,(53672) Pharmacists,(id:42160) Pharmacy,PRICEWATERHOUSECOOPERS LLP,id:13879559    ,1342.73
Department of Health,Guys and St Thomas NHS Foundation Trust,27/03/2021,(53642) Pharmacists,(id:42160) Pharmacy,PRICEWATERHOUSECOOPERS LLP,id:13928795    ,1049.64
Department of Health,Guys and St Thomas NHS Foundation Trust,12/03/2021,(83410) Office Equipment,(id:42156) Pharmacy,RICOH UK LTD,id:13863444   , 484.53
Department of Health,Guys and St Thomas NHS Foundation Trust,27/03/2021,(53642) Pharmacists,(id:42167) Pharmacy,PRICEWATERHOUSECOOPERS LLP,id:13928794    , 490.82
Department of Health,Guys and St Thomas NHS Foundation Trust,12/03/2021,(83410) Office Equipment,(id:42178) Medical Specialties,RICOH UK LTD,id:13863444  ,  78.25
Department of Health,Guys and St Thomas NHS Foundation Trust,12/03/2021,(84655) Establishment,(id:42178) Medical Specialties,CLARION INTERPRETING LIMITED,id:13845479    ,3984.00
Department of Health,Guys and St Thomas NHS Foundation Trust,12/03/2021,(84655) Establishment,(id:42178) Medical Specialties,CLARION INTERPRETING LIMITED,id:13843374    ,6986.20
Department of Health,Guys and St Thomas NHS Foundation Trust,26/03/2021,(81000) Surgical Appliances,(id:42171) Medical Specialties,TALAR MADE ORTHOTICS LTD,id:13916875  , 394.50
Department of Health,Guys and St Thomas NHS Foundation Trust,19/03/2021,(83400) Office Equipment,(id:42217) Medical Specialties,VIAPATH ANALYTICS LLP,id:13874554   ,1985.00
Department of Health,Guys and St Thomas NHS Foundation Trust,19/03/2021,(81200) Medical Surgical Supplies & Equipment,(id:42217) Medical Specialties,NHS SUPPLY CHAIN (MAIDSTONE),id:13795595, 305.17
Department of Health,Guys and St Thomas NHS Foundation Trust,19/03/2021,(83640) IT Costs,(id:3731419) Medical Specialties,COMPUTACENTER UK LTD,id:13845441,2848.48
Department of Health,Guys and St Thomas NHS Foundation Trust,12/03/2021,(83400) Office Equipment,(id:42251) Medical Specialties,RICOH UK LTD,id:13860174  , 598.68
Department of Health,Guys and St Thomas NHS Foundation Trust,27/03/2021,(51272) Dieticians,(id:42251) Medical Specialties,PRICEWATERHOUSECOOPERS LLP,id:13928795    ,1415.96
Department of Health,Guys and St Thomas NHS Foundation Trust,12/03/2021,(83410) Office Equipment,(id:42251) Medical Specialties,RICOH UK LTD,id:13863444  , 615.52
Department of Health,Guys and St Thomas NHS Foundation Trust,19/03/2021,(82000) Provisions & Kitchens,(id:42250) Medical Specialties,AAH PHARMACEUTICALS LTD,id:13871896 , 668.56
Department of Health,Guys and St Thomas NHS Foundation Trust,19/03/2021,(82000) Provisions & Kitchens,(id:42250) Medical Specialties,AAH PHARMACEUTICALS LTD,id:13871936 , 622.20
Department of Health,Guys and St Thomas NHS Foundation Trust,19/03/2021,(86300) Healthcare from non-NHS bodies,(id:42224) Medical Specialties,L DOLLAY OPTOMETRIST LTD,id:13824435 ,2464.00
Department of Health,Guys and St Thomas NHS Foundation Trust,05/03/2021,(83765) Rent,(id:42224) Medical Specialties,COMMUNITY HEALTH PARTNERSHIPS,id:13837094  , 842.90
Department of Health,Guys and St Thomas NHS Foundation Trust,19/03/2021,(83765) Rent,(id:42224) Medical Specialties,COMMUNITY HEALTH PARTNERSHIPS,id:13840033  , 434.45
Department of Health,Guys and St Thomas NHS Foundation Trust,19/03/2021,(83765) Rent,(id:42224) Medical Specialties,COMMUNITY HEALTH PARTNERSHIPS,id:13836709  , 481.32
Department of Health,Guys and St Thomas NHS Foundation Trust,12/03/2021,(83755) Rental under Operating Lease,(id:42224) Medical Specialties,COMMUNITY HEALTH PARTNERSHIPS,id:13838835   ,1506.08
Department of Health,Guys and St Thomas NHS Foundation Trust,12/03/2021,(83755) Rental under Operating Lease,(id:42224) Medical Specialties,COMMUNITY HEALTH PARTNERSHIPS,id:13838714   ,8508.60
Department of Health,Guys and St Thomas NHS Foundation Trust,19/03/2021,(83755) Rental under Operating Lease,(id:42224) Medical Specialties,COMMUNITY HEALTH PARTNERSHIPS,id:13836615   ,2223.26
Department of Health,Guys and St Thomas NHS Foundation Trust,19/03/2021,(83755) Rental under Operating Lease,(id:42224) Medical Specialties,COMMUNITY HEALTH PARTNERSHIPS,id:13839734   ,3419.68
Department of Health,Guys and St Thomas NHS Foundation Trust,26/03/2021,(83755) Rental under Operating Lease,(id:42224) Medical Specialties,COMMUNITY HEALTH PARTNERSHIPS,id:13839737   ,2223.26
Department of Health,Guys and St Thomas NHS Foundation Trust,26/03/2021,(83755) Rental under Operating Lease,(id:42224) Medical Specialties,COMMUNITY HEALTH PARTNERSHIPS,id:13840000   ,2486.49
Department of Health,Guys and St Thomas NHS Foundation Trust,05/03/2021,(50200) Consultants,(id:42223) Medical Specialties,KINGS COLLEGE LONDON:03529700,id:13784874,7319.47
Department of Health,Guys and St Thomas NHS Foundation Trust,26/03/2021,(83610) IT Costs,(id:42223) Medical Specialties,OFFICE DEPOT UK LTD,id:13792680   , 518.30
Department of Health,Guys and St Thomas NHS Foundation Trust,19/03/2021,(81200) Medical Surgical Supplies & Equipment,(id:42223) Medical Specialties,SENSE MEDICAL LIMITED,id:13869853  ,2976.00
Department of Health,Guys and St Thomas NHS Foundation Trust,05/03/2021,(89600) Non-Healthcare from other NHS bodies,(id:42223) Medical Specialties,NHS BLOOD AND TRANSPLANT,id:13793654,1301.87
Department of Health,Guys and St Thomas NHS Foundation Trust,26/03/2021,(81200) Medical Surgical Supplies & Equipment,(id:42221) Medical Specialties,GLAUKOS UK LTD,id:13922879    ,4747.20
Department of Health,Guys and St Thomas NHS Foundation Trust,19/03/2021,(81225) Medical Surgical Supplies & Equipment,(id:42221) Medical Specialties,CARL ZEISS LTD,id:13786874    ,1200.00
Department of Health,Guys and St Thomas NHS Foundation Trust,19/03/2021,(81200) Medical Surgical Supplies & Equipment,(id:42213) Medical Specialties,NHS SUPPLY CHAIN (MAIDSTONE),id:13815654, 134.50
Department of Health,Guys and St Thomas NHS Foundation Trust,05/03/2021,(50470) Medical Training Grades,(id:42213) Medical Specialties,KINGS COLLEGE LONDON:03529700,id:13785734   ,5174.54
Department of Health,Guys and St Thomas NHS Foundation Trust,05/03/2021,(89595) Non-Healthcare from Foundation Trusts,(id:42213) Medical Specialties,ROYAL DEVON AND EXETER NHS FOUNDATION TRUST,id:13661176,-750.00
Department of Health,Guys and St Thomas NHS Foundation Trust,12/03/2021,(81700) Lab Equipment Purchase,(id:42213) Medical Specialties,NHS SUPPLY CHAIN (MAIDSTONE),id:13735674,  39.46
Department of Health,Guys and St Thomas NHS Foundation Trust,19/03/2021,(81200) Medical Surgical Supplies & Equipment,(id:42208) Medical Specialties,DEXCOM INTERNATIONAL LTD,id:13876155    , 600.00
Department of Health,Guys and St Thomas NHS Foundation Trust,19/03/2021,(81200) Medical Surgical Supplies & Equipment,(id:42208) Medical Specialties,AIR LIQUIDE (HOMECARE) LTD,id:13897414  ,3642.00
Department of Health,Guys and St Thomas NHS Foundation Trust,19/03/2021,(81200) Medical Surgical Supplies & Equipment,(id:42208) Medical Specialties,AIR LIQUIDE (HOMECARE) LTD,id:13897476  ,3366.00
Department of Health,Guys and St Thomas NHS Foundation Trust,19/03/2021,(81200) Medical Surgical Supplies & Equipment,(id:42208) Medical Specialties,INSULET INTERNATIONAL LTD,id:13845421   , 712.08
Department of Health,Guys and St Thomas NHS Foundation Trust,19/03/2021,(81200) Medical Surgical Supplies & Equipment,(id:42208) Medical Specialties,INSULET INTERNATIONAL LTD,id:13874274   , 712.08
Department of Health,Guys and St Thomas NHS Foundation Trust,19/03/2021,(81200) Medical Surgical Supplies & Equipment,(id:42208) Medical Specialties,DEXCOM INTERNATIONAL LTD,id:13876202    , 793.50
Department of Health,Guys and St Thomas NHS Foundation Trust,19/03/2021,(81200) Medical Surgical Supplies & Equipment,(id:42208) Medical Specialties,DEXCOM INTERNATIONAL LTD,id:13876222    , 793.50
Department of Health,Guys and St Thomas NHS Foundation Trust,05/03/2021,(81200) Medical Surgical Supplies & Equipment,(id:42208) Medical Specialties,MEDTRONIC LTD,id:13694884, 704.04
Department of Health,Guys and St Thomas NHS Foundation Trust,05/03/2021,(81200) Medical Surgical Supplies & Equipment,(id:42208) Medical Specialties,INSULET INTERNATIONAL LTD,id:13808757   , 706.32
Department of Health,Guys and St Thomas NHS Foundation Trust,05/03/2021,(81200) Medical Surgical Supplies & Equipment,(id:42208) Medical Specialties,INSULET INTERNATIONAL LTD,id:13808795   , 706.32
Department of Health,Guys and St Thomas NHS Foundation Trust,05/03/2021,(81200) Medical Surgical Supplies & Equipment,(id:42208) Medical Specialties,INSULET INTERNATIONAL LTD,id:13761335   , 712.08
Department of Health,Guys and St Thomas NHS Foundation Trust,05/03/2021,(81200) Medical Surgical Supplies & Equipment,(id:42208) Medical Specialties,INSULET INTERNATIONAL LTD,id:13761295   , 712.08
Department of Health,Guys and St Thomas NHS Foundation Trust,19/03/2021,(81200) Medical Surgical Supplies & Equipment,(id:42208) Medical Specialties,DEXCOM INTERNATIONAL LTD,id:13839294    , 793.50
Department of Health,Guys and St Thomas NHS Foundation Trust,19/03/2021,(81200) Medical Surgical Supplies & Equipment,(id:42208) Medical Specialties,DEXCOM INTERNATIONAL LTD,id:13876025    , 793.50
Department of Health,Guys and St Thomas NHS Foundation Trust,19/03/2021,(81200) Medical Surgical Supplies & Equipment,(id:42208) Medical Specialties,DEXCOM INTERNATIONAL LTD,id:13875934    , 793.50
Department of Health,Guys and St Thomas NHS Foundation Trust,19/03/2021,(81200) Medical Surgical Supplies & Equipment,(id:42208) Medical Specialties,DEXCOM INTERNATIONAL LTD,id:13876021    , 793.50
Department of Health,Guys and St Thomas NHS Foundation Trust,19/03/2021,(81200) Medical Surgical Supplies & Equipment,(id:42208) Medical Specialties,DEXCOM INTERNATIONAL LTD,id:13876121    , 793.50
Department of Health,Guys and St Thomas NHS Foundation Trust,19/03/2021,(81200) Medical Surgical Supplies & Equipment,(id:42208) Medical Specialties,DEXCOM INTERNATIONAL LTD,id:13876241    , 793.50
Department of Health,Guys and St Thomas NHS Foundation Trust,19/03/2021,(81200) Medical Surgical Supplies & Equipment,(id:42208) Medical Specialties,DEXCOM INTERNATIONAL LTD,id:13876256    , 793.50
Department of Health,Guys and St Thomas NHS Foundation Trust,19/03/2021,(81200) Medical Surgical Supplies & Equipment,(id:42208) Medical Specialties,INSULET INTERNATIONAL LTD,id:13874214   ,1412.64
Department of Health,Guys and St Thomas NHS Foundation Trust,05/03/2021,(81200) Medical Surgical Supplies & Equipment,(id:42208) Medical Specialties,INSULET INTERNATIONAL LTD,id:13772674   , 712.08
Department of Health,Guys and St Thomas NHS Foundation Trust,05/03/2021,(81200) Medical Surgical Supplies & Equipment,(id:42208) Medical Specialties,INSULET INTERNATIONAL LTD,id:13792006   , 712.08
Department of Health,Guys and St Thomas NHS Foundation Trust,05/03/2021,(81200) Medical Surgical Supplies & Equipment,(id:42208) Medical Specialties,INSULET INTERNATIONAL LTD,id:13791554   , 712.08
Department of Health,Guys and St Thomas NHS Foundation Trust,05/03/2021,(81200) Medical Surgical Supplies & Equipment,(id:42208) Medical Specialties,DEXCOM INTERNATIONAL LTD,id:13756234    , 793.50
Department of Health,Guys and St Thomas NHS Foundation Trust,05/03/2021,(81200) Medical Surgical Supplies & Equipment,(id:42208) Medical Specialties,DEXCOM INTERNATIONAL LTD,id:13812654    , 793.50
Department of Health,Guys and St Thomas NHS Foundation Trust,05/03/2021,(81200) Medical Surgical Supplies & Equipment,(id:42208) Medical Specialties,MEDTRONIC LTD,id:13746893, 850.50
Department of Health,Guys and St Thomas NHS Foundation Trust,26/03/2021,(81200) Medical Surgical Supplies & Equipment,(id:42208) Medical Specialties,MEDTRONIC LTD,id:13845931, 585.00
Department of Health,Guys and St Thomas NHS Foundation Trust,26/03/2021,(81200) Medical Surgical Supplies & Equipment,(id:42208) Medical Specialties,MEDTRONIC LTD,id:13792510, 708.75
Department of Health,Guys and St Thomas NHS Foundation Trust,26/03/2021,(81200) Medical Surgical Supplies & Equipment,(id:42208) Medical Specialties,ROCHE DIABETES CARE LIMITED,id:13880016 ,2994.00
Department of Health,Guys and St Thomas NHS Foundation Trust,12/03/2021,(83400) Office Equipment,(id:42208) Medical Specialties,NHS SUPPLY CHAIN (MAIDSTONE),id:13735674 ,  59.68
Department of Health,Guys and St Thomas NHS Foundation Trust,19/03/2021,(81100) Dressings,(id:42206) Medical Specialties,NHS SUPPLY CHAIN (MAIDSTONE),id:13795595   , 312.08
Department of Health,Guys and St Thomas NHS Foundation Trust,05/03/2021,(81200) Medical Surgical Supplies & Equipment,(id:42206) Medical Specialties,UNIMED ELECTRODE SUPPLIES,id:13816162   ,1242.00
Department of Health,Guys and St Thomas NHS Foundation Trust,19/03/2021,(81200) Medical Surgical Supplies & Equipment,(id:42206) Medical Specialties,NHS SUPPLY CHAIN (MAIDSTONE),id:13815654, 331.20
Department of Health,Guys and St Thomas NHS Foundation Trust,19/03/2021,(83400) Office Equipment,(id:302405) Medical Specialties,NHS SUPPLY CHAIN (MAIDSTONE),id:13795595,  28.02
Department of Health,Guys and St Thomas NHS Foundation Trust,19/03/2021,(82000) Provisions & Kitchens,(id:302405) Medical Specialties,NHS SUPPLY CHAIN (MAIDSTONE),id:13795595,   7.81
Department of Health,Guys and St Thomas NHS Foundation Trust,12/03/2021,(81200) Medical Surgical Supplies & Equipment,(id:302405) Medical Specialties,NHS SUPPLY CHAIN (MAIDSTONE),id:13735674    ,1814.40
Department of Health,Guys and St Thomas NHS Foundation Trust,19/03/2021,(83400) Office Equipment,(id:42205) Medical Specialties,NHS SUPPLY CHAIN (MAIDSTONE),id:13815654 ,  30.14
Department of Health,Guys and St Thomas NHS Foundation Trust,26/03/2021,(81200) Medical Surgical Supplies & Equipment,(id:42205) Medical Specialties,H-SQUARED (A DIV OF UK ELECTRIC LTD),id:13923491  , 502.08
Department of Health,Guys and St Thomas NHS Foundation Trust,19/03/2021,(81200) Medical Surgical Supplies & Equipment,(id:41937) Medical Specialties,NHS SUPPLY CHAIN (MAIDSTONE),id:13815654, 142.57
Department of Health,Guys and St Thomas NHS Foundation Trust,19/03/2021,(81200) Medical Surgical Supplies & Equipment,(id:41937) Medical Specialties,MEDTRONIC LTD,id:13834735,1359.00
Department of Health,Guys and St Thomas NHS Foundation Trust,05/03/2021,(84656) Establishment,(id:41937) Medical Specialties,DICT8 LIMITED,id:13825154    , 668.64
Department of Health,Guys and St Thomas NHS Foundation Trust,27/03/2021,(51862) Physiotherapists,(id:4747419) Therapies and Rehabilitation,PRICEWATERHOUSECOOPERS LLP,id:13928795  ,1270.02
Department of Health,Guys and St Thomas NHS Foundation Trust,31/03/2021,(51862) Physiotherapists,(id:4747419) Therapies and Rehabilitation,PRICEWATERHOUSECOOPERS LLP,id:13939953  ,1270.02
Department of Health,Guys and St Thomas NHS Foundation Trust,08/03/2021,(51862) Physiotherapists,(id:42232) Therapies and Rehabilitation,PRICEWATERHOUSECOOPERS LLP,id:13845712    ,5889.26
Department of Health,Guys and St Thomas NHS Foundation Trust,08/03/2021,(51872) Physiotherapists,(id:42232) Therapies and Rehabilitation,PRICEWATERHOUSECOOPERS LLP,id:13845712    , 374.86
Department of Health,Guys and St Thomas NHS Foundation Trust,12/03/2021,(81225) Medical Surgical Supplies & Equipment,(id:42231) Therapies and Rehabilitation,NHS SUPPLY CHAIN (MAIDSTONE),id:13735674 ,  27.84
Department of Health,Guys and St Thomas NHS Foundation Trust,31/03/2021,(51862) Physiotherapists,(id:42230) Therapies and Rehabilitation,PRICEWATERHOUSECOOPERS LLP,id:13939953    ,4126.33
Department of Health,Guys and St Thomas NHS Foundation Trust,31/03/2021,(51832) Physiotherapists,(id:42230) Therapies and Rehabilitation,PRICEWATERHOUSECOOPERS LLP,id:13939953    , 291.14
Department of Health,Guys and St Thomas NHS Foundation Trust,17/03/2021,(51472) Occupational Therapists,(id:42240) Therapies and Rehabilitation,PRICEWATERHOUSECOOPERS LLP,id:13879559  ,1403.25
Department of Health,Guys and St Thomas NHS Foundation Trust,12/03/2021,(81100) Dressings,(id:42239) Therapies and Rehabilitation,NHS SUPPLY CHAIN (MAIDSTONE),id:13735674    ,2147.11
Department of Health,Guys and St Thomas NHS Foundation Trust,12/03/2021,(81100) Dressings,(id:42239) Therapies and Rehabilitation,PERFORMANCE HEALTH INTERNATIONAL LTD (PATTERSON),id:13767454    ,  35.45
Department of Health,Guys and St Thomas NHS Foundation Trust,12/03/2021,(81225) Medical Surgical Supplies & Equipment,(id:42239) Therapies and Rehabilitation,NHS SUPPLY CHAIN (MAIDSTONE),id:13735674 ,  17.78
Department of Health,Guys and St Thomas NHS Foundation Trust,19/03/2021,(81200) Medical Surgical Supplies & Equipment,(id:42239) Therapies and Rehabilitation,PERFORMANCE HEALTH INTERNATIONAL LTD (PATTERSON),id:13840948 ,  30.82
Department of Health,Guys and St Thomas NHS Foundation Trust,19/03/2021,(81100) Dressings,(id:590530) Therapies and Rehabilitation,NHS SUPPLY CHAIN (MAIDSTONE),id:13795595   ,  28.56
Department of Health,Guys and St Thomas NHS Foundation Trust,19/03/2021,(81200) Medical Surgical Supplies & Equipment,(id:590490) Therapies and Rehabilitation,NHS SUPPLY CHAIN (MAIDSTONE),id:13795595,  16.42
Department of Health,Guys and St Thomas NHS Foundation Trust,17/03/2021,(53062) Speech Therapists,(id:42248) Therapies and Rehabilitation,PRICEWATERHOUSECOOPERS LLP,id:13879559   , 703.08
Department of Health,Guys and St Thomas NHS Foundation Trust,19/03/2021,(81200) Medical Surgical Supplies & Equipment,(id:42247) Therapies and Rehabilitation,KAPITEX HEALTHCARE LTD,id:13838314  ,  28.20
Department of Health,Guys and St Thomas NHS Foundation Trust,05/03/2021,(81200) Medical Surgical Supplies & Equipment,(id:590499) Therapies and Rehabilitation,INVACARE LTD,id:13713175 ,2872.80
Department of Health,Guys and St Thomas NHS Foundation Trust,05/03/2021,(81225) Medical Surgical Supplies & Equipment,(id:590499) Therapies and Rehabilitation,SUNRISE MEDICAL LIMITED,id:13803794, 535.68
Department of Health,Guys and St Thomas NHS Foundation Trust,05/03/2021,(81225) Medical Surgical Supplies & Equipment,(id:590499) Therapies and Rehabilitation,RGK WHEELCHAIRS LTD,id:13803974    ,4435.74
Department of Health,Guys and St Thomas NHS Foundation Trust,19/03/2021,(81225) Medical Surgical Supplies & Equipment,(id:590498) Therapies and Rehabilitation,JANE SAUNDERS & MANNING LTD,id:13880914 , 574.67
Department of Health,Guys and St Thomas NHS Foundation Trust,05/03/2021,(81000) Surgical Appliances,(id:590498) Therapies and Rehabilitation,REED MEDICAL LIMITED,id:13707215 , 731.47
Department of Health,Guys and St Thomas NHS Foundation Trust,26/03/2021,(81000) Surgical Appliances,(id:590498) Therapies and Rehabilitation,ANATOMICAL CONCEPTS (UK) LTD,id:13804974   ,6048.00
Department of Health,Guys and St Thomas NHS Foundation Trust,19/03/2021,(81000) Surgical Appliances,(id:590498) Therapies and Rehabilitation,BRACE ORTHOPAEDIC,id:13881823    , 726.00
Department of Health,Guys and St Thomas NHS Foundation Trust,19/03/2021,(81000) Surgical Appliances,(id:590498) Therapies and Rehabilitation,ANATOMICAL CONCEPTS (UK) LTD,id:13706914   ,6496.14
Department of Health,Guys and St Thomas NHS Foundation Trust,19/03/2021,(81400) Medical Surgical Supplies & Equipment,(id:590498) Therapies and Rehabilitation,NPD ORTHOTICS LTD,id:13881174 , 585.24
Department of Health,Guys and St Thomas NHS Foundation Trust,19/03/2021,(82800) Bedding & Linen,(id:590496) Therapies and Rehabilitation,NHS SUPPLY CHAIN (MAIDSTONE),id:13795595  ,  46.82
Department of Health,Guys and St Thomas NHS Foundation Trust,19/03/2021,(81100) Dressings,(id:1042419) Therapies and Rehabilitation,NHS SUPPLY CHAIN (MAIDSTONE),id:13795595  , 211.22
Department of Health,Guys and St Thomas NHS Foundation Trust,05/03/2021,(81200) Medical Surgical Supplies & Equipment,(id:1042419) Therapies and Rehabilitation,AAL LTD,id:13806515,1000.80
Department of Health,Guys and St Thomas NHS Foundation Trust,12/03/2021,(83400) Office Equipment,(id:1042419) Therapies and Rehabilitation,ASSIST SECURITY LIMITED,id:13852114,3840.00
Department of Health,Guys and St Thomas NHS Foundation Trust,19/03/2021,(83500) Furniture & Fittings,(id:1042419) Therapies and Rehabilitation,NHS SUPPLY CHAIN (MAIDSTONE),id:13795595 , 107.52
Department of Health,Guys and St Thomas NHS Foundation Trust,26/03/2021,(81200) Medical Surgical Supplies & Equipment,(id:4556419) Clinical Imaging & Med Physics,SCC PLC)SPECIALIST COMPUTER CENTRES,id:13899974,  18.00
Department of Health,Guys and St Thomas NHS Foundation Trust,27/03/2021,(52072) Radiographers,(id:42368) Clinical Imaging & Med Physics,PRICEWATERHOUSECOOPERS LLP,id:13928794,    10639.80
Department of Health,Guys and St Thomas NHS Foundation Trust,27/03/2021,(52062) Radiographers,(id:42368) Clinical Imaging & Med Physics,PRICEWATERHOUSECOOPERS LLP,id:13928794,4507.32
Department of Health,Guys and St Thomas NHS Foundation Trust,12/03/2021,(82600) Uniforms & Clothing,(id:42367) Clinical Imaging & Med Physics,BUNZL HEALTHCARE,id:13844677    , 572.58
Department of Health,Guys and St Thomas NHS Foundation Trust,12/03/2021,(82000) Provisions & Kitchens,(id:42367) Clinical Imaging & Med Physics,NHS SUPPLY CHAIN (MAIDSTONE),id:13735674,  31.45
Department of Health,Guys and St Thomas NHS Foundation Trust,19/03/2021,(83400) Office Equipment,(id:42367) Clinical Imaging & Med Physics,NHS SUPPLY CHAIN (MAIDSTONE),id:13815654, 192.08
Department of Health,Guys and St Thomas NHS Foundation Trust,19/03/2021,(81100) Dressings,(id:42367) Clinical Imaging & Med Physics,NHS SUPPLY CHAIN (MAIDSTONE),id:13795595  , 734.69
Department of Health,Guys and St Thomas NHS Foundation Trust,19/03/2021,(81400) Medical Surgical Supplies & Equipment,(id:42367) Clinical Imaging & Med Physics,NHS SUPPLY CHAIN ( CAPITAL FUND ONLY),id:13893821,6437.49
Department of Health,Guys and St Thomas NHS Foundation Trust,19/03/2021,(81400) Medical Surgical Supplies & Equipment,(id:42367) Clinical Imaging & Med Physics,NHS SUPPLY CHAIN ( CAPITAL FUND ONLY),id:13893892,7860.33
Department of Health,Guys and St Thomas NHS Foundation Trust,12/03/2021,(81200) Medical Surgical Supplies & Equipment,(id:42367) Clinical Imaging & Med Physics,COOK UK LTD,id:13742950 ,1920.00
Department of Health,Guys and St Thomas NHS Foundation Trust,19/03/2021,(81200) Medical Surgical Supplies & Equipment,(id:42367) Clinical Imaging & Med Physics,NHS SUPPLY CHAIN (MAIDSTONE),id:13815654    ,4573.80
Department of Health,Guys and St Thomas NHS Foundation Trust,19/03/2021,(81200) Medical Surgical Supplies & Equipment,(id:42367) Clinical Imaging & Med Physics,BOSTON SCIENTIFIC LTD,id:13810880 , 554.40
Department of Health,Guys and St Thomas NHS Foundation Trust,26/03/2021,(81200) Medical Surgical Supplies & Equipment,(id:42367) Clinical Imaging & Med Physics,MACROMED (UK) LTD,id:13904894, 558.00
Department of Health,Guys and St Thomas NHS Foundation Trust,12/03/2021,(81200) Medical Surgical Supplies & Equipment,(id:42367) Clinical Imaging & Med Physics,ABBOTT MEDICAL UK LTD,id:13755620 ,3900.00
Department of Health,Guys and St Thomas NHS Foundation Trust,12/03/2021,(81200) Medical Surgical Supplies & Equipment,(id:42367) Clinical Imaging & Med Physics,VOLCANO EUROPE BVBA/SPRL,id:13844619   , 834.00
Department of Health,Guys and St Thomas NHS Foundation Trust,05/03/2021,(81200) Medical Surgical Supplies & Equipment,(id:42367) Clinical Imaging & Med Physics,TERUMO UK LTD,id:13810424    ,1254.00
Department of Health,Guys and St Thomas NHS Foundation Trust,05/03/2021,(81200) Medical Surgical Supplies & Equipment,(id:42367) Clinical Imaging & Med Physics,BOSTON SCIENTIFIC LTD,id:13752332 ,1344.00
Department of Health,Guys and St Thomas NHS Foundation Trust,26/03/2021,(81200) Medical Surgical Supplies & Equipment,(id:42367) Clinical Imaging & Med Physics,VOLCANO EUROPE BVBA/SPRL,id:13910515   , 834.00
Department of Health,Guys and St Thomas NHS Foundation Trust,05/03/2021,(81500) X Ray Equipment Purchase,(id:42367) Clinical Imaging & Med Physics,BAYER PLC,id:13806096 ,3360.00
Department of Health,Guys and St Thomas NHS Foundation Trust,19/03/2021,(81700) Lab Equipment Purchase,(id:42367) Clinical Imaging & Med Physics,NHS SUPPLY CHAIN (MAIDSTONE),id:13795595    ,   3.12
Department of Health,Guys and St Thomas NHS Foundation Trust,19/03/2021,(81100) Dressings,(id:42366) Clinical Imaging & Med Physics,NHS SUPPLY CHAIN (MAIDSTONE),id:13815654  , 113.40
Department of Health,Guys and St Thomas NHS Foundation Trust,12/03/2021,(81200) Medical Surgical Supplies & Equipment,(id:42366) Clinical Imaging & Med Physics,HOLOGIC UK LTD,id:13840029   ,2040.00
Department of Health,Guys and St Thomas NHS Foundation Trust,19/03/2021,(81200) Medical Surgical Supplies & Equipment,(id:42366) Clinical Imaging & Med Physics,NHS SUPPLY CHAIN (MAIDSTONE),id:13815654    ,1562.03
Department of Health,Guys and St Thomas NHS Foundation Trust,19/03/2021,(81500) X Ray Equipment Purchase,(id:42366) Clinical Imaging & Med Physics,BAYER PLC,id:13893716 , 710.40
Department of Health,Guys and St Thomas NHS Foundation Trust,12/03/2021,(81500) X Ray Equipment Purchase,(id:42366) Clinical Imaging & Med Physics,BAYER PLC,id:13844477 ,1680.00
Department of Health,Guys and St Thomas NHS Foundation Trust,26/03/2021,(83400) Office Equipment,(id:4187419) Clinical Imaging & Med Physics,BAYER PLC,id:13917517  ,2112.00
Department of Health,Guys and St Thomas NHS Foundation Trust,26/03/2021,(81200) Medical Surgical Supplies & Equipment,(id:4187419) Clinical Imaging & Med Physics,ADVANCED ACCELERATOR APPLICATIONS (UK & IRELAND) LTD,id:13905515   ,    16690.50
Department of Health,Guys and St Thomas NHS Foundation Trust,26/03/2021,(81200) Medical Surgical Supplies & Equipment,(id:4187419) Clinical Imaging & Med Physics,ADVANCED ACCELERATOR APPLICATIONS (UK & IRELAND) LTD,id:13905314   ,   -14080.75
Department of Health,Guys and St Thomas NHS Foundation Trust,19/03/2021,(81500) X Ray Equipment Purchase,(id:4187419) Clinical Imaging & Med Physics,CURIUM PHARMA UK LTD,id:13875154   ,    21552.00
Department of Health,Guys and St Thomas NHS Foundation Trust,12/03/2021,(83400) Office Equipment,(id:42372) Clinical Imaging & Med Physics,BAYER PLC,id:13844474    ,2112.00
Department of Health,Guys and St Thomas NHS Foundation Trust,12/03/2021,(83410) Office Equipment,(id:42372) Clinical Imaging & Med Physics,RICOH UK LTD,id:13863444 , 873.65
Department of Health,Guys and St Thomas NHS Foundation Trust,05/03/2021,(81200) Medical Surgical Supplies & Equipment,(id:42372) Clinical Imaging & Med Physics,WICKHAM LABORATORIES LTD,id:13820155   ,1274.00
Department of Health,Guys and St Thomas NHS Foundation Trust,19/03/2021,(81275) Medical Surgical Supplies & Equipment,(id:42372) Clinical Imaging & Med Physics,CURIUM PHARMA UK LTD,id:13685896  , 984.00
Department of Health,Guys and St Thomas NHS Foundation Trust,09/03/2021,(81500) X Ray Equipment Purchase,(id:42372) Clinical Imaging & Med Physics,ABX GMBH,id:13467097  ,-597.24
Department of Health,Guys and St Thomas NHS Foundation Trust,05/03/2021,(50200) Consultants,(id:42372) Clinical Imaging & Med Physics,KINGS COLLEGE LONDON:03529700,id:13786314    ,3935.66
Department of Health,Guys and St Thomas NHS Foundation Trust,26/03/2021,(83400) Office Equipment,(id:42381) Clinical Imaging & Med Physics,MAXICAM LTD,id:13915834  , 678.72
Department of Health,Guys and St Thomas NHS Foundation Trust,19/03/2021,(81400) Medical Surgical Supplies & Equipment,(id:42379) Clinical Imaging & Med Physics,SPACELABS HEALTHCARE LTD,id:13869674   , 425.00
Department of Health,Guys and St Thomas NHS Foundation Trust,12/03/2021,(81400) Medical Surgical Supplies & Equipment,(id:42379) Clinical Imaging & Med Physics,B.BRAUN MEDICAL LTD,id:13727694   ,1400.00
Department of Health,Guys and St Thomas NHS Foundation Trust,19/03/2021,(81200) Medical Surgical Supplies & Equipment,(id:42379) Clinical Imaging & Med Physics,QED - QUALITY ENDODONTIC DISTRIBUTORS LTD,id:13868954 ,  18.24
Department of Health,Guys and St Thomas NHS Foundation Trust,19/03/2021,(81200) Medical Surgical Supplies & Equipment,(id:42379) Clinical Imaging & Med Physics,NHS SUPPLY CHAIN (MAIDSTONE),id:13795595    , 142.50
Department of Health,Guys and St Thomas NHS Foundation Trust,12/03/2021,(81200) Medical Surgical Supplies & Equipment,(id:42379) Clinical Imaging & Med Physics,BECTON DICKINSON UK LTD,id:13354597    ,3787.01
Department of Health,Guys and St Thomas NHS Foundation Trust,12/03/2021,(81200) Medical Surgical Supplies & Equipment,(id:42379) Clinical Imaging & Med Physics,BECTON DICKINSON (CME) UK LTD,id:13845637   ,1407.60
Department of Health,Guys and St Thomas NHS Foundation Trust,12/03/2021,(81200) Medical Surgical Supplies & Equipment,(id:42379) Clinical Imaging & Med Physics,NHS SUPPLY CHAIN (MAIDSTONE),id:13735674    , 344.48
Department of Health,Guys and St Thomas NHS Foundation Trust,26/03/2021,(81200) Medical Surgical Supplies & Equipment,(id:42379) Clinical Imaging & Med Physics,BECTON DICKINSON (CME) UK LTD,id:13879934   , 622.80
Department of Health,Guys and St Thomas NHS Foundation Trust,26/03/2021,(81200) Medical Surgical Supplies & Equipment,(id:42379) Clinical Imaging & Med Physics,EURO ENERGY RESOURCES LTD,id:13868115  ,1170.00
Department of Health,Guys and St Thomas NHS Foundation Trust,08/03/2021,(52062) Radiographers,(id:42377) Clinical Imaging & Med Physics,PRICEWATERHOUSECOOPERS LLP,id:13845712,5109.49
Department of Health,Guys and St Thomas NHS Foundation Trust,19/03/2021,(81500) X Ray Equipment Purchase,(id:42376) Clinical Imaging & Med Physics,XIEL LTD,id:13808014  , 511.99
Department of Health,Guys and St Thomas NHS Foundation Trust,26/03/2021,(81250) Medical Surgical Supplies & Equipment,(id:1348419) Clinical Imaging & Med Physics,AQUILANT CRITICAL CARE,id:13922975   ,1044.00
Department of Health,Guys and St Thomas NHS Foundation Trust,05/03/2021,(81250) Medical Surgical Supplies & Equipment,(id:1348419) Clinical Imaging & Med Physics,AQUILANT LTD,id:13800254   ,3132.00
Department of Health,Guys and St Thomas NHS Foundation Trust,19/03/2021,(83765) Rent,(id:42255) Integrated Local Services,RICHARD KNIGHT,id:13876434 ,2560.00
Department of Health,Guys and St Thomas NHS Foundation Trust,19/03/2021,(83820) Building & Engineering,(id:590595) Integrated Local Services,TECHNIBLINDS LTD,id:13631751, 768.88
Department of Health,Guys and St Thomas NHS Foundation Trust,05/03/2021,(83880) Building & Engineering,(id:590427) Integrated Local Services,LAZERBEAM FIRE AND SECURITY LTD,id:13796914,1874.00
Department of Health,Guys and St Thomas NHS Foundation Trust,26/03/2021,(83880) Building & Engineering,(id:590427) Integrated Local Services,LAZERBEAM FIRE AND SECURITY LTD,id:13797334,2050.28
Department of Health,Guys and St Thomas NHS Foundation Trust,26/03/2021,(84501) Establishment,(id:590577) Integrated Local Services,NDR NUTRITION & DIET RESOURCES (NDR) UK,id:9405211  , 625.00
Department of Health,Guys and St Thomas NHS Foundation Trust,26/03/2021,(81200) Medical Surgical Supplies & Equipment,(id:590575) Integrated Local Services,NDR NUTRITION & DIET RESOURCES (NDR) UK,id:9405211   ,  12.00
Department of Health,Guys and St Thomas NHS Foundation Trust,08/03/2021,(53072) Speech Therapists,(id:590495) Integrated Local Services,PRICEWATERHOUSECOOPERS LLP,id:13845712,  12.52
Department of Health,Guys and St Thomas NHS Foundation Trust,19/03/2021,(83400) Office Equipment,(id:1885424) Integrated Local Services,NHS SUPPLY CHAIN (MAIDSTONE),id:13815654   ,  42.70
Department of Health,Guys and St Thomas NHS Foundation Trust,26/03/2021,(50562) Qualified Nursing Staff,(id:1885424) Integrated Local Services,MSI GROUP LTD,id:13920939 ,1468.40
Department of Health,Guys and St Thomas NHS Foundation Trust,31/03/2021,(51832) Physiotherapists,(id:699422) Integrated Local Services,PRICEWATERHOUSECOOPERS LLP,id:13939953 ,5169.27
Department of Health,Guys and St Thomas NHS Foundation Trust,27/03/2021,(51862) Physiotherapists,(id:590492) Integrated Local Services,PRICEWATERHOUSECOOPERS LLP,id:13928794 ,1208.31
Department of Health,Guys and St Thomas NHS Foundation Trust,27/03/2021,(51472) Occupational Therapists,(id:1888419) Integrated Local Services,PRICEWATERHOUSECOOPERS LLP,id:13928795   , 609.88
Department of Health,Guys and St Thomas NHS Foundation Trust,19/03/2021,(81200) Medical Surgical Supplies & Equipment,(id:684420) Integrated Local Services,NHS SUPPLY CHAIN (MAIDSTONE),id:13795595   , 292.73
Department of Health,Guys and St Thomas NHS Foundation Trust,27/03/2021,(51462) Occupational Therapists,(id:684419) Integrated Local Services,PRICEWATERHOUSECOOPERS LLP,id:13928795    ,1271.00
Department of Health,Guys and St Thomas NHS Foundation Trust,08/03/2021,(51862) Physiotherapists,(id:684419) Integrated Local Services,PRICEWATERHOUSECOOPERS LLP,id:13845712 ,3819.17
Department of Health,Guys and St Thomas NHS Foundation Trust,31/03/2021,(51862) Physiotherapists,(id:684419) Integrated Local Services,PRICEWATERHOUSECOOPERS LLP,id:13939953 ,4712.86
Department of Health,Guys and St Thomas NHS Foundation Trust,19/03/2021,(81100) Dressings,(id:590521) Integrated Local Services,NHS SUPPLY CHAIN (MAIDSTONE),id:13815654 ,   2.20
Department of Health,Guys and St Thomas NHS Foundation Trust,05/03/2021,(84500) Establishment,(id:590520) Integrated Local Services,CDP  PRINT MANAGEMENT,id:13818414    , 601.32
Department of Health,Guys and St Thomas NHS Foundation Trust,19/03/2021,(83400) Office Equipment,(id:590520) Integrated Local Services,NHS SUPPLY CHAIN (MAIDSTONE),id:13815654    ,  51.89
Department of Health,Guys and St Thomas NHS Foundation Trust,05/03/2021,(50552) Qualified Nursing Staff,(id:590520) Integrated Local Services,YOUR WORLD RECRUITMENT LIMITED(YOUR WORLD HEALTHCARE),id:13798999  , 987.75
Department of Health,Guys and St Thomas NHS Foundation Trust,12/03/2021,(83400) Office Equipment,(id:590473) Integrated Local Services,NHS SUPPLY CHAIN (MAIDSTONE),id:13735674    ,   3.77
Department of Health,Guys and St Thomas NHS Foundation Trust,19/03/2021,(81100) Dressings,(id:590473) Integrated Local Services,NHS SUPPLY CHAIN (MAIDSTONE),id:13795595 , 215.48
Department of Health,Guys and St Thomas NHS Foundation Trust,12/03/2021,(81200) Medical Surgical Supplies & Equipment,(id:590473) Integrated Local Services,NHS SUPPLY CHAIN (MAIDSTONE),id:13735674   ,2817.84
Department of Health,Guys and St Thomas NHS Foundation Trust,19/03/2021,(81700) Lab Equipment Purchase,(id:590473) Integrated Local Services,NHS SUPPLY CHAIN (MAIDSTONE),id:13815654   ,  41.38
Department of Health,Guys and St Thomas NHS Foundation Trust,19/03/2021,(81230) Medical Surgical Supplies & Equipment,(id:590471) Integrated Local Services,NHS SUPPLY CHAIN (MAIDSTONE),id:13795595   , 201.30
Department of Health,Guys and St Thomas NHS Foundation Trust,19/03/2021,(82600) Uniforms & Clothing,(id:590471) Integrated Local Services,NHS SUPPLY CHAIN (MAIDSTONE),id:13795595 ,   5.40
Department of Health,Guys and St Thomas NHS Foundation Trust,12/03/2021,(81230) Medical Surgical Supplies & Equipment,(id:590470) Integrated Local Services,NHS SUPPLY CHAIN (MAIDSTONE),id:13735674   ,  40.26
Department of Health,Guys and St Thomas NHS Foundation Trust,12/03/2021,(81200) Medical Surgical Supplies & Equipment,(id:590481) Integrated Local Services,NHS SUPPLY CHAIN (MAIDSTONE),id:13830694   ,1239.64
Department of Health,Guys and St Thomas NHS Foundation Trust,12/03/2021,(81200) Medical Surgical Supplies & Equipment,(id:590481) Integrated Local Services,NHS SUPPLY CHAIN (MAIDSTONE),id:13702874   , 635.12
Department of Health,Guys and St Thomas NHS Foundation Trust,12/03/2021,(81200) Medical Surgical Supplies & Equipment,(id:590481) Integrated Local Services,NHS SUPPLY CHAIN (MAIDSTONE),id:13830119   ,5570.59
Department of Health,Guys and St Thomas NHS Foundation Trust,12/03/2021,(81200) Medical Surgical Supplies & Equipment,(id:590481) Integrated Local Services,NHS SUPPLY CHAIN (MAIDSTONE),id:13705416   ,3226.73
Department of Health,Guys and St Thomas NHS Foundation Trust,12/03/2021,(81200) Medical Surgical Supplies & Equipment,(id:590481) Integrated Local Services,NHS SUPPLY CHAIN (MAIDSTONE),id:13830734   ,7888.84
Department of Health,Guys and St Thomas NHS Foundation Trust,12/03/2021,(81200) Medical Surgical Supplies & Equipment,(id:590481) Integrated Local Services,NHS SUPPLY CHAIN (MAIDSTONE),id:13702096   ,8884.13
Department of Health,Guys and St Thomas NHS Foundation Trust,12/03/2021,(81200) Medical Surgical Supplies & Equipment,(id:590481) Integrated Local Services,NHS SUPPLY CHAIN (MAIDSTONE),id:13678374   , 842.11
Department of Health,Guys and St Thomas NHS Foundation Trust,12/03/2021,(81200) Medical Surgical Supplies & Equipment,(id:590481) Integrated Local Services,NHS SUPPLY CHAIN (MAIDSTONE),id:13702175   ,1011.45
Department of Health,Guys and St Thomas NHS Foundation Trust,12/03/2021,(81200) Medical Surgical Supplies & Equipment,(id:590481) Integrated Local Services,NHS SUPPLY CHAIN (MAIDSTONE),id:13844996   ,9149.44
Department of Health,Guys and St Thomas NHS Foundation Trust,26/03/2021,(50562) Qualified Nursing Staff,(id:590463) Integrated Local Services,COYLE PERSONNEL PLC,id:13921136 ,1750.00
Department of Health,Guys and St Thomas NHS Foundation Trust,26/03/2021,(50562) Qualified Nursing Staff,(id:590463) Integrated Local Services,COYLE PERSONNEL PLC,id:13920955 ,1050.00
Department of Health,Guys and St Thomas NHS Foundation Trust,19/03/2021,(82800) Bedding & Linen,(id:590527) Integrated Local Services,NHS SUPPLY CHAIN (MAIDSTONE),id:13795595, 163.06
Department of Health,Guys and St Thomas NHS Foundation Trust,19/03/2021,(50522) Unqualified Nursing Staff,(id:590527) Integrated Local Services,CARE PROVIDERS HEALTHCARE,id:13891896   , 735.09
Department of Health,Guys and St Thomas NHS Foundation Trust,19/03/2021,(89270) Establishment,(id:590527) Integrated Local Services,ASSIST SECURITY LIMITED,id:13504515  ,1620.00
Department of Health,Guys and St Thomas NHS Foundation Trust,19/03/2021,(89280) Other - Consultancy costs,(id:590527) Integrated Local Services,ASSIST SECURITY LIMITED,id:13487908,2160.00
Department of Health,Guys and St Thomas NHS Foundation Trust,12/03/2021,(83610) IT Costs,(id:590526) Integrated Local Services,PROBRAND LIMITED,id:13832156    , 618.00
Department of Health,Guys and St Thomas NHS Foundation Trust,19/03/2021,(83400) Office Equipment,(id:903421) Integrated Local Services,NHS SUPPLY CHAIN (MAIDSTONE),id:13795595    ,   2.35
Department of Health,Guys and St Thomas NHS Foundation Trust,12/03/2021,(50552) Qualified Nursing Staff,(id:4609420) Integrated Local Services,NURSING 2000 LTD,id:13861482   , 986.25
Department of Health,Guys and St Thomas NHS Foundation Trust,12/03/2021,(50552) Qualified Nursing Staff,(id:4609420) Integrated Local Services,NURSING 2000 LTD,id:13802512   ,1411.82
Department of Health,Guys and St Thomas NHS Foundation Trust,05/03/2021,(50552) Qualified Nursing Staff,(id:4263423) Integrated Local Services,NURSING 2000 LTD,id:13775951   ,1033.50
Department of Health,Guys and St Thomas NHS Foundation Trust,19/03/2021,(82600) Uniforms & Clothing,(id:42517) Evelina Womens Services,NHS SUPPLY CHAIN (MAIDSTONE),id:13795595    , 223.61
Department of Health,Guys and St Thomas NHS Foundation Trust,26/03/2021,(80010) Drug Costs,(id:42517) Evelina Womens Services,IRVINE SCIENTIFIC SALES COMPANY INC,id:13923318 ,2450.62
Department of Health,Guys and St Thomas NHS Foundation Trust,26/03/2021,(80010) Drug Costs,(id:42517) Evelina Womens Services,PERSONAL HOMECARE PHARMACY LTD,id:13917614 ,    46296.53
Department of Health,Guys and St Thomas NHS Foundation Trust,12/03/2021,(81100) Dressings,(id:42517) Evelina Womens Services,ELIS UK LIMITED,id:13841361  , 847.50
Department of Health,Guys and St Thomas NHS Foundation Trust,12/03/2021,(89270) Establishment,(id:42517) Evelina Womens Services,GOSIA HEELEY FERTILITY COUNCELLING,id:13851542    , 945.00
Department of Health,Guys and St Thomas NHS Foundation Trust,12/03/2021,(81200) Medical Surgical Supplies & Equipment,(id:42517) Evelina Womens Services,NHS SUPPLY CHAIN (MAIDSTONE),id:13735674 , 887.05
Department of Health,Guys and St Thomas NHS Foundation Trust,12/03/2021,(81200) Medical Surgical Supplies & Equipment,(id:42517) Evelina Womens Services,VITROLIFE LTD,id:13840586 ,8508.00
Department of Health,Guys and St Thomas NHS Foundation Trust,12/03/2021,(81200) Medical Surgical Supplies & Equipment,(id:42517) Evelina Womens Services,IRVINE SCIENTIFIC SALES COMPANY INC,id:13863635    ,1540.00
Department of Health,Guys and St Thomas NHS Foundation Trust,19/03/2021,(81200) Medical Surgical Supplies & Equipment,(id:42517) Evelina Womens Services,COOK UK LTD,id:12639448   , 898.56
Department of Health,Guys and St Thomas NHS Foundation Trust,19/03/2021,(81200) Medical Surgical Supplies & Equipment,(id:42517) Evelina Womens Services,COOK UK LTD,id:13625799   ,2770.56
Department of Health,Guys and St Thomas NHS Foundation Trust,10/03/2021,(81200) Medical Surgical Supplies & Equipment,(id:42517) Evelina Womens Services,LIFE TECHNOLOGIES LIMITED,id:13853614    , 706.35
Department of Health,Guys and St Thomas NHS Foundation Trust,12/03/2021,(81700) Lab Equipment Purchase,(id:42517) Evelina Womens Services,ORIGIO LTD DELTA PARK,id:13816149   ,7548.12
Department of Health,Guys and St Thomas NHS Foundation Trust,19/03/2021,(83400) Office Equipment,(id:42513) Evelina Womens Services,NHS SUPPLY CHAIN (MAIDSTONE),id:13795595  ,  28.50
Department of Health,Guys and St Thomas NHS Foundation Trust,12/03/2021,(81225) Medical Surgical Supplies & Equipment,(id:42513) Evelina Womens Services,NHS SUPPLY CHAIN (MAIDSTONE),id:13735674 ,   4.85
Department of Health,Guys and St Thomas NHS Foundation Trust,12/03/2021,(82000) Provisions & Kitchens,(id:42513) Evelina Womens Services,NHS SUPPLY CHAIN (MAIDSTONE),id:13735674  ,  19.16
Department of Health,Guys and St Thomas NHS Foundation Trust,19/03/2021,(83400) Office Equipment,(id:42510) Evelina Womens Services,NHS SUPPLY CHAIN (MAIDSTONE),id:13795595  ,   1.78
Department of Health,Guys and St Thomas NHS Foundation Trust,19/03/2021,(82800) Bedding & Linen,(id:42510) Evelina Womens Services,NHS SUPPLY CHAIN (MAIDSTONE),id:13815654   ,  87.09
Department of Health,Guys and St Thomas NHS Foundation Trust,19/03/2021,(81100) Dressings,(id:42510) Evelina Womens Services,NHS SUPPLY CHAIN (MAIDSTONE),id:13795595    ,   5.18
Department of Health,Guys and St Thomas NHS Foundation Trust,19/03/2021,(81200) Medical Surgical Supplies & Equipment,(id:42510) Evelina Womens Services,NHS SUPPLY CHAIN (MAIDSTONE),id:13815654 , 149.90
Department of Health,Guys and St Thomas NHS Foundation Trust,26/03/2021,(81200) Medical Surgical Supplies & Equipment,(id:42509) Evelina Womens Services,OLYMPUS KEYMED,id:13904660,2419.52
Department of Health,Guys and St Thomas NHS Foundation Trust,05/03/2021,(81200) Medical Surgical Supplies & Equipment,(id:42506) Evelina Womens Services,DARAY LIMITED,id:13813074 , 917.04
Department of Health,Guys and St Thomas NHS Foundation Trust,19/03/2021,(81200) Medical Surgical Supplies & Equipment,(id:42506) Evelina Womens Services,NHS SUPPLY CHAIN (MAIDSTONE),id:13795595 , 285.26
Department of Health,Guys and St Thomas NHS Foundation Trust,19/03/2021,(81200) Medical Surgical Supplies & Equipment,(id:42506) Evelina Womens Services,SCHULTZ MEDICAL (UK) LTD,id:13871414,1218.00
Department of Health,Guys and St Thomas NHS Foundation Trust,12/03/2021,(83410) Office Equipment,(id:42506) Evelina Womens Services,RICOH UK LTD,id:13863468   ,1382.02
Department of Health,Guys and St Thomas NHS Foundation Trust,12/03/2021,(83410) Office Equipment,(id:42486) Evelina Womens Services,RICOH UK LTD,id:13863444   , 178.33
Department of Health,Guys and St Thomas NHS Foundation Trust,05/03/2021,(89600) Non-Healthcare from other NHS bodies,(id:42486) Evelina Womens Services,NHS BLOOD AND TRANSPLANT,id:13793934 ,1105.76
Department of Health,Guys and St Thomas NHS Foundation Trust,24/03/2021,(89600) Non-Healthcare from other NHS bodies,(id:42486) Evelina Womens Services,NHS BLOOD AND TRANSPLANT,id:13880099 ,1310.45
Department of Health,Guys and St Thomas NHS Foundation Trust,12/03/2021,(81225) Medical Surgical Supplies & Equipment,(id:42486) Evelina Womens Services,NHS SUPPLY CHAIN (MAIDSTONE),id:13735674 ,   6.73
Department of Health,Guys and St Thomas NHS Foundation Trust,05/03/2021,(81900) Lab Equipment Purchase,(id:42486) Evelina Womens Services,VIAPATH ANALYTICS LLP,id:13771421   ,4584.00
Department of Health,Guys and St Thomas NHS Foundation Trust,19/03/2021,(83400) Office Equipment,(id:42488) Evelina Womens Services,NHS SUPPLY CHAIN (MAIDSTONE),id:13815654  ,  75.70
Department of Health,Guys and St Thomas NHS Foundation Trust,26/03/2021,(83500) Furniture & Fittings,(id:42497) Evelina Womens Services,EMERGENT CROWN LTD,id:13915274   ,1359.18
Department of Health,Guys and St Thomas NHS Foundation Trust,19/03/2021,(50562) Qualified Nursing Staff,(id:42497) Evelina Womens Services,CARE PROVIDERS HEALTHCARE,id:13891973   , 439.88
Department of Health,Guys and St Thomas NHS Foundation Trust,12/03/2021,(81700) Lab Equipment Purchase,(id:42497) Evelina Womens Services,HOLOGIC UK LTD,id:13838994,5466.00
Department of Health,Guys and St Thomas NHS Foundation Trust,19/03/2021,(82800) Bedding & Linen,(id:42496) Evelina Womens Services,NHS SUPPLY CHAIN (MAIDSTONE),id:13815654   ,  38.56
Department of Health,Guys and St Thomas NHS Foundation Trust,19/03/2021,(82800) Bedding & Linen,(id:42496) Evelina Womens Services,NHS SUPPLY CHAIN (MAIDSTONE),id:13795595   ,  21.32
Department of Health,Guys and St Thomas NHS Foundation Trust,12/03/2021,(82800) Bedding & Linen,(id:42496) Evelina Womens Services,NHS SUPPLY CHAIN (MAIDSTONE),id:13735674   ,  19.09
Department of Health,Guys and St Thomas NHS Foundation Trust,12/03/2021,(81100) Dressings,(id:42493) Evelina Womens Services,NHS SUPPLY CHAIN (MAIDSTONE),id:13735674    , 161.49
Department of Health,Guys and St Thomas NHS Foundation Trust,12/03/2021,(81200) Medical Surgical Supplies & Equipment,(id:42493) Evelina Womens Services,NHS SUPPLY CHAIN (MAIDSTONE),id:13735674 , 634.13
Department of Health,Guys and St Thomas NHS Foundation Trust,19/03/2021,(82000) Provisions & Kitchens,(id:42492) Evelina Womens Services,NHS SUPPLY CHAIN (MAIDSTONE),id:13795595  , 148.64
Department of Health,Guys and St Thomas NHS Foundation Trust,12/03/2021,(81100) Dressings,(id:42492) Evelina Womens Services,SMITHS MEDICAL INTERNATIONAL LTD:69519000,id:13829556 , 597.22
Department of Health,Guys and St Thomas NHS Foundation Trust,26/03/2021,(83350) Premises Services,(id:42492) Evelina Womens Services,ASSIST SECURITY LIMITED,id:13923506 ,1800.00
Department of Health,Guys and St Thomas NHS Foundation Trust,19/03/2021,(81225) Medical Surgical Supplies & Equipment,(id:42492) Evelina Womens Services,NHS SUPPLY CHAIN (MAIDSTONE),id:13815654 ,  77.17
Department of Health,Guys and St Thomas NHS Foundation Trust,19/03/2021,(50562) Qualified Nursing Staff,(id:42492) Evelina Womens Services,CARE PROVIDERS HEALTHCARE,id:13891694   , 859.55
Department of Health,Guys and St Thomas NHS Foundation Trust,26/03/2021,(50562) Qualified Nursing Staff,(id:42492) Evelina Womens Services,CARE PROVIDERS HEALTHCARE,id:13921152   , 814.10
Department of Health,Guys and St Thomas NHS Foundation Trust,19/03/2021,(82000) Provisions & Kitchens,(id:42491) Evelina Womens Services,NHS SUPPLY CHAIN (MAIDSTONE),id:13795595  , 127.05
Department of Health,Guys and St Thomas NHS Foundation Trust,19/03/2021,(83400) Office Equipment,(id:42491) Evelina Womens Services,NHS SUPPLY CHAIN (MAIDSTONE),id:13815654  ,  84.17
Department of Health,Guys and St Thomas NHS Foundation Trust,19/03/2021,(81275) Medical Surgical Supplies & Equipment,(id:42491) Evelina Womens Services,NHS SUPPLY CHAIN (MAIDSTONE),id:13795595 , 200.28
Department of Health,Guys and St Thomas NHS Foundation Trust,12/03/2021,(81100) Dressings,(id:42491) Evelina Womens Services,NHS SUPPLY CHAIN (MAIDSTONE),id:13735674    ,  94.74
Department of Health,Guys and St Thomas NHS Foundation Trust,19/03/2021,(81200) Medical Surgical Supplies & Equipment,(id:42491) Evelina Womens Services,NHS SUPPLY CHAIN (MAIDSTONE),id:13795595 , 632.27
Department of Health,Guys and St Thomas NHS Foundation Trust,19/03/2021,(81200) Medical Surgical Supplies & Equipment,(id:42491) Evelina Womens Services,NHS SUPPLY CHAIN (MAIDSTONE),id:13815654 , 966.23
Department of Health,Guys and St Thomas NHS Foundation Trust,19/03/2021,(81225) Medical Surgical Supplies & Equipment,(id:42491) Evelina Womens Services,NHS SUPPLY CHAIN (MAIDSTONE),id:13795595 ,   4.32
Department of Health,Guys and St Thomas NHS Foundation Trust,05/03/2021,(50200) Consultants,(id:42504) Evelina Womens Services,KINGS COLLEGE LONDON:03529700,id:13784894 ,    43477.43
Department of Health,Guys and St Thomas NHS Foundation Trust,12/03/2021,(81100) Dressings,(id:42348) Evelina Central,NXSTAGE MEDICAL UK LIMITED,id:13844778    ,1696.00
Department of Health,Guys and St Thomas NHS Foundation Trust,12/03/2021,(83400) Office Equipment,(id:42348) Evelina Central,NHS SUPPLY CHAIN (MAIDSTONE),id:13735674, 108.23
Department of Health,Guys and St Thomas NHS Foundation Trust,19/03/2021,(81255) Medical Surgical Supplies & Equipment,(id:42331) Evelina Central,NHS SUPPLY CHAIN (MAIDSTONE),id:13795595    ,  17.28
Department of Health,Guys and St Thomas NHS Foundation Trust,19/03/2021,(81225) Medical Surgical Supplies & Equipment,(id:42331) Evelina Central,NHS SUPPLY CHAIN (MAIDSTONE),id:13795595    ,   8.90
Department of Health,Guys and St Thomas NHS Foundation Trust,12/03/2021,(81200) Medical Surgical Supplies & Equipment,(id:42325) Evelina Central,CCMED LTD,id:13840394   , 927.96
Department of Health,Guys and St Thomas NHS Foundation Trust,19/03/2021,(81200) Medical Surgical Supplies & Equipment,(id:42325) Evelina Central,NHS SUPPLY CHAIN (MAIDSTONE),id:13795595    , 310.51
Department of Health,Guys and St Thomas NHS Foundation Trust,12/03/2021,(89595) Non-Healthcare from Foundation Trusts,(id:4247419) Evelina Central,UNIVERSITY COLLEGE LONDON HOSPITALS NHS FOUNDATION TRUST,id:12918150    ,5022.00
Department of Health,Guys and St Thomas NHS Foundation Trust,12/03/2021,(83410) Office Equipment,(id:2965419) Evelina Central,RICOH UK LTD,id:13863421    , 515.78
Department of Health,Guys and St Thomas NHS Foundation Trust,12/03/2021,(83400) Office Equipment,(id:2709419) Evelina Central,DRAX (UK) LTD,id:13864147   , 750.00
Department of Health,Guys and St Thomas NHS Foundation Trust,05/03/2021,(89595) Non-Healthcare from Foundation Trusts,(id:42316) Evelina Central,ST GEORGE'S UNIVERSITY HOSPITALS NHS FOUNDATION TRUST,id:12081171    ,1544.33
Department of Health,Guys and St Thomas NHS Foundation Trust,05/03/2021,(81225) Medical Surgical Supplies & Equipment,(id:590444) Evelina Community Services,ARLINGTON LABORATORIES LTD,id:13604622    ,1567.25
Department of Health,Guys and St Thomas NHS Foundation Trust,19/03/2021,(81225) Medical Surgical Supplies & Equipment,(id:590444) Evelina Community Services,NHS SUPPLY CHAIN (MAIDSTONE),id:13795595  , 806.76
Department of Health,Guys and St Thomas NHS Foundation Trust,12/03/2021,(81225) Medical Surgical Supplies & Equipment,(id:590444) Evelina Community Services,PHONAK UK LTD,id:13806594  , 648.00
Department of Health,Guys and St Thomas NHS Foundation Trust,26/03/2021,(81225) Medical Surgical Supplies & Equipment,(id:590444) Evelina Community Services,PHONAK UK LTD,id:13912735  , 876.00
Department of Health,Guys and St Thomas NHS Foundation Trust,12/03/2021,(83410) Office Equipment,(id:590451) Evelina Community Services,RICOH UK LTD,id:13863444    , 653.78
Department of Health,Guys and St Thomas NHS Foundation Trust,31/03/2021,(51262) Dieticians,(id:590412) Evelina Community Services,PRICEWATERHOUSECOOPERS LLP,id:13939953 ,1270.02
Department of Health,Guys and St Thomas NHS Foundation Trust,12/03/2021,(81200) Medical Surgical Supplies & Equipment,(id:590449) Evelina Community Services,NHS SUPPLY CHAIN (MAIDSTONE),id:13735674  , 666.96
Department of Health,Guys and St Thomas NHS Foundation Trust,19/03/2021,(82000) Provisions & Kitchens,(id:590446) Evelina Community Services,NHS SUPPLY CHAIN (MAIDSTONE),id:13815654   ,  20.34
Department of Health,Guys and St Thomas NHS Foundation Trust,26/03/2021,(84500) Establishment,(id:590545) Evelina Community Services,PEARSON EDUCATION LTD,id:13790775   ,1507.20
Department of Health,Guys and St Thomas NHS Foundation Trust,05/03/2021,(84500) Establishment,(id:590452) Evelina Community Services,HOGREFE LTD,id:13805254   ,4150.80
Department of Health,Guys and St Thomas NHS Foundation Trust,05/03/2021,(81200) Medical Surgical Supplies & Equipment,(id:590452) Evelina Community Services,HOGREFE LTD,id:13805254    , 106.80
Department of Health,Guys and St Thomas NHS Foundation Trust,19/03/2021,(82000) Provisions & Kitchens,(id:590541) Evelina Community Services,NHS SUPPLY CHAIN (MAIDSTONE),id:13815654   , 185.04
Department of Health,Guys and St Thomas NHS Foundation Trust,19/03/2021,(82000) Provisions & Kitchens,(id:590539) Evelina Community Services,NHS SUPPLY CHAIN (MAIDSTONE),id:13815654   ,  77.10
Department of Health,Guys and St Thomas NHS Foundation Trust,19/03/2021,(83400) Office Equipment,(id:590418) Evelina Community Services,NHS SUPPLY CHAIN (MAIDSTONE),id:13815654   ,  14.08
Department of Health,Guys and St Thomas NHS Foundation Trust,26/03/2021,(83610) IT Costs,(id:590423) Evelina Community Services,OFFICE DEPOT UK LTD,id:13722870,1608.00
Department of Health,Guys and St Thomas NHS Foundation Trust,19/03/2021,(81700) Lab Equipment Purchase,(id:2356419) Evelina Medicine & Neonatology,NHS SUPPLY CHAIN (MAIDSTONE),id:13815654  ,  11.04
Department of Health,Guys and St Thomas NHS Foundation Trust,19/03/2021,(81200) Medical Surgical Supplies & Equipment,(id:4446419) Evelina Medicine & Neonatology,NHS SUPPLY CHAIN (MAIDSTONE),id:13815654  ,  28.80
Department of Health,Guys and St Thomas NHS Foundation Trust,26/03/2021,(81200) Medical Surgical Supplies & Equipment,(id:42350) Evelina Medicine & Neonatology,BAXTER HEALTHCARE LTD,id:13923611 ,1881.58
Department of Health,Guys and St Thomas NHS Foundation Trust,19/03/2021,(81200) Medical Surgical Supplies & Equipment,(id:42350) Evelina Medicine & Neonatology,NXSTAGE MEDICAL UK LIMITED,id:13238633 , 876.48
Department of Health,Guys and St Thomas NHS Foundation Trust,12/03/2021,(81700) Lab Equipment Purchase,(id:42350) Evelina Medicine & Neonatology,NHS SUPPLY CHAIN (MAIDSTONE),id:13735674    ,  58.39
Department of Health,Guys and St Thomas NHS Foundation Trust,12/03/2021,(81200) Medical Surgical Supplies & Equipment,(id:42349) Evelina Medicine & Neonatology,NHS SUPPLY CHAIN (MAIDSTONE),id:13735674    , 344.40
Department of Health,Guys and St Thomas NHS Foundation Trust,05/03/2021,(81000) Surgical Appliances,(id:42335) Evelina Medicine & Neonatology,JOHN FLORENCE LTD,id:13819134   , 739.42
Department of Health,Guys and St Thomas NHS Foundation Trust,19/03/2021,(81000) Surgical Appliances,(id:42335) Evelina Medicine & Neonatology,JOHN FLORENCE LTD,id:13877815   , 848.17
Department of Health,Guys and St Thomas NHS Foundation Trust,19/03/2021,(81200) Medical Surgical Supplies & Equipment,(id:42327) Evelina Medicine & Neonatology,MEDTRONIC LTD,id:13810893    , 712.80
Department of Health,Guys and St Thomas NHS Foundation Trust,26/03/2021,(81200) Medical Surgical Supplies & Equipment,(id:42327) Evelina Medicine & Neonatology,VYGON (UK) LTD,id:13625813   , 594.72
Department of Health,Guys and St Thomas NHS Foundation Trust,19/03/2021,(80010) Drug Costs,(id:42327) Evelina Medicine & Neonatology,NHS SUPPLY CHAIN (MAIDSTONE),id:13795595 ,  38.88
Department of Health,Guys and St Thomas NHS Foundation Trust,19/03/2021,(83400) Office Equipment,(id:42327) Evelina Medicine & Neonatology,NHS SUPPLY CHAIN (MAIDSTONE),id:13815654, 126.53
Department of Health,Guys and St Thomas NHS Foundation Trust,12/03/2021,(81225) Medical Surgical Supplies & Equipment,(id:42327) Evelina Medicine & Neonatology,NHS SUPPLY CHAIN (MAIDSTONE),id:13735674    ,  44.04
Department of Health,Guys and St Thomas NHS Foundation Trust,12/03/2021,(81700) Lab Equipment Purchase,(id:42327) Evelina Medicine & Neonatology,NHS SUPPLY CHAIN (MAIDSTONE),id:13735674    ,  92.53
Department of Health,Guys and St Thomas NHS Foundation Trust,19/03/2021,(81200) Medical Surgical Supplies & Equipment,(id:1196420) Evelina Medicine & Neonatology,NHS SUPPLY CHAIN (MAIDSTONE),id:13815654  ,1693.56
Department of Health,Guys and St Thomas NHS Foundation Trust,19/03/2021,(81700) Lab Equipment Purchase,(id:1196420) Evelina Medicine & Neonatology,NHS SUPPLY CHAIN (MAIDSTONE),id:13815654  , 526.56
Department of Health,Guys and St Thomas NHS Foundation Trust,19/03/2021,(80010) Drug Costs,(id:1196420) Evelina Medicine & Neonatology,DEXCOM INTERNATIONAL LTD,id:13876212   , 793.50
Department of Health,Guys and St Thomas NHS Foundation Trust,26/03/2021,(80010) Drug Costs,(id:1196420) Evelina Medicine & Neonatology,DEXCOM INTERNATIONAL LTD,id:13918495   , 793.50
Department of Health,Guys and St Thomas NHS Foundation Trust,10/03/2021,(81500) X Ray Equipment Purchase,(id:1196420) Evelina Medicine & Neonatology,SHRINERS HOSPITAL FOR CHILDREN,id:13852474   ,    -1046.96
Department of Health,Guys and St Thomas NHS Foundation Trust,19/03/2021,(83400) Office Equipment,(id:2496419) Evelina Medicine & Neonatology,NHS SUPPLY CHAIN (MAIDSTONE),id:13815654   ,  16.18
Department of Health,Guys and St Thomas NHS Foundation Trust,19/03/2021,(82800) Bedding & Linen,(id:2496419) Evelina Medicine & Neonatology,NHS SUPPLY CHAIN (MAIDSTONE),id:13795595    ,  34.93
Department of Health,Guys and St Thomas NHS Foundation Trust,19/03/2021,(82000) Provisions & Kitchens,(id:2496419) Evelina Medicine & Neonatology,NHS SUPPLY CHAIN (MAIDSTONE),id:13815654   ,  23.83
Department of Health,Guys and St Thomas NHS Foundation Trust,19/03/2021,(82000) Provisions & Kitchens,(id:2496419) Evelina Medicine & Neonatology,NHS SUPPLY CHAIN (MAIDSTONE),id:13795595   ,  18.87
Department of Health,Guys and St Thomas NHS Foundation Trust,05/03/2021,(82600) Uniforms & Clothing,(id:2496419) Evelina Medicine & Neonatology,INTUS HEALTHCARE LTD,id:13836374   ,1000.80
Department of Health,Guys and St Thomas NHS Foundation Trust,12/03/2021,(81100) Dressings,(id:2496419) Evelina Medicine & Neonatology,NHS SUPPLY CHAIN (MAIDSTONE),id:13735674,   2.18
Department of Health,Guys and St Thomas NHS Foundation Trust,26/03/2021,(81200) Medical Surgical Supplies & Equipment,(id:2981419) Evelina Medicine & Neonatology,LABORIE MEDICAL TECHNOLOGIES UK,id:13876235    ,1892.40
Department of Health,Guys and St Thomas NHS Foundation Trust,05/03/2021,(50552) Qualified Nursing Staff,(id:41874) Evelina Medicine & Neonatology,CONTINENTAL NURSE LTD,id:13832764,1606.32
Department of Health,Guys and St Thomas NHS Foundation Trust,19/03/2021,(81200) Medical Surgical Supplies & Equipment,(id:41874) Evelina Medicine & Neonatology,NHS SUPPLY CHAIN (MAIDSTONE),id:13795595    , 562.17
Department of Health,Guys and St Thomas NHS Foundation Trust,19/03/2021,(83400) Office Equipment,(id:41874) Evelina Medicine & Neonatology,NHS SUPPLY CHAIN (MAIDSTONE),id:13815654,   1.52
Department of Health,Guys and St Thomas NHS Foundation Trust,26/03/2021,(50552) Qualified Nursing Staff,(id:2495419) Evelina Medicine & Neonatology,GLOBE LOCUMS LTD,id:13921131   , 655.66
Department of Health,Guys and St Thomas NHS Foundation Trust,26/03/2021,(84656) Establishment,(id:42326) Evelina Medicine & Neonatology,DICT8 LIMITED,id:13911514   ,3790.80
Department of Health,Guys and St Thomas NHS Foundation Trust,19/03/2021,(89600) Non-Healthcare from other NHS bodies,(id:42326) Evelina Medicine & Neonatology,NHS BLOOD AND TRANSPLANT,id:13043375    ,    14915.00
Department of Health,Guys and St Thomas NHS Foundation Trust,19/03/2021,(81700) Lab Equipment Purchase,(id:42323) Evelina Medicine & Neonatology,NHS SUPPLY CHAIN (MAIDSTONE),id:13795595    ,   4.78
Department of Health,Guys and St Thomas NHS Foundation Trust,19/03/2021,(55072) Admin & Clerical,(id:42058) Evelina Medicine & Neonatology,DICT8 LIMITED,id:13830715, 492.36
Department of Health,Guys and St Thomas NHS Foundation Trust,05/03/2021,(50200) Consultants,(id:42058) Evelina Medicine & Neonatology,KINGS COLLEGE LONDON:03529700,id:13786514    ,6474.37
Department of Health,Guys and St Thomas NHS Foundation Trust,19/03/2021,(82700) Uniforms & Clothing,(id:4082419) Evelina Surgery Theatres & PICU,NHS SUPPLY CHAIN (MAIDSTONE),id:13795595    ,  60.71
Department of Health,Guys and St Thomas NHS Foundation Trust,19/03/2021,(82000) Provisions & Kitchens,(id:4082419) Evelina Surgery Theatres & PICU,NHS SUPPLY CHAIN (MAIDSTONE),id:13815654  ,   6.56
Department of Health,Guys and St Thomas NHS Foundation Trust,19/03/2021,(83400) Office Equipment,(id:4082419) Evelina Surgery Theatres & PICU,NHS SUPPLY CHAIN (MAIDSTONE),id:13815654  ,  79.20
Department of Health,Guys and St Thomas NHS Foundation Trust,19/03/2021,(81200) Medical Surgical Supplies & Equipment,(id:42312) Evelina Surgery Theatres & PICU,NHS SUPPLY CHAIN (MAIDSTONE),id:13795595   ,    11348.27
Department of Health,Guys and St Thomas NHS Foundation Trust,19/03/2021,(81200) Medical Surgical Supplies & Equipment,(id:42312) Evelina Surgery Theatres & PICU,JOHNSON & JOHNSON MEDICAL LTD,id:13810842  ,4500.00
Department of Health,Guys and St Thomas NHS Foundation Trust,26/03/2021,(81200) Medical Surgical Supplies & Equipment,(id:42312) Evelina Surgery Theatres & PICU,COOK UK LTD,id:13810996, 564.00
Department of Health,Guys and St Thomas NHS Foundation Trust,26/03/2021,(81200) Medical Surgical Supplies & Equipment,(id:42312) Evelina Surgery Theatres & PICU,EDEN MEDICAL (UK) LTD,id:13891494, 833.00
Department of Health,Guys and St Thomas NHS Foundation Trust,26/03/2021,(81200) Medical Surgical Supplies & Equipment,(id:42312) Evelina Surgery Theatres & PICU,TERUMO UK LTD,id:13899686   , 558.00
Department of Health,Guys and St Thomas NHS Foundation Trust,26/03/2021,(81200) Medical Surgical Supplies & Equipment,(id:42312) Evelina Surgery Theatres & PICU,WL GORE & ASSOCIATES (UK) LTD,id:13870400  ,1188.00
Department of Health,Guys and St Thomas NHS Foundation Trust,26/03/2021,(81200) Medical Surgical Supplies & Equipment,(id:42312) Evelina Surgery Theatres & PICU,WL GORE & ASSOCIATES (UK) LTD,id:13923534  ,   -14880.00
Department of Health,Guys and St Thomas NHS Foundation Trust,12/03/2021,(83410) Office Equipment,(id:42312) Evelina Surgery Theatres & PICU,RICOH UK LTD,id:13863444, 378.20
Department of Health,Guys and St Thomas NHS Foundation Trust,05/03/2021,(81100) Dressings,(id:42312) Evelina Surgery Theatres & PICU,KIMAL PLC,id:13810017, 547.44
Department of Health,Guys and St Thomas NHS Foundation Trust,26/03/2021,(81100) Dressings,(id:42312) Evelina Surgery Theatres & PICU,KIMAL PLC,id:13885534,3558.36
Department of Health,Guys and St Thomas NHS Foundation Trust,05/03/2021,(81200) Medical Surgical Supplies & Equipment,(id:41914) Evelina Surgery Theatres & PICU,JOHNSON & JOHNSON MEDICAL LTD,id:13752372  ,1381.87
Department of Health,Guys and St Thomas NHS Foundation Trust,05/03/2021,(81200) Medical Surgical Supplies & Equipment,(id:41914) Evelina Surgery Theatres & PICU,JOHNSON & JOHNSON MEDICAL LTD,id:13762509  ,  22.62
Department of Health,Guys and St Thomas NHS Foundation Trust,12/03/2021,(81100) Dressings,(id:41914) Evelina Surgery Theatres & PICU,ELIS UK LIMITED,id:13841371    , 815.20
Department of Health,Guys and St Thomas NHS Foundation Trust,12/03/2021,(81100) Dressings,(id:41914) Evelina Surgery Theatres & PICU,ELIS UK LIMITED,id:13776634    , 644.76
Department of Health,Guys and St Thomas NHS Foundation Trust,12/03/2021,(81200) Medical Surgical Supplies & Equipment,(id:41910) Evelina Surgery Theatres & PICU,INTERSURGICAL LTD,id:13720435    ,1120.68
Department of Health,Guys and St Thomas NHS Foundation Trust,19/03/2021,(81200) Medical Surgical Supplies & Equipment,(id:41910) Evelina Surgery Theatres & PICU,NHS SUPPLY CHAIN (MAIDSTONE),id:13795595   ,2033.73
Department of Health,Guys and St Thomas NHS Foundation Trust,19/03/2021,(81100) Dressings,(id:41910) Evelina Surgery Theatres & PICU,NHS SUPPLY CHAIN (MAIDSTONE),id:13815654 , 149.19
Department of Health,Guys and St Thomas NHS Foundation Trust,12/03/2021,(82600) Uniforms & Clothing,(id:41910) Evelina Surgery Theatres & PICU,INTERSURGICAL LTD,id:13720435  , 500.64
Department of Health,Guys and St Thomas NHS Foundation Trust,19/03/2021,(81230) Medical Surgical Supplies & Equipment,(id:41910) Evelina Surgery Theatres & PICU,NHS SUPPLY CHAIN (MAIDSTONE),id:13815654   ,  23.66
Department of Health,Guys and St Thomas NHS Foundation Trust,05/03/2021,(81200) Medical Surgical Supplies & Equipment,(id:1196421) Evelina Surgery Theatres & PICU,NUVASIVE UK LTD,id:13826034    ,8007.00
Department of Health,Guys and St Thomas NHS Foundation Trust,05/03/2021,(81200) Medical Surgical Supplies & Equipment,(id:1196421) Evelina Surgery Theatres & PICU,JOHNSON & JOHNSON MEDICAL LTD,id:13762509, 722.07
Department of Health,Guys and St Thomas NHS Foundation Trust,12/03/2021,(81200) Medical Surgical Supplies & Equipment,(id:1196421) Evelina Surgery Theatres & PICU,NUVASIVE UK LTD,id:13858694    ,    11872.80
Department of Health,Guys and St Thomas NHS Foundation Trust,26/03/2021,(81200) Medical Surgical Supplies & Equipment,(id:1196421) Evelina Surgery Theatres & PICU,INTEGRA NEUROSCIENCES LIMITED,id:13904559,2239.36
Department of Health,Guys and St Thomas NHS Foundation Trust,19/03/2021,(81100) Dressings,(id:431409) Evelina Surgery Theatres & PICU,NHS SUPPLY CHAIN (MAIDSTONE),id:13815654,  15.41
Department of Health,Guys and St Thomas NHS Foundation Trust,26/03/2021,(81200) Medical Surgical Supplies & Equipment,(id:431409) Evelina Surgery Theatres & PICU,STRAWBERRY MEDICAL LTD,id:13804514   ,6569.70
Department of Health,Guys and St Thomas NHS Foundation Trust,05/03/2021,(81000) Surgical Appliances,(id:431409) Evelina Surgery Theatres & PICU,JOHN FLORENCE LTD,id:13818495 , 639.56
Department of Health,Guys and St Thomas NHS Foundation Trust,05/03/2021,(81000) Surgical Appliances,(id:431409) Evelina Surgery Theatres & PICU,JOHN FLORENCE LTD,id:13818196 ,1040.86
Department of Health,Guys and St Thomas NHS Foundation Trust,05/03/2021,(81000) Surgical Appliances,(id:431409) Evelina Surgery Theatres & PICU,JOHN FLORENCE LTD,id:13817834 ,1062.48
Department of Health,Guys and St Thomas NHS Foundation Trust,26/03/2021,(81000) Surgical Appliances,(id:431409) Evelina Surgery Theatres & PICU,TALAR MADE ORTHOTICS LTD,id:13916915    , 719.85
Department of Health,Guys and St Thomas NHS Foundation Trust,19/03/2021,(81000) Surgical Appliances,(id:431409) Evelina Surgery Theatres & PICU,JOHN FLORENCE LTD,id:13877535 , 823.56
Department of Health,Guys and St Thomas NHS Foundation Trust,19/03/2021,(81100) Dressings,(id:468410) Evelina Surgery Theatres & PICU,NHS SUPPLY CHAIN (MAIDSTONE),id:13815654, 716.12
Department of Health,Guys and St Thomas NHS Foundation Trust,19/03/2021,(81200) Medical Surgical Supplies & Equipment,(id:468409) Evelina Surgery Theatres & PICU,MEDTRONIC LTD,id:13746847  , 648.00
Department of Health,Guys and St Thomas NHS Foundation Trust,12/03/2021,(84656) Establishment,(id:468409) Evelina Surgery Theatres & PICU,DICT8 LIMITED,id:13845574 ,1234.92
Department of Health,Guys and St Thomas NHS Foundation Trust,19/03/2021,(82700) Uniforms & Clothing,(id:42339) Evelina Surgery Theatres & PICU,NHS SUPPLY CHAIN (MAIDSTONE),id:13815654 ,  12.97
Department of Health,Guys and St Thomas NHS Foundation Trust,12/03/2021,(81255) Medical Surgical Supplies & Equipment,(id:42339) Evelina Surgery Theatres & PICU,NHS SUPPLY CHAIN (MAIDSTONE),id:13735674   ,  18.72
Department of Health,Guys and St Thomas NHS Foundation Trust,19/03/2021,(81100) Dressings,(id:42339) Evelina Surgery Theatres & PICU,NHS SUPPLY CHAIN (MAIDSTONE),id:13795595 , 478.64
Department of Health,Guys and St Thomas NHS Foundation Trust,19/03/2021,(81200) Medical Surgical Supplies & Equipment,(id:42339) Evelina Surgery Theatres & PICU,NHS SUPPLY CHAIN (MAIDSTONE),id:13795595   ,5417.01
Department of Health,Guys and St Thomas NHS Foundation Trust,26/03/2021,(81200) Medical Surgical Supplies & Equipment,(id:42339) Evelina Surgery Theatres & PICU,EDWARDS LIFESCIENCES LTD,id:13618479  ,5884.08
Department of Health,Guys and St Thomas NHS Foundation Trust,12/03/2021,(81200) Medical Surgical Supplies & Equipment,(id:42339) Evelina Surgery Theatres & PICU,INTERSURGICAL LTD,id:13803494    , 776.16
Department of Health,Guys and St Thomas NHS Foundation Trust,05/03/2021,(81200) Medical Surgical Supplies & Equipment,(id:42339) Evelina Surgery Theatres & PICU,SMITHS MEDICAL INTERNATIONAL LTD:69519000,id:13677734, 673.92
Department of Health,Guys and St Thomas NHS Foundation Trust,19/03/2021,(83400) Office Equipment,(id:42339) Evelina Surgery Theatres & PICU,NHS SUPPLY CHAIN (MAIDSTONE),id:13795595    , 281.36
Department of Health,Guys and St Thomas NHS Foundation Trust,26/03/2021,(83400) Office Equipment,(id:42339) Evelina Surgery Theatres & PICU,LAZERBEAM FIRE AND SECURITY LTD,id:13901014 , 728.00
Department of Health,Guys and St Thomas NHS Foundation Trust,19/03/2021,(81225) Medical Surgical Supplies & Equipment,(id:42339) Evelina Surgery Theatres & PICU,NHS SUPPLY CHAIN (MAIDSTONE),id:13795595   ,  17.66
Department of Health,Guys and St Thomas NHS Foundation Trust,19/03/2021,(81700) Lab Equipment Purchase,(id:4755419) Evelina R&D and Charity,KINGS COLLEGE LONDON:03529700,id:13819154   ,    14202.90
Department of Health,Guys and St Thomas NHS Foundation Trust,26/03/2021,(89000) Other - Training courses and conferences,(id:4400419) Evelina R&D and Charity,QA LTD,id:13866154   , 925.00
Department of Health,Guys and St Thomas NHS Foundation Trust,05/03/2021,(89270) Establishment,(id:2634419) Evelina R&D and Charity,DR STEPHANIE LAMB,id:13816754    ,3200.00
Department of Health,Guys and St Thomas NHS Foundation Trust,19/03/2021,(81100) Dressings,(id:1127419) Cardiovascular Services,NHS SUPPLY CHAIN (MAIDSTONE),id:13795595  , 648.00
Department of Health,Guys and St Thomas NHS Foundation Trust,12/03/2021,(81255) Medical Surgical Supplies & Equipment,(id:780420) Cardiovascular Services,NHS SUPPLY CHAIN (MAIDSTONE),id:13735674,  19.04
Department of Health,Guys and St Thomas NHS Foundation Trust,19/03/2021,(50552) Qualified Nursing Staff,(id:780420) Cardiovascular Services,CARE PROVIDERS HEALTHCARE,id:13891727  , 383.81
Department of Health,Guys and St Thomas NHS Foundation Trust,12/03/2021,(81250) Medical Surgical Supplies & Equipment,(id:639421) Cardiovascular Services,CRYOLIFE EUROPA LTD,id:13846754    ,    19800.00
Department of Health,Guys and St Thomas NHS Foundation Trust,26/03/2021,(81250) Medical Surgical Supplies & Equipment,(id:639421) Cardiovascular Services,BOSTON SCIENTIFIC LTD,id:13901921  , 738.00
Department of Health,Guys and St Thomas NHS Foundation Trust,05/03/2021,(81250) Medical Surgical Supplies & Equipment,(id:639421) Cardiovascular Services,BOSTON SCIENTIFIC LTD,id:13810883  , 738.00
Department of Health,Guys and St Thomas NHS Foundation Trust,19/03/2021,(81200) Medical Surgical Supplies & Equipment,(id:639421) Cardiovascular Services,COOK UK LTD,id:13810936  ,3720.00
Department of Health,Guys and St Thomas NHS Foundation Trust,26/03/2021,(81200) Medical Surgical Supplies & Equipment,(id:639421) Cardiovascular Services,WL GORE & ASSOCIATES (UK) LTD,id:13841259    ,    10800.00
Department of Health,Guys and St Thomas NHS Foundation Trust,12/03/2021,(81200) Medical Surgical Supplies & Equipment,(id:639421) Cardiovascular Services,BOSTON SCIENTIFIC LTD,id:13841568  ,1032.00
Department of Health,Guys and St Thomas NHS Foundation Trust,12/03/2021,(81200) Medical Surgical Supplies & Equipment,(id:639421) Cardiovascular Services,COOK UK LTD,id:13777645  , 984.00
Department of Health,Guys and St Thomas NHS Foundation Trust,19/03/2021,(82800) Bedding & Linen,(id:41952) Cardiovascular Services,NHS SUPPLY CHAIN (MAIDSTONE),id:13795595   ,  39.26
Department of Health,Guys and St Thomas NHS Foundation Trust,05/03/2021,(50200) Consultants,(id:41950) Cardiovascular Services,KINGS COLLEGE LONDON:03529700,id:13786254 ,    23366.45
Department of Health,Guys and St Thomas NHS Foundation Trust,26/03/2021,(81200) Medical Surgical Supplies & Equipment,(id:41950) Cardiovascular Services,CARDINAL HEALTH UK 432 LIMITED,id:13913634    , 444.00
Department of Health,Guys and St Thomas NHS Foundation Trust,26/03/2021,(81200) Medical Surgical Supplies & Equipment,(id:41950) Cardiovascular Services,BOSTON SCIENTIFIC LTD,id:13856621   , 438.00
Department of Health,Guys and St Thomas NHS Foundation Trust,05/03/2021,(81200) Medical Surgical Supplies & Equipment,(id:41950) Cardiovascular Services,COOK UK LTD,id:13766827   , 504.00
Department of Health,Guys and St Thomas NHS Foundation Trust,05/03/2021,(81200) Medical Surgical Supplies & Equipment,(id:41950) Cardiovascular Services,AQUILANT LTD,id:13800294  , 990.00
Department of Health,Guys and St Thomas NHS Foundation Trust,12/03/2021,(81200) Medical Surgical Supplies & Equipment,(id:41950) Cardiovascular Services,WL GORE & ASSOCIATES (UK) LTD,id:13807577, 972.00
Department of Health,Guys and St Thomas NHS Foundation Trust,26/03/2021,(81235) Medical Surgical Supplies & Equipment,(id:41950) Cardiovascular Services,BOSTON SCIENTIFIC LTD,id:13856621   , 204.00
Department of Health,Guys and St Thomas NHS Foundation Trust,26/03/2021,(81000) Surgical Appliances,(id:41950) Cardiovascular Services,MEDI UK LTD,id:13919995 , 201.17
Department of Health,Guys and St Thomas NHS Foundation Trust,19/03/2021,(81100) Dressings,(id:41950) Cardiovascular Services,NHS SUPPLY CHAIN (MAIDSTONE),id:13815654    ,  65.84
Department of Health,Guys and St Thomas NHS Foundation Trust,19/03/2021,(82800) Bedding & Linen,(id:41950) Cardiovascular Services,NHS SUPPLY CHAIN (MAIDSTONE),id:13795595   , 152.62
Department of Health,Guys and St Thomas NHS Foundation Trust,12/03/2021,(83500) Furniture & Fittings,(id:3923419) Cardiovascular Services,HOSPEDIA LTD,id:13858535  ,1827.65
Department of Health,Guys and St Thomas NHS Foundation Trust,27/03/2021,(54072) Technical Officers,(id:1243420) Cardiovascular Services,PRICEWATERHOUSECOOPERS LLP,id:13928794,4550.63
Department of Health,Guys and St Thomas NHS Foundation Trust,27/03/2021,(54072) Technical Officers,(id:1243420) Cardiovascular Services,PRICEWATERHOUSECOOPERS LLP,id:13928795,4550.64
Department of Health,Guys and St Thomas NHS Foundation Trust,12/03/2021,(82800) Bedding & Linen,(id:1243420) Cardiovascular Services,NHS SUPPLY CHAIN (MAIDSTONE),id:13735674 , 117.06
Department of Health,Guys and St Thomas NHS Foundation Trust,19/03/2021,(81400) Medical Surgical Supplies & Equipment,(id:1243419) Cardiovascular Services,NHS SUPPLY CHAIN ( CAPITAL FUND ONLY),id:13893905,   -22176.00
Department of Health,Guys and St Thomas NHS Foundation Trust,26/03/2021,(82600) Uniforms & Clothing,(id:1243419) Cardiovascular Services,SFXRAY LTD,id:13904881, 540.00
Department of Health,Guys and St Thomas NHS Foundation Trust,31/03/2021,(54062) Technical Officers,(id:42303) Cardiovascular Services,PRICEWATERHOUSECOOPERS LLP,id:13939953  ,2532.15
Department of Health,Guys and St Thomas NHS Foundation Trust,08/03/2021,(54052) Technical Officers,(id:42303) Cardiovascular Services,PRICEWATERHOUSECOOPERS LLP,id:13845712  ,2978.62
Department of Health,Guys and St Thomas NHS Foundation Trust,27/03/2021,(54072) Technical Officers,(id:42303) Cardiovascular Services,PRICEWATERHOUSECOOPERS LLP,id:13928794  ,8180.08
Department of Health,Guys and St Thomas NHS Foundation Trust,08/03/2021,(51832) Physiotherapists,(id:42303) Cardiovascular Services,PRICEWATERHOUSECOOPERS LLP,id:13845712    ,3378.23
Department of Health,Guys and St Thomas NHS Foundation Trust,12/03/2021,(83400) Office Equipment,(id:42302) Cardiovascular Services,EDWARDS LIFESCIENCES LTD,id:13856817 ,    25530.00
Department of Health,Guys and St Thomas NHS Foundation Trust,19/03/2021,(83400) Office Equipment,(id:42302) Cardiovascular Services,EDWARDS LIFESCIENCES LTD,id:13870683 ,    25530.00
Department of Health,Guys and St Thomas NHS Foundation Trust,26/03/2021,(83400) Office Equipment,(id:42302) Cardiovascular Services,EDWARDS LIFESCIENCES LTD,id:13924312 ,    25530.00
Department of Health,Guys and St Thomas NHS Foundation Trust,26/03/2021,(81200) Medical Surgical Supplies & Equipment,(id:42302) Cardiovascular Services,CARDINAL HEALTH UK 432 LIMITED,id:13835010    , 604.80
Department of Health,Guys and St Thomas NHS Foundation Trust,26/03/2021,(81200) Medical Surgical Supplies & Equipment,(id:42302) Cardiovascular Services,TERUMO UK LTD,id:13899694 ,1140.00
Department of Health,Guys and St Thomas NHS Foundation Trust,12/03/2021,(81100) Dressings,(id:42302) Cardiovascular Services,NHS SUPPLY CHAIN (MAIDSTONE),id:13735674    ,  10.86
Department of Health,Guys and St Thomas NHS Foundation Trust,12/03/2021,(83400) Office Equipment,(id:42301) Cardiovascular Services,NHS SUPPLY CHAIN (MAIDSTONE),id:13735674  ,  70.85
Department of Health,Guys and St Thomas NHS Foundation Trust,12/03/2021,(81200) Medical Surgical Supplies & Equipment,(id:42301) Cardiovascular Services,NHS SUPPLY CHAIN (MAIDSTONE),id:13735674 ,  37.80
Department of Health,Guys and St Thomas NHS Foundation Trust,19/03/2021,(81200) Medical Surgical Supplies & Equipment,(id:42301) Cardiovascular Services,NHS SUPPLY CHAIN (MAIDSTONE),id:13795595 , 659.22
Department of Health,Guys and St Thomas NHS Foundation Trust,19/03/2021,(82800) Bedding & Linen,(id:42300) Cardiovascular Services,NHS SUPPLY CHAIN (MAIDSTONE),id:13815654   , 148.90
Department of Health,Guys and St Thomas NHS Foundation Trust,12/03/2021,(81200) Medical Surgical Supplies & Equipment,(id:42300) Cardiovascular Services,NHS SUPPLY CHAIN (MAIDSTONE),id:13735674 , 700.49
Department of Health,Guys and St Thomas NHS Foundation Trust,19/03/2021,(50552) Qualified Nursing Staff,(id:42300) Cardiovascular Services,CARE PROVIDERS HEALTHCARE,id:13891727   , 347.76
Department of Health,Guys and St Thomas NHS Foundation Trust,12/03/2021,(81255) Medical Surgical Supplies & Equipment,(id:42300) Cardiovascular Services,NHS SUPPLY CHAIN (MAIDSTONE),id:13735674 ,   3.37
Department of Health,Guys and St Thomas NHS Foundation Trust,19/03/2021,(81700) Lab Equipment Purchase,(id:42298) Cardiovascular Services,NHS SUPPLY CHAIN (MAIDSTONE),id:13795595 ,   8.07
Department of Health,Guys and St Thomas NHS Foundation Trust,12/03/2021,(81700) Lab Equipment Purchase,(id:42298) Cardiovascular Services,NHS SUPPLY CHAIN (MAIDSTONE),id:13735674 ,  14.47
Department of Health,Guys and St Thomas NHS Foundation Trust,12/03/2021,(82000) Provisions & Kitchens,(id:42298) Cardiovascular Services,NHS SUPPLY CHAIN (MAIDSTONE),id:13735674  ,  13.56
Department of Health,Guys and St Thomas NHS Foundation Trust,05/03/2021,(81240) Medical Surgical Supplies & Equipment,(id:42298) Cardiovascular Services,ABBOTT MEDICAL UK LTD,id:13813094   ,7200.00
Department of Health,Guys and St Thomas NHS Foundation Trust,12/03/2021,(81240) Medical Surgical Supplies & Equipment,(id:42298) Cardiovascular Services,MEDTRONIC LTD,id:13792447 , 900.00
Department of Health,Guys and St Thomas NHS Foundation Trust,19/03/2021,(81240) Medical Surgical Supplies & Equipment,(id:42298) Cardiovascular Services,MEDTRONIC LTD,id:13834786 ,6000.00
Department of Health,Guys and St Thomas NHS Foundation Trust,19/03/2021,(81240) Medical Surgical Supplies & Equipment,(id:42298) Cardiovascular Services,BOSTON SCIENTIFIC LTD,id:13835104   ,1910.40
Department of Health,Guys and St Thomas NHS Foundation Trust,19/03/2021,(81240) Medical Surgical Supplies & Equipment,(id:42298) Cardiovascular Services,MEDTRONIC LTD,id:13810961 ,5760.00
Department of Health,Guys and St Thomas NHS Foundation Trust,12/03/2021,(83400) Office Equipment,(id:42291) Cardiovascular Services,NHS SUPPLY CHAIN (MAIDSTONE),id:13735674  , 155.96
Department of Health,Guys and St Thomas NHS Foundation Trust,19/03/2021,(81100) Dressings,(id:42291) Cardiovascular Services,NHS SUPPLY CHAIN (MAIDSTONE),id:13815654    ,   9.19
Department of Health,Guys and St Thomas NHS Foundation Trust,19/03/2021,(81225) Medical Surgical Supplies & Equipment,(id:42291) Cardiovascular Services,NHS SUPPLY CHAIN (MAIDSTONE),id:13795595 ,   3.68
Department of Health,Guys and St Thomas NHS Foundation Trust,26/03/2021,(83500) Furniture & Fittings,(id:42290) Cardiovascular Services,TECHNIBLINDS LTD,id:13887515, 583.80
Department of Health,Guys and St Thomas NHS Foundation Trust,12/03/2021,(82600) Uniforms & Clothing,(id:42293) Cardiovascular Services,NHS SUPPLY CHAIN (MAIDSTONE),id:13735674    ,  21.24
Department of Health,Guys and St Thomas NHS Foundation Trust,12/03/2021,(81225) Medical Surgical Supplies & Equipment,(id:42293) Cardiovascular Services,NHS SUPPLY CHAIN (MAIDSTONE),id:13735674 ,  14.54
Department of Health,Guys and St Thomas NHS Foundation Trust,19/03/2021,(81200) Medical Surgical Supplies & Equipment,(id:42293) Cardiovascular Services,EDWARDS LIFESCIENCES LTD,id:13870689, 576.00
Department of Health,Guys and St Thomas NHS Foundation Trust,19/03/2021,(81200) Medical Surgical Supplies & Equipment,(id:42293) Cardiovascular Services,AQUILANT LTD,id:13881820  , 922.80
Department of Health,Guys and St Thomas NHS Foundation Trust,19/03/2021,(81200) Medical Surgical Supplies & Equipment,(id:42293) Cardiovascular Services,CRYOLIFE EUROPA LTD,id:13893845,1862.40
Department of Health,Guys and St Thomas NHS Foundation Trust,12/03/2021,(81200) Medical Surgical Supplies & Equipment,(id:42293) Cardiovascular Services,VASCUTEK LTD,id:13782074  , 712.20
Department of Health,Guys and St Thomas NHS Foundation Trust,12/03/2021,(81200) Medical Surgical Supplies & Equipment,(id:42293) Cardiovascular Services,DOT MEDICAL LTD,id:13844920    ,2121.60
Department of Health,Guys and St Thomas NHS Foundation Trust,12/03/2021,(81200) Medical Surgical Supplies & Equipment,(id:42293) Cardiovascular Services,EDWARDS LIFESCIENCES LTD,id:13856816, 576.00
Department of Health,Guys and St Thomas NHS Foundation Trust,26/03/2021,(81200) Medical Surgical Supplies & Equipment,(id:42293) Cardiovascular Services,EMMAT MEDICAL LTD,id:13859435  ,1200.00
Department of Health,Guys and St Thomas NHS Foundation Trust,26/03/2021,(81200) Medical Surgical Supplies & Equipment,(id:42293) Cardiovascular Services,ATRICURE EUROPE BV(DO NOT RAISE ORDERS IN EUROS),id:13836634 ,2772.00
Department of Health,Guys and St Thomas NHS Foundation Trust,19/03/2021,(89600) Non-Healthcare from other NHS bodies,(id:42293) Cardiovascular Services,NHS BLOOD AND TRANSPLANT,id:13412675 , 525.97
Department of Health,Guys and St Thomas NHS Foundation Trust,19/03/2021,(81280) Medical Surgical Supplies & Equipment,(id:42293) Cardiovascular Services,VASCUTEK LTD,id:13519143  ,1152.60
Department of Health,Guys and St Thomas NHS Foundation Trust,19/03/2021,(81280) Medical Surgical Supplies & Equipment,(id:42293) Cardiovascular Services,CRYOLIFE EUROPA LTD,id:13893844,1440.00
Department of Health,Guys and St Thomas NHS Foundation Trust,19/03/2021,(81280) Medical Surgical Supplies & Equipment,(id:42293) Cardiovascular Services,ABBOTT MEDICAL UK LTD,id:13691474   ,1920.00
Department of Health,Guys and St Thomas NHS Foundation Trust,26/03/2021,(81280) Medical Surgical Supplies & Equipment,(id:42293) Cardiovascular Services,EDWARDS LIFESCIENCES LTD,id:13919274,1104.00
Department of Health,Guys and St Thomas NHS Foundation Trust,26/03/2021,(81280) Medical Surgical Supplies & Equipment,(id:42293) Cardiovascular Services,EDWARDS LIFESCIENCES LTD,id:13924320,5640.00
Department of Health,Guys and St Thomas NHS Foundation Trust,12/03/2021,(81280) Medical Surgical Supplies & Equipment,(id:42293) Cardiovascular Services,EDWARDS LIFESCIENCES LTD,id:13856820,2208.00
Department of Health,Guys and St Thomas NHS Foundation Trust,12/03/2021,(81280) Medical Surgical Supplies & Equipment,(id:42293) Cardiovascular Services,EDWARDS LIFESCIENCES LTD,id:13815934,2544.00
Department of Health,Guys and St Thomas NHS Foundation Trust,12/03/2021,(81280) Medical Surgical Supplies & Equipment,(id:42293) Cardiovascular Services,CRYOLIFE EUROPA LTD,id:13864081,1440.00
Department of Health,Guys and St Thomas NHS Foundation Trust,26/03/2021,(81200) Medical Surgical Supplies & Equipment,(id:42292) Cardiovascular Services,LIVANOVA UK LTD,id:13869876    , 507.00
Department of Health,Guys and St Thomas NHS Foundation Trust,12/03/2021,(81100) Dressings,(id:42292) Cardiovascular Services,GETINGE LTD,id:13842234 ,1098.00
Department of Health,Guys and St Thomas NHS Foundation Trust,19/03/2021,(81100) Dressings,(id:42292) Cardiovascular Services,GETINGE LTD,id:13858534 ,1590.00
Department of Health,Guys and St Thomas NHS Foundation Trust,12/03/2021,(81270) Medical Surgical Supplies & Equipment,(id:42292) Cardiovascular Services,GETINGE LTD,id:13842116   ,1620.00
Department of Health,Guys and St Thomas NHS Foundation Trust,19/03/2021,(81200) Medical Surgical Supplies & Equipment,(id:42287) Cardiovascular Services,NHS SUPPLY CHAIN (MAIDSTONE),id:13815654 , 704.95
Department of Health,Guys and St Thomas NHS Foundation Trust,19/03/2021,(81100) Dressings,(id:42287) Cardiovascular Services,NHS SUPPLY CHAIN (MAIDSTONE),id:13795595    , 189.88
Department of Health,Guys and St Thomas NHS Foundation Trust,12/03/2021,(81100) Dressings,(id:42287) Cardiovascular Services,NHS SUPPLY CHAIN (MAIDSTONE),id:13735674    , 327.69
Department of Health,Guys and St Thomas NHS Foundation Trust,19/03/2021,(81700) Lab Equipment Purchase,(id:42287) Cardiovascular Services,NHS SUPPLY CHAIN (MAIDSTONE),id:13815654 ,  25.01
Department of Health,Guys and St Thomas NHS Foundation Trust,12/03/2021,(81200) Medical Surgical Supplies & Equipment,(id:41863) PACCS,NHS SUPPLY CHAIN (MAIDSTONE),id:13735674    , 204.36
Department of Health,Guys and St Thomas NHS Foundation Trust,19/03/2021,(81200) Medical Surgical Supplies & Equipment,(id:41863) PACCS,RESMED (UK) LTD,id:13773199  ,4620.00
Department of Health,Guys and St Thomas NHS Foundation Trust,26/03/2021,(81200) Medical Surgical Supplies & Equipment,(id:41863) PACCS,RESMED (UK) LTD,id:13921875  ,4662.00
Department of Health,Guys and St Thomas NHS Foundation Trust,26/03/2021,(81200) Medical Surgical Supplies & Equipment,(id:41863) PACCS,RESMED (UK) LTD,id:13922116  ,4800.00
Department of Health,Guys and St Thomas NHS Foundation Trust,26/03/2021,(81200) Medical Surgical Supplies & Equipment,(id:41863) PACCS,RESMED (UK) LTD,id:13922115  ,4800.00
Department of Health,Guys and St Thomas NHS Foundation Trust,12/03/2021,(82800) Bedding & Linen,(id:41863) PACCS,NHS SUPPLY CHAIN (MAIDSTONE),id:13735674 ,  38.30
Department of Health,Guys and St Thomas NHS Foundation Trust,12/03/2021,(50562) Qualified Nursing Staff,(id:41935) PACCS,JUST NURSES (NURSCO HEALTHCARE LIMITED),id:13861541  , 668.38
Department of Health,Guys and St Thomas NHS Foundation Trust,19/03/2021,(81200) Medical Surgical Supplies & Equipment,(id:41935) PACCS,FISHER & PAYKEL HEALTHCARE LTD,id:13870816  ,3629.66
Department of Health,Guys and St Thomas NHS Foundation Trust,26/03/2021,(81200) Medical Surgical Supplies & Equipment,(id:41935) PACCS,RESMED (UK) LTD,id:13922135  , 824.40
Department of Health,Guys and St Thomas NHS Foundation Trust,26/03/2021,(81200) Medical Surgical Supplies & Equipment,(id:41935) PACCS,RESMED (UK) LTD,id:13921934  ,1458.00
Department of Health,Guys and St Thomas NHS Foundation Trust,12/03/2021,(81225) Medical Surgical Supplies & Equipment,(id:41935) PACCS,NHS SUPPLY CHAIN (MAIDSTONE),id:13735674    , 204.20
Department of Health,Guys and St Thomas NHS Foundation Trust,19/03/2021,(81700) Lab Equipment Purchase,(id:41935) PACCS,NHS SUPPLY CHAIN (MAIDSTONE),id:13795595    ,  55.26
Department of Health,Guys and St Thomas NHS Foundation Trust,19/03/2021,(89440) Research and Development,(id:4641419) PACCS,CITYSPRINT (UK) LTD,id:13866494    ,3355.39
Department of Health,Guys and St Thomas NHS Foundation Trust,19/03/2021,(81400) Medical Surgical Supplies & Equipment,(id:4620419) PACCS,EDEN MEDICAL (UK) LTD,id:13881337    , 833.00
Department of Health,Guys and St Thomas NHS Foundation Trust,19/03/2021,(82800) Bedding & Linen,(id:4620419) PACCS,NHS SUPPLY CHAIN (MAIDSTONE),id:13815654    , 240.12
Department of Health,Guys and St Thomas NHS Foundation Trust,12/03/2021,(82700) Uniforms & Clothing,(id:4620419) PACCS,NHS SUPPLY CHAIN (MAIDSTONE),id:13735674, 116.33
Department of Health,Guys and St Thomas NHS Foundation Trust,12/03/2021,(81200) Medical Surgical Supplies & Equipment,(id:4620419) PACCS,KAPITEX HEALTHCARE LTD,id:13804593   ,2767.44
Department of Health,Guys and St Thomas NHS Foundation Trust,12/03/2021,(81200) Medical Surgical Supplies & Equipment,(id:4620419) PACCS,KAPITEX HEALTHCARE LTD,id:13842774   ,2842.63
Department of Health,Guys and St Thomas NHS Foundation Trust,12/03/2021,(81200) Medical Surgical Supplies & Equipment,(id:4620419) PACCS,HAMILTON MEDICAL UK (A DIVISION OF HAMILTON SALES & SERVICE UK LTD),id:13855255   ,1743.60
Department of Health,Guys and St Thomas NHS Foundation Trust,19/03/2021,(81200) Medical Surgical Supplies & Equipment,(id:4620419) PACCS,NHS SUPPLY CHAIN (MAIDSTONE),id:13795595  ,    18436.01
Department of Health,Guys and St Thomas NHS Foundation Trust,19/03/2021,(81200) Medical Surgical Supplies & Equipment,(id:4620419) PACCS,NHS SUPPLY CHAIN (MAIDSTONE),id:13815654  ,2100.63
Department of Health,Guys and St Thomas NHS Foundation Trust,19/03/2021,(81200) Medical Surgical Supplies & Equipment,(id:4620419) PACCS,CARDINAL HEALTH UK 432 LIMITED,id:13816345, 854.40
Department of Health,Guys and St Thomas NHS Foundation Trust,05/03/2021,(81700) Lab Equipment Purchase,(id:4620419) PACCS,WERFEN LIMITED,id:13812754 ,1027.30
Department of Health,Guys and St Thomas NHS Foundation Trust,19/03/2021,(81100) Dressings,(id:3135419) PACCS,NHS SUPPLY CHAIN (MAIDSTONE),id:13795595, 217.44
Department of Health,Guys and St Thomas NHS Foundation Trust,19/03/2021,(81225) Medical Surgical Supplies & Equipment,(id:3135419) PACCS,NHS SUPPLY CHAIN (MAIDSTONE),id:13795595  , 912.00
Department of Health,Guys and St Thomas NHS Foundation Trust,12/03/2021,(50562) Qualified Nursing Staff,(id:2121419) PACCS,JUST NURSES (NURSCO HEALTHCARE LIMITED),id:13861577, 716.38
Department of Health,Guys and St Thomas NHS Foundation Trust,12/03/2021,(50562) Qualified Nursing Staff,(id:2121419) PACCS,AMC PROFESSIONAL LTD,id:13861564    , 773.40
Department of Health,Guys and St Thomas NHS Foundation Trust,26/03/2021,(50562) Qualified Nursing Staff,(id:2121419) PACCS,JUST NURSES (NURSCO HEALTHCARE LIMITED),id:13920953, 703.88
Department of Health,Guys and St Thomas NHS Foundation Trust,05/03/2021,(50562) Qualified Nursing Staff,(id:2121419) PACCS,JUST NURSES (NURSCO HEALTHCARE LIMITED),id:13832592, 716.38
Department of Health,Guys and St Thomas NHS Foundation Trust,12/03/2021,(81100) Dressings,(id:2121419) PACCS,NHS SUPPLY CHAIN (MAIDSTONE),id:13735674, 207.65
Department of Health,Guys and St Thomas NHS Foundation Trust,12/03/2021,(83400) Office Equipment,(id:2121419) PACCS,NHS SUPPLY CHAIN (MAIDSTONE),id:13735674   ,   5.81
Department of Health,Guys and St Thomas NHS Foundation Trust,12/03/2021,(50522) Unqualified Nursing Staff,(id:2121419) PACCS,GLOBE LOCUMS LTD,id:13861407 , 285.64
Department of Health,Guys and St Thomas NHS Foundation Trust,19/03/2021,(83400) Office Equipment,(id:1842421) PACCS,NHS SUPPLY CHAIN (MAIDSTONE),id:13795595   ,  98.14
Department of Health,Guys and St Thomas NHS Foundation Trust,19/03/2021,(83400) Office Equipment,(id:1842421) PACCS,NHS SUPPLY CHAIN (MAIDSTONE),id:13815654   ,  78.53
Department of Health,Guys and St Thomas NHS Foundation Trust,12/03/2021,(83400) Office Equipment,(id:1842421) PACCS,NHS SUPPLY CHAIN (MAIDSTONE),id:13735674   ,  58.85
Department of Health,Guys and St Thomas NHS Foundation Trust,12/03/2021,(81255) Medical Surgical Supplies & Equipment,(id:1842421) PACCS,NHS SUPPLY CHAIN (MAIDSTONE),id:13735674  ,  10.49
Department of Health,Guys and St Thomas NHS Foundation Trust,19/03/2021,(81200) Medical Surgical Supplies & Equipment,(id:863419) PACCS,MEDTRONIC LTD,id:13810897   ,1380.00
Department of Health,Guys and St Thomas NHS Foundation Trust,19/03/2021,(81200) Medical Surgical Supplies & Equipment,(id:863419) PACCS,GETINGE LTD,id:13871118,    16920.00
Department of Health,Guys and St Thomas NHS Foundation Trust,12/03/2021,(83400) Office Equipment,(id:41931) PACCS,NHS SUPPLY CHAIN (MAIDSTONE),id:13735674, 251.83
Department of Health,Guys and St Thomas NHS Foundation Trust,12/03/2021,(82000) Provisions & Kitchens,(id:41931) PACCS,NHS SUPPLY CHAIN (MAIDSTONE),id:13735674,  69.32
Department of Health,Guys and St Thomas NHS Foundation Trust,12/03/2021,(81100) Dressings,(id:41931) PACCS,NHS SUPPLY CHAIN (MAIDSTONE),id:13735674  , 373.83
Department of Health,Guys and St Thomas NHS Foundation Trust,26/03/2021,(50522) Unqualified Nursing Staff,(id:41931) PACCS,CARE PROVIDERS HEALTHCARE,id:13921211    , 252.06
Department of Health,Guys and St Thomas NHS Foundation Trust,19/03/2021,(81200) Medical Surgical Supplies & Equipment,(id:41931) PACCS,NHS SUPPLY CHAIN (MAIDSTONE),id:13795595    ,3980.31
Department of Health,Guys and St Thomas NHS Foundation Trust,26/03/2021,(81200) Medical Surgical Supplies & Equipment,(id:41931) PACCS,FISHER & PAYKEL HEALTHCARE LTD,id:13845656  ,1296.00
Department of Health,Guys and St Thomas NHS Foundation Trust,19/03/2021,(81225) Medical Surgical Supplies & Equipment,(id:41931) PACCS,NHS SUPPLY CHAIN (MAIDSTONE),id:13795595    , 122.53
Department of Health,Guys and St Thomas NHS Foundation Trust,05/03/2021,(50562) Qualified Nursing Staff,(id:41931) PACCS,JUST NURSES (NURSCO HEALTHCARE LIMITED),id:13832814  , 668.38
Department of Health,Guys and St Thomas NHS Foundation Trust,19/03/2021,(81255) Medical Surgical Supplies & Equipment,(id:41931) PACCS,NHS SUPPLY CHAIN (MAIDSTONE),id:13795595    ,   8.64
Department of Health,Guys and St Thomas NHS Foundation Trust,12/03/2021,(82000) Provisions & Kitchens,(id:41928) PACCS,NHS SUPPLY CHAIN (MAIDSTONE),id:13735674,  20.28
Department of Health,Guys and St Thomas NHS Foundation Trust,19/03/2021,(81200) Medical Surgical Supplies & Equipment,(id:41928) PACCS,NHS SUPPLY CHAIN (MAIDSTONE),id:13815654    ,    12563.39
Department of Health,Guys and St Thomas NHS Foundation Trust,19/03/2021,(81200) Medical Surgical Supplies & Equipment,(id:41928) PACCS,BARD LTD,id:13758049    , 777.60
Department of Health,Guys and St Thomas NHS Foundation Trust,26/03/2021,(81200) Medical Surgical Supplies & Equipment,(id:41928) PACCS,KAPITEX HEALTHCARE LTD,id:13906914, 949.66
Department of Health,Guys and St Thomas NHS Foundation Trust,26/03/2021,(81200) Medical Surgical Supplies & Equipment,(id:41928) PACCS,KAPITEX HEALTHCARE LTD,id:13898435, 719.29
Department of Health,Guys and St Thomas NHS Foundation Trust,12/03/2021,(81200) Medical Surgical Supplies & Equipment,(id:41928) PACCS,HAMILTON MEDICAL UK (A DIVISION OF HAMILTON SALES & SERVICE UK LTD),id:13855154,2910.00
Department of Health,Guys and St Thomas NHS Foundation Trust,12/03/2021,(81200) Medical Surgical Supplies & Equipment,(id:41928) PACCS,WERFEN LIMITED,id:13843134   ,2343.19
Department of Health,Guys and St Thomas NHS Foundation Trust,12/03/2021,(81200) Medical Surgical Supplies & Equipment,(id:41928) PACCS,CONVATEC LTD,id:13840694, 612.00
Department of Health,Guys and St Thomas NHS Foundation Trust,12/03/2021,(81200) Medical Surgical Supplies & Equipment,(id:41928) PACCS,EDWARDS LIFESCIENCES LTD,id:13856798   ,1050.00
Department of Health,Guys and St Thomas NHS Foundation Trust,12/03/2021,(81200) Medical Surgical Supplies & Equipment,(id:41928) PACCS,STRYKER UK LTD,id:13841281   ,1188.00
Department of Health,Guys and St Thomas NHS Foundation Trust,19/03/2021,(81200) Medical Surgical Supplies & Equipment,(id:41928) PACCS,DELTA SURGICAL LTD,id:13845604    , 566.33
Department of Health,Guys and St Thomas NHS Foundation Trust,26/03/2021,(50552) Qualified Nursing Staff,(id:41928) PACCS,PULSE HEALTHCARE LIMITED,id:13925258  ,1058.00
Department of Health,Guys and St Thomas NHS Foundation Trust,12/03/2021,(50552) Qualified Nursing Staff,(id:41928) PACCS,PULSE HEALTHCARE LIMITED,id:13861256  , 628.94
Department of Health,Guys and St Thomas NHS Foundation Trust,12/03/2021,(83410) Office Equipment,(id:41928) PACCS,RICOH UK LTD,id:13863444 ,1039.64
Department of Health,Guys and St Thomas NHS Foundation Trust,05/03/2021,(50522) Unqualified Nursing Staff,(id:41928) PACCS,MEDICSPRO LTD,id:13832577 , 499.34
Department of Health,Guys and St Thomas NHS Foundation Trust,26/03/2021,(50522) Unqualified Nursing Staff,(id:41928) PACCS,CARE PROVIDERS HEALTHCARE,id:13920977    , 514.72
Department of Health,Guys and St Thomas NHS Foundation Trust,12/03/2021,(50522) Unqualified Nursing Staff,(id:41928) PACCS,CARE PROVIDERS HEALTHCARE,id:13861337    , 756.19
Department of Health,Guys and St Thomas NHS Foundation Trust,05/03/2021,(89440) Research and Development,(id:41928) PACCS,AMSCONSULTING,id:13831574  ,5000.00
Department of Health,Guys and St Thomas NHS Foundation Trust,26/03/2021,(89440) Research and Development,(id:41928) PACCS,SG CONSULTING,id:13916335  ,5000.00
Department of Health,Guys and St Thomas NHS Foundation Trust,19/03/2021,(81500) X Ray Equipment Purchase,(id:41928) PACCS,BIOQUELL UK LTD,id:13885997,1192.90
Department of Health,Guys and St Thomas NHS Foundation Trust,19/03/2021,(81230) Medical Surgical Supplies & Equipment,(id:41928) PACCS,NHS SUPPLY CHAIN (MAIDSTONE),id:13795595    , 545.47
Department of Health,Guys and St Thomas NHS Foundation Trust,19/03/2021,(81700) Lab Equipment Purchase,(id:41928) PACCS,NHS SUPPLY CHAIN (MAIDSTONE),id:13815654    , 131.00
Department of Health,Guys and St Thomas NHS Foundation Trust,12/03/2021,(50562) Qualified Nursing Staff,(id:41928) PACCS,AMC PROFESSIONAL LTD,id:13866018 , 763.30
Department of Health,Guys and St Thomas NHS Foundation Trust,12/03/2021,(50562) Qualified Nursing Staff,(id:41928) PACCS,AMC PROFESSIONAL LTD,id:13866040 , 764.51
Department of Health,Guys and St Thomas NHS Foundation Trust,12/03/2021,(50562) Qualified Nursing Staff,(id:41928) PACCS,AMC PROFESSIONAL LTD,id:13866028 , 770.80
Department of Health,Guys and St Thomas NHS Foundation Trust,12/03/2021,(50562) Qualified Nursing Staff,(id:41928) PACCS,AMC PROFESSIONAL LTD,id:13866024 , 784.28
Department of Health,Guys and St Thomas NHS Foundation Trust,12/03/2021,(50562) Qualified Nursing Staff,(id:41928) PACCS,AMC PROFESSIONAL LTD,id:13865993 , 791.82
Department of Health,Guys and St Thomas NHS Foundation Trust,12/03/2021,(50562) Qualified Nursing Staff,(id:41928) PACCS,PULSE HEALTHCARE LIMITED,id:13861434  , 957.50
Department of Health,Guys and St Thomas NHS Foundation Trust,12/03/2021,(50562) Qualified Nursing Staff,(id:41928) PACCS,MEDICSPRO LTD,id:13861530   , 625.81
Department of Health,Guys and St Thomas NHS Foundation Trust,12/03/2021,(50562) Qualified Nursing Staff,(id:41928) PACCS,JUST NURSES (NURSCO HEALTHCARE LIMITED),id:13861400  , 668.38
Department of Health,Guys and St Thomas NHS Foundation Trust,12/03/2021,(50562) Qualified Nursing Staff,(id:41928) PACCS,AMC PROFESSIONAL LTD,id:13861344 ,2225.37
Department of Health,Guys and St Thomas NHS Foundation Trust,12/03/2021,(50562) Qualified Nursing Staff,(id:41928) PACCS,AMC PROFESSIONAL LTD,id:13866019 ,2228.59
Department of Health,Guys and St Thomas NHS Foundation Trust,19/03/2021,(50562) Qualified Nursing Staff,(id:41928) PACCS,MEDICSPRO LTD,id:13891749   , 590.53
Department of Health,Guys and St Thomas NHS Foundation Trust,19/03/2021,(50562) Qualified Nursing Staff,(id:41928) PACCS,MEDICSPRO LTD,id:13892008   , 643.81
Department of Health,Guys and St Thomas NHS Foundation Trust,19/03/2021,(50562) Qualified Nursing Staff,(id:41928) PACCS,AMC PROFESSIONAL LTD,id:13891724 , 646.19
Department of Health,Guys and St Thomas NHS Foundation Trust,19/03/2021,(50562) Qualified Nursing Staff,(id:41928) PACCS,MEDICSPRO LTD,id:13891860   , 669.48
Department of Health,Guys and St Thomas NHS Foundation Trust,19/03/2021,(50562) Qualified Nursing Staff,(id:41928) PACCS,AMC PROFESSIONAL LTD,id:13891625 , 791.82
Department of Health,Guys and St Thomas NHS Foundation Trust,19/03/2021,(50562) Qualified Nursing Staff,(id:41928) PACCS,AMC PROFESSIONAL LTD,id:13891834 , 791.82
Department of Health,Guys and St Thomas NHS Foundation Trust,19/03/2021,(50562) Qualified Nursing Staff,(id:41928) PACCS,JUST NURSES (NURSCO HEALTHCARE LIMITED),id:13891888  , 716.30
Department of Health,Guys and St Thomas NHS Foundation Trust,19/03/2021,(50562) Qualified Nursing Staff,(id:41928) PACCS,AMC PROFESSIONAL LTD,id:13891649 , 735.20
Department of Health,Guys and St Thomas NHS Foundation Trust,19/03/2021,(50562) Qualified Nursing Staff,(id:41928) PACCS,AMC PROFESSIONAL LTD,id:13891782 , 764.62
Department of Health,Guys and St Thomas NHS Foundation Trust,26/03/2021,(50562) Qualified Nursing Staff,(id:41928) PACCS,MEDICSPRO LTD,id:13921168   ,1362.88
Department of Health,Guys and St Thomas NHS Foundation Trust,26/03/2021,(50562) Qualified Nursing Staff,(id:41928) PACCS,AMC PROFESSIONAL LTD,id:13921284 , 735.20
Department of Health,Guys and St Thomas NHS Foundation Trust,26/03/2021,(50562) Qualified Nursing Staff,(id:41928) PACCS,AMC PROFESSIONAL LTD,id:13920962 , 735.20
Department of Health,Guys and St Thomas NHS Foundation Trust,26/03/2021,(50562) Qualified Nursing Staff,(id:41928) PACCS,AMC PROFESSIONAL LTD,id:13921203 , 754.97
Department of Health,Guys and St Thomas NHS Foundation Trust,26/03/2021,(50562) Qualified Nursing Staff,(id:41928) PACCS,AMC PROFESSIONAL LTD,id:13921196 , 792.96
Department of Health,Guys and St Thomas NHS Foundation Trust,26/03/2021,(50562) Qualified Nursing Staff,(id:41928) PACCS,AMC PROFESSIONAL LTD,id:13921215 , 822.48
Department of Health,Guys and St Thomas NHS Foundation Trust,05/03/2021,(50562) Qualified Nursing Staff,(id:41928) PACCS,URGENT STAFFING LTD,id:13833519  ,1510.20
Department of Health,Guys and St Thomas NHS Foundation Trust,05/03/2021,(50562) Qualified Nursing Staff,(id:41928) PACCS,MEDICSPRO LTD,id:13832843   , 590.53
Department of Health,Guys and St Thomas NHS Foundation Trust,05/03/2021,(50562) Qualified Nursing Staff,(id:41928) PACCS,MEDICSPRO LTD,id:13832691   , 679.65
Department of Health,Guys and St Thomas NHS Foundation Trust,05/03/2021,(50562) Qualified Nursing Staff,(id:41928) PACCS,JUST NURSES (NURSCO HEALTHCARE LIMITED),id:13832537  ,2088.64
Department of Health,Guys and St Thomas NHS Foundation Trust,05/03/2021,(50562) Qualified Nursing Staff,(id:41928) PACCS,AMC PROFESSIONAL LTD,id:13832665 , 735.20
Department of Health,Guys and St Thomas NHS Foundation Trust,05/03/2021,(50562) Qualified Nursing Staff,(id:41928) PACCS,AMC PROFESSIONAL LTD,id:13832928 ,1490.17
Department of Health,Guys and St Thomas NHS Foundation Trust,05/03/2021,(50562) Qualified Nursing Staff,(id:41928) PACCS,AMC PROFESSIONAL LTD,id:13809591 ,1582.40
Department of Health,Guys and St Thomas NHS Foundation Trust,12/03/2021,(81100) Dressings,(id:41927) PACCS,NHS SUPPLY CHAIN (MAIDSTONE),id:13735674  , 542.26
Department of Health,Guys and St Thomas NHS Foundation Trust,12/03/2021,(81200) Medical Surgical Supplies & Equipment,(id:41927) PACCS,NHS SUPPLY CHAIN (MAIDSTONE),id:13735674    ,5383.24
Department of Health,Guys and St Thomas NHS Foundation Trust,12/03/2021,(81200) Medical Surgical Supplies & Equipment,(id:41927) PACCS,CONVATEC LTD,id:13840459, 612.00
Department of Health,Guys and St Thomas NHS Foundation Trust,19/03/2021,(83400) Office Equipment,(id:41927) PACCS,NHS SUPPLY CHAIN (MAIDSTONE),id:13795595, 249.63
Department of Health,Guys and St Thomas NHS Foundation Trust,12/03/2021,(81225) Medical Surgical Supplies & Equipment,(id:41927) PACCS,NHS SUPPLY CHAIN (MAIDSTONE),id:13735674    , 186.57
Department of Health,Guys and St Thomas NHS Foundation Trust,12/03/2021,(81200) Medical Surgical Supplies & Equipment,(id:41919) PACCS,ZOLL MEDICAL UK LTD,id:13821657   , 508.74
Department of Health,Guys and St Thomas NHS Foundation Trust,19/03/2021,(81200) Medical Surgical Supplies & Equipment,(id:41919) PACCS,NHS SUPPLY CHAIN (MAIDSTONE),id:13795595    ,  32.12
Department of Health,Guys and St Thomas NHS Foundation Trust,05/03/2021,(50203) Consultants,(id:41864) PACCS,KINGS COLLEGE LONDON:03529700,id:13785095    ,1965.67
Department of Health,Guys and St Thomas NHS Foundation Trust,05/03/2021,(81200) Medical Surgical Supplies & Equipment,(id:41864) PACCS,OLYMPUS KEYMED,id:13812479   ,9136.44
Department of Health,Guys and St Thomas NHS Foundation Trust,12/03/2021,(89120) Other - Legal fees,(id:2188419) Chief Executive,BEACHCROFT LLP OFFICE ACCOUNT,id:13584695,    14121.90
Department of Health,Guys and St Thomas NHS Foundation Trust,12/03/2021,(83410) Office Equipment,(id:332406) Chief Executive,RICOH UK LTD,id:13863444, 266.34
Department of Health,Guys and St Thomas NHS Foundation Trust,19/03/2021,(89000) Other - Training courses and conferences,(id:987420) Hosted Services,JCA GLOBAL LTD,id:13821055    , 715.00
Department of Health,Guys and St Thomas NHS Foundation Trust,12/03/2021,(89280) Other - Consultancy costs,(id:987420) Hosted Services,KINGSTON UNIVERSITY,id:13737416    ,5206.40
Department of Health,Guys and St Thomas NHS Foundation Trust,05/03/2021,(83610) IT Costs,(id:221406) Hosted Services,KINGS COLLEGE LONDON:03529700,id:13821075 , 852.13
Department of Health,Guys and St Thomas NHS Foundation Trust,12/03/2021,(83400) Office Equipment,(id:42814) Communications,DAVID TETT PHOTOGRAPHY LTD,id:13855454   ,1200.00
Department of Health,Guys and St Thomas NHS Foundation Trust,19/03/2021,(82800) Bedding & Linen,(id:42814) Communications,NHS SUPPLY CHAIN (MAIDSTONE),id:13815654  ,  23.41
Department of Health,Guys and St Thomas NHS Foundation Trust,19/03/2021,(82000) Provisions & Kitchens,(id:5067419) Central Services,AMT COFFEE LTD,id:13881496 ,    74733.72
Department of Health,Guys and St Thomas NHS Foundation Trust,12/03/2021,(84100) Transport,(id:590619) Central Services,OMD AUTOS LIMITED,id:13860415 , 250.00
Department of Health,Guys and St Thomas NHS Foundation Trust,26/03/2021,(84100) Transport,(id:590619) Central Services,OMD AUTOS LIMITED,id:13901737 , 250.00
Department of Health,Guys and St Thomas NHS Foundation Trust,26/03/2021,(84100) Transport,(id:590619) Central Services,LEASEPLAN UK LIMITED,id:13923433   , 766.08
Department of Health,Guys and St Thomas NHS Foundation Trust,12/03/2021,(84200) Rental under Operating Lease,(id:590619) Central Services,LEASEPLAN UK LIMITED,id:13855895    ,    -1560.65
Department of Health,Guys and St Thomas NHS Foundation Trust,19/03/2021,(84200) Rental under Operating Lease,(id:590619) Central Services,ALPHABET (GB) LTD (ING),id:13840914 ,3531.91
Department of Health,Guys and St Thomas NHS Foundation Trust,19/03/2021,(84200) Rental under Operating Lease,(id:590619) Central Services,ALPHABET (GB) LTD (ING),id:13840918 ,3531.91
Department of Health,Guys and St Thomas NHS Foundation Trust,19/03/2021,(84200) Rental under Operating Lease,(id:590619) Central Services,ALPHABET (GB) LTD (ING),id:13840950 ,3662.23
Department of Health,Guys and St Thomas NHS Foundation Trust,12/03/2021,(84400) Transport,(id:42579) Central Services,STARCROSS TRADING LTD T/A BEARS,id:13859034   ,5728.59
Department of Health,Guys and St Thomas NHS Foundation Trust,19/03/2021,(84400) Transport,(id:42579) Central Services,STARCROSS TRADING LTD T/A BEARS,id:13893610   , 438.60
Department of Health,Guys and St Thomas NHS Foundation Trust,19/03/2021,(84400) Transport,(id:42579) Central Services,STARCROSS TRADING LTD T/A BEARS,id:13893625   ,1080.70
Department of Health,Guys and St Thomas NHS Foundation Trust,19/03/2021,(84400) Transport,(id:42579) Central Services,STARCROSS TRADING LTD T/A BEARS,id:13898337   ,1289.00
Department of Health,Guys and St Thomas NHS Foundation Trust,19/03/2021,(84400) Transport,(id:42579) Central Services,STARCROSS TRADING LTD T/A BEARS,id:13867855   ,3475.25
Department of Health,Guys and St Thomas NHS Foundation Trust,19/03/2021,(84400) Transport,(id:42579) Central Services,STARCROSS TRADING LTD T/A BEARS,id:13893495   ,3991.93
Department of Health,Guys and St Thomas NHS Foundation Trust,19/03/2021,(84400) Transport,(id:42579) Central Services,STARCROSS TRADING LTD T/A BEARS,id:13898554   ,4400.00
Department of Health,Guys and St Thomas NHS Foundation Trust,19/03/2021,(84400) Transport,(id:42579) Central Services,STARCROSS TRADING LTD T/A BEARS,id:13867954   ,6210.83
Department of Health,Guys and St Thomas NHS Foundation Trust,19/03/2021,(84400) Transport,(id:42579) Central Services,Q DESPATCH (WEST) LTD,id:13837954   ,7612.50
Department of Health,Guys and St Thomas NHS Foundation Trust,26/03/2021,(84400) Transport,(id:42579) Central Services,CMAC GROUP UK LTD,id:13901856  ,9381.98
Department of Health,Guys and St Thomas NHS Foundation Trust,26/03/2021,(84400) Transport,(id:42579) Central Services,STARCROSS TRADING LTD T/A BEARS,id:13901816   , 880.00
Department of Health,Guys and St Thomas NHS Foundation Trust,26/03/2021,(84400) Transport,(id:42579) Central Services,STARCROSS TRADING LTD T/A BEARS,id:13920594   ,1200.00
Department of Health,Guys and St Thomas NHS Foundation Trust,26/03/2021,(84400) Transport,(id:42579) Central Services,STARCROSS TRADING LTD T/A BEARS,id:13923234   ,2455.24
Department of Health,Guys and St Thomas NHS Foundation Trust,26/03/2021,(84400) Transport,(id:42579) Central Services,STARCROSS TRADING LTD T/A BEARS,id:13901810   ,7341.93
Department of Health,Guys and St Thomas NHS Foundation Trust,26/03/2021,(84400) Transport,(id:42579) Central Services,STARCROSS TRADING LTD T/A BEARS,id:13901808   ,7691.21
Department of Health,Guys and St Thomas NHS Foundation Trust,05/03/2021,(84400) Transport,(id:42579) Central Services,STARCROSS TRADING LTD T/A BEARS,id:13804710   , 697.20
Department of Health,Guys and St Thomas NHS Foundation Trust,05/03/2021,(84400) Transport,(id:42579) Central Services,STARCROSS TRADING LTD T/A BEARS,id:13838254   , 990.00
Department of Health,Guys and St Thomas NHS Foundation Trust,12/03/2021,(84400) Transport,(id:42579) Central Services,STARCROSS TRADING LTD T/A BEARS,id:13867274   , 648.00
Department of Health,Guys and St Thomas NHS Foundation Trust,12/03/2021,(84400) Transport,(id:42579) Central Services,STARCROSS TRADING LTD T/A BEARS,id:13863534   , 800.00
Department of Health,Guys and St Thomas NHS Foundation Trust,12/03/2021,(84400) Transport,(id:42579) Central Services,STARCROSS TRADING LTD T/A BEARS,id:13863579   , 800.00
Department of Health,Guys and St Thomas NHS Foundation Trust,12/03/2021,(84400) Transport,(id:42579) Central Services,STARCROSS TRADING LTD T/A BEARS,id:13859534   ,1265.08
Department of Health,Guys and St Thomas NHS Foundation Trust,12/03/2021,(84400) Transport,(id:42579) Central Services,STARCROSS TRADING LTD T/A BEARS,id:13863714   ,1722.62
Department of Health,Guys and St Thomas NHS Foundation Trust,12/03/2021,(84400) Transport,(id:42579) Central Services,STARCROSS TRADING LTD T/A BEARS,id:13859854   ,2067.70
Department of Health,Guys and St Thomas NHS Foundation Trust,12/03/2021,(84400) Transport,(id:42579) Central Services,STARCROSS TRADING LTD T/A BEARS,id:13863934   ,3933.36
Department of Health,Guys and St Thomas NHS Foundation Trust,26/03/2021,(84400) Transport,(id:42579) Central Services,STARCROSS TRADING LTD T/A BEARS,id:13923482   ,3057.68
Department of Health,Guys and St Thomas NHS Foundation Trust,26/03/2021,(84400) Transport,(id:42579) Central Services,STARCROSS TRADING LTD T/A BEARS,id:13923261   ,4268.60
Department of Health,Guys and St Thomas NHS Foundation Trust,05/03/2021,(84400) Transport,(id:42579) Central Services,STARCROSS TRADING LTD T/A BEARS,id:13804420   ,2472.52
Department of Health,Guys and St Thomas NHS Foundation Trust,05/03/2021,(84400) Transport,(id:42579) Central Services,STARCROSS TRADING LTD T/A BEARS,id:13834334   ,3200.00
Department of Health,Guys and St Thomas NHS Foundation Trust,05/03/2021,(84400) Transport,(id:42579) Central Services,STARCROSS TRADING LTD T/A BEARS,id:13825375   ,3980.62
Department of Health,Guys and St Thomas NHS Foundation Trust,05/03/2021,(84400) Transport,(id:42579) Central Services,STARCROSS TRADING LTD T/A BEARS,id:13834234   ,5200.00
Department of Health,Guys and St Thomas NHS Foundation Trust,05/03/2021,(84400) Transport,(id:42579) Central Services,STARCROSS TRADING LTD T/A BEARS,id:13824654   ,6750.00
Department of Health,Guys and St Thomas NHS Foundation Trust,05/03/2021,(84400) Transport,(id:42579) Central Services,STARCROSS TRADING LTD T/A BEARS,id:13825434   ,1640.86
Department of Health,Guys and St Thomas NHS Foundation Trust,05/03/2021,(84400) Transport,(id:42579) Central Services,STARCROSS TRADING LTD T/A BEARS,id:13825354   ,1951.00
Department of Health,Guys and St Thomas NHS Foundation Trust,05/03/2021,(84400) Transport,(id:42579) Central Services,STARCROSS TRADING LTD T/A BEARS,id:13824834   ,2243.68
Department of Health,Guys and St Thomas NHS Foundation Trust,05/03/2021,(84400) Transport,(id:42579) Central Services,STARCROSS TRADING LTD T/A BEARS,id:13837234   ,2253.00
Department of Health,Guys and St Thomas NHS Foundation Trust,19/03/2021,(83400) Office Equipment,(id:42579) Central Services,NHS SUPPLY CHAIN (MAIDSTONE),id:13815654    , 364.47
Department of Health,Guys and St Thomas NHS Foundation Trust,19/03/2021,(84200) Rental under Operating Lease,(id:42579) Central Services,LEASEPLAN UK LIMITED,id:13893355,    33336.71
Department of Health,Guys and St Thomas NHS Foundation Trust,19/03/2021,(84100) Transport,(id:42579) Central Services,OMD AUTOS LIMITED,id:13898254  , 250.00
Department of Health,Guys and St Thomas NHS Foundation Trust,19/03/2021,(84100) Transport,(id:42579) Central Services,OMD AUTOS LIMITED,id:13868194  , 441.61
Department of Health,Guys and St Thomas NHS Foundation Trust,19/03/2021,(84100) Transport,(id:42579) Central Services,OMD AUTOS LIMITED,id:13898074  , 450.00
Department of Health,Guys and St Thomas NHS Foundation Trust,19/03/2021,(84100) Transport,(id:42579) Central Services,OMD AUTOS LIMITED,id:13868254  , 670.00
Department of Health,Guys and St Thomas NHS Foundation Trust,05/03/2021,(84100) Transport,(id:42579) Central Services,OMD AUTOS LIMITED,id:13834827  , 250.00
Department of Health,Guys and St Thomas NHS Foundation Trust,05/03/2021,(83880) Building & Engineering,(id:42556) Central Services,TRAVIS PERKINS TRADING CO LTD,id:13808875  , 727.98
Department of Health,Guys and St Thomas NHS Foundation Trust,05/03/2021,(83400) Office Equipment,(id:42563) Central Services,LEYLAND TRADE - PPG ARCHITECTURAL COATINGS UK LIMITED,id:13804376    , 663.73
Department of Health,Guys and St Thomas NHS Foundation Trust,26/03/2021,(83120) Energy Costs,(id:42562) Central Services,BRITISH GAS BUSINESS:70299300,id:13917579  , 793.00
Department of Health,Guys and St Thomas NHS Foundation Trust,26/03/2021,(84600) Establishment,(id:4622429) Central Services,PARK PLAZA,id:13907054   ,7465.50
Department of Health,Guys and St Thomas NHS Foundation Trust,26/03/2021,(84600) Establishment,(id:4622429) Central Services,PARK PLAZA,id:13914114   ,    69080.54
Department of Health,Guys and St Thomas NHS Foundation Trust,26/03/2021,(84600) Establishment,(id:4622429) Central Services,PARK PLAZA,id:13907234   ,   116350.50
Department of Health,Guys and St Thomas NHS Foundation Trust,30/03/2021,(82000) Provisions & Kitchens,(id:42535) Central Services,PELICAN PROCUREMENT SERVICES LTD,id:13939934,    81125.88
Department of Health,Guys and St Thomas NHS Foundation Trust,30/03/2021,(83400) Office Equipment,(id:42535) Central Services,PELICAN PROCUREMENT SERVICES LTD,id:13939934,   137792.07
Department of Health,Guys and St Thomas NHS Foundation Trust,05/03/2021,(84500) Establishment,(id:42535) Central Services,CDP  PRINT MANAGEMENT,id:13817714    ,2205.24
Department of Health,Guys and St Thomas NHS Foundation Trust,12/03/2021,(82600) Uniforms & Clothing,(id:42535) Central Services,M P D (UK SALES) LTD,id:13848157    , 549.60
Department of Health,Guys and St Thomas NHS Foundation Trust,30/03/2021,(83400) Office Equipment,(id:42524) Central Services,PELICAN PROCUREMENT SERVICES LTD,id:13939934,4860.45
Department of Health,Guys and St Thomas NHS Foundation Trust,19/03/2021,(89000) Other - Training courses and conferences,(id:4629421) Asset Management,ESSENTIA TRADING LIMITED,id:13752061  ,2930.00
Department of Health,Guys and St Thomas NHS Foundation Trust,26/03/2021,(83500) Furniture & Fittings,(id:4629421) Asset Management,KEY STRUCTURES LTD,id:13925374   ,4808.16
Department of Health,Guys and St Thomas NHS Foundation Trust,05/03/2021,(83880) Building & Engineering,(id:2719419) Asset Management,OCTAGON MAINTENANCE & SHOPFITTING LTD,id:13814854  ,4840.00
Department of Health,Guys and St Thomas NHS Foundation Trust,05/03/2021,(89000) Other - Training courses and conferences,(id:42614) Asset Management,ASITE SOLUTIONS LTD,id:13811976    , 800.00
Department of Health,Guys and St Thomas NHS Foundation Trust,19/03/2021,(83400) Office Equipment,(id:42624) Asset Management,ESSENTIA TRADING LIMITED,id:13528811   , 851.87
Department of Health,Guys and St Thomas NHS Foundation Trust,12/03/2021,(83880) Building & Engineering,(id:42624) Asset Management,WSP UK LTD,id:13803574 , 700.00
Department of Health,Guys and St Thomas NHS Foundation Trust,12/03/2021,(89120) Other - Legal fees,(id:42624) Asset Management,BEACHCROFT LLP OFFICE ACCOUNT,id:13710505 ,1886.00
Department of Health,Guys and St Thomas NHS Foundation Trust,12/03/2021,(89120) Other - Legal fees,(id:42624) Asset Management,BEACHCROFT LLP OFFICE ACCOUNT,id:13594575 ,2500.00
Department of Health,Guys and St Thomas NHS Foundation Trust,19/03/2021,(89120) Other - Legal fees,(id:42624) Asset Management,BEACHCROFT LLP OFFICE ACCOUNT,id:13876398 ,5220.00
Department of Health,Guys and St Thomas NHS Foundation Trust,26/03/2021,(89120) Other - Legal fees,(id:42624) Asset Management,BEACHCROFT LLP OFFICE ACCOUNT,id:13923658 , 650.00
Department of Health,Guys and St Thomas NHS Foundation Trust,05/03/2021,(83110) Energy Costs,(id:4934428) Asset Management,EDF ENERGY,id:13830576    ,3377.07
Department of Health,Guys and St Thomas NHS Foundation Trust,05/03/2021,(83110) Energy Costs,(id:4934428) Asset Management,EDF ENERGY,id:13832374    ,2840.05
Department of Health,Guys and St Thomas NHS Foundation Trust,05/03/2021,(83110) Energy Costs,(id:4934428) Asset Management,EDF ENERGY,id:13832314    ,    -3193.33
Department of Health,Guys and St Thomas NHS Foundation Trust,05/03/2021,(83120) Energy Costs,(id:4934428) Asset Management,TOTAL GAS & POWER LIMITED,id:13757695    ,2033.38
Department of Health,Guys and St Thomas NHS Foundation Trust,12/03/2021,(83755) Rental under Operating Lease,(id:4774421) Asset Management,COMMUNITY HEALTH PARTNERSHIPS,id:13839578    ,8508.60
Department of Health,Guys and St Thomas NHS Foundation Trust,12/03/2021,(83765) Rent,(id:4774421) Asset Management,COMMUNITY HEALTH PARTNERSHIPS,id:13839854   ,    13103.16
Department of Health,Guys and St Thomas NHS Foundation Trust,19/03/2021,(83765) Rent,(id:4774421) Asset Management,COMMUNITY HEALTH PARTNERSHIPS,id:13840023   ,    12612.46
Department of Health,Guys and St Thomas NHS Foundation Trust,12/03/2021,(83755) Rental under Operating Lease,(id:4774420) Asset Management,NHS PROPERTY SERVICES,id:13867076  ,    26174.82
Department of Health,Guys and St Thomas NHS Foundation Trust,12/03/2021,(83765) Rent,(id:4774420) Asset Management,NHS PROPERTY SERVICES,id:13867096 ,    18471.80
Department of Health,Guys and St Thomas NHS Foundation Trust,19/03/2021,(83710) Rates,(id:2409419) Asset Management,NHS PROPERTY SERVICES,id:13875257,7133.69
Department of Health,Guys and St Thomas NHS Foundation Trust,19/03/2021,(83755) Rental under Operating Lease,(id:899420) Asset Management,NHS PROPERTY SERVICES,id:13875334   ,    27373.80
Department of Health,Guys and St Thomas NHS Foundation Trust,12/03/2021,(83755) Rental under Operating Lease,(id:42650) Asset Management,COMMUNITY HEALTH PARTNERSHIPS,id:13840216 ,3279.17
Department of Health,Guys and St Thomas NHS Foundation Trust,12/03/2021,(83755) Rental under Operating Lease,(id:42650) Asset Management,COMMUNITY HEALTH PARTNERSHIPS,id:13838656 ,    55050.09
Department of Health,Guys and St Thomas NHS Foundation Trust,19/03/2021,(83765) Rent,(id:42613) Asset Management,NHS PROPERTY SERVICES,id:13875054   ,    22773.81
Department of Health,Guys and St Thomas NHS Foundation Trust,12/03/2021,(83410) Office Equipment,(id:42603) Essentia Director,RICOH UK LTD,id:13863444    , 246.81
Department of Health,Guys and St Thomas NHS Foundation Trust,19/03/2021,(82800) Bedding & Linen,(id:360409) Customer Services,NHS SUPPLY CHAIN (MAIDSTONE),id:13795595   , 117.06
Department of Health,Guys and St Thomas NHS Foundation Trust,19/03/2021,(83400) Office Equipment,(id:360409) Customer Services,NHS SUPPLY CHAIN (MAIDSTONE),id:13795595  ,  16.10
Department of Health,Guys and St Thomas NHS Foundation Trust,12/03/2021,(83350) Premises Services,(id:492412) Essentia Community Services,ASSIST SECURITY LIMITED,id:13854214 ,1260.00
Department of Health,Guys and St Thomas NHS Foundation Trust,12/03/2021,(83880) Building & Engineering,(id:1116422) Essentia Community Services,BELLS POWER LTD,id:13755934   ,1850.00
Department of Health,Guys and St Thomas NHS Foundation Trust,05/03/2021,(83820) Building & Engineering,(id:1116421) Essentia Community Services,LONDON & SURREY ROOFING LTD,id:13810671 ,1350.00
Department of Health,Guys and St Thomas NHS Foundation Trust,12/03/2021,(83881) Building & Engineering,(id:1116419) Essentia Community Services,MASKOLD ENVIRONMENTAL LTD,id:13751795   , 355.00
Department of Health,Guys and St Thomas NHS Foundation Trust,12/03/2021,(84500) Establishment,(id:4889419) Essentia Community Services,INNOVATIVE DISPLAYS (TALKSIGN LTD),id:13851074   ,1218.00
Department of Health,Guys and St Thomas NHS Foundation Trust,05/03/2021,(83881) Building & Engineering,(id:1667419) Essentia Community Services,TECH ASSETT MANAGEMENT LTD (COMPLIANCE),id:13810711    , 564.25
Department of Health,Guys and St Thomas NHS Foundation Trust,19/03/2021,(83880) Building & Engineering,(id:1116429) Essentia Community Services,PB PUMPS & MOTORS LONDON LTD,id:13834634,1360.00
Department of Health,Guys and St Thomas NHS Foundation Trust,12/03/2021,(83360) Premises Services,(id:4629422) Essentia Community Services,REDLAND CONSTRUCTION LIMITED,id:13797694,3078.00
Department of Health,Guys and St Thomas NHS Foundation Trust,19/03/2021,(82000) Provisions & Kitchens,(id:492598) Essentia Community Services,NHS SUPPLY CHAIN (MAIDSTONE),id:13795595  , 507.81
Department of Health,Guys and St Thomas NHS Foundation Trust,19/03/2021,(83400) Office Equipment,(id:492593) Essentia Community Services,NHS SUPPLY CHAIN (MAIDSTONE),id:13815654  , 674.97
Department of Health,Guys and St Thomas NHS Foundation Trust,12/03/2021,(84000) Transport,(id:492597) Essentia Community Services,ALLSTAR BUSINESS SOLUTIONS LTD (ARVAL),id:13858674    , 469.38
Department of Health,Guys and St Thomas NHS Foundation Trust,12/03/2021,(83881) Building & Engineering,(id:492601) Essentia Community Services,SIEMSATEC LIMITED,id:13808756  , 511.26
Department of Health,Guys and St Thomas NHS Foundation Trust,12/03/2021,(83881) Building & Engineering,(id:492601) Essentia Community Services,SIEMSATEC LIMITED,id:13841826  , 683.10
Department of Health,Guys and St Thomas NHS Foundation Trust,12/03/2021,(84000) Transport,(id:492418) Essentia Community Services,ALLSTAR BUSINESS SOLUTIONS LTD (ARVAL),id:13858514    , 415.94
Department of Health,Guys and St Thomas NHS Foundation Trust,12/03/2021,(83880) Building & Engineering,(id:492528) Essentia Community Services,PJ HARVEY & CO LTD,id:13755618 , 956.36
Department of Health,Guys and St Thomas NHS Foundation Trust,12/03/2021,(83400) Office Equipment,(id:492528) Essentia Community Services,CITY ELECTRICAL FACTORS LTD,id:13739174   , 619.20
Department of Health,Guys and St Thomas NHS Foundation Trust,26/03/2021,(83110) Energy Costs,(id:492480) Essentia Commercial,EDF ENERGY,id:13924336  ,    -2429.46
Department of Health,Guys and St Thomas NHS Foundation Trust,19/03/2021,(83342) Premises Services,(id:492478) Essentia Commercial,SRCL LTD,id:13894937    , 487.80
Department of Health,Guys and St Thomas NHS Foundation Trust,19/03/2021,(83110) Energy Costs,(id:492462) Essentia Commercial,BRITISH GAS BUSINESS:70299300,id:13897875   , 501.44
Department of Health,Guys and St Thomas NHS Foundation Trust,12/03/2021,(83110) Energy Costs,(id:492455) Essentia Commercial,BRITISH GAS BUSINESS:70299300,id:13842674   , 288.44
Department of Health,Guys and St Thomas NHS Foundation Trust,19/03/2021,(83110) Energy Costs,(id:492455) Essentia Commercial,BRITISH GAS BUSINESS:70299300,id:13897875   , 297.26
Department of Health,Guys and St Thomas NHS Foundation Trust,26/03/2021,(83120) Energy Costs,(id:492455) Essentia Commercial,CORONA ENERGY RETAIL 4 LTD,id:13924558 ,1172.72
Department of Health,Guys and St Thomas NHS Foundation Trust,19/03/2021,(83342) Premises Services,(id:670422) Essentia Commercial,SRCL LTD,id:13894940    ,1523.90
Department of Health,Guys and St Thomas NHS Foundation Trust,19/03/2021,(83110) Energy Costs,(id:42626) Essentia Infrastructure,EDF ENERGY,id:13870975    , 716.40
Department of Health,Guys and St Thomas NHS Foundation Trust,05/03/2021,(83110) Energy Costs,(id:1789419) Essentia Infrastructure,EDF ENERGY,id:13830415  ,    21898.52
Department of Health,Guys and St Thomas NHS Foundation Trust,19/03/2021,(83220) Water & Sewerage,(id:42627) Essentia Infrastructure,CASTLE WATER LIMITED,id:13888214,    18752.13
Department of Health,Guys and St Thomas NHS Foundation Trust,19/03/2021,(83400) Office Equipment,(id:4624420) Guys Site services,ARC-UK TECHNOLOGIES LTD,id:13745674,1944.00
Department of Health,Guys and St Thomas NHS Foundation Trust,26/03/2021,(83400) Office Equipment,(id:42662) Guys Site services,STIRLING MEDICAL & SCIENTIFIC,id:13870409 ,1372.66
Department of Health,Guys and St Thomas NHS Foundation Trust,05/03/2021,(83880) Building & Engineering,(id:42662) Guys Site services,GRANTLEIGH LTD,id:13737194, 680.00
Department of Health,Guys and St Thomas NHS Foundation Trust,26/03/2021,(83400) Office Equipment,(id:4624419) Guys Site services,CITY & KENT CLEANING LTD,id:13870617    , 540.00
Department of Health,Guys and St Thomas NHS Foundation Trust,19/03/2021,(83360) Premises Services,(id:4624419) Guys Site services,CITY & KENT CLEANING LTD,id:13841121   , 600.00
Department of Health,Guys and St Thomas NHS Foundation Trust,19/03/2021,(83400) Office Equipment,(id:42545) Guys Site services,CITY & KENT CLEANING LTD,id:13864150 , 723.02
Department of Health,Guys and St Thomas NHS Foundation Trust,19/03/2021,(83400) Office Equipment,(id:42545) Guys Site services,CITY & KENT CLEANING LTD,id:13864090 ,4609.87
Department of Health,Guys and St Thomas NHS Foundation Trust,26/03/2021,(83400) Office Equipment,(id:42545) Guys Site services,CITY & KENT CLEANING LTD,id:13870618 ,1476.00
